Workbook

Sheet паспорт
A1: ПАТ "УКРТРАНСГАЗ" | G1: ПАСПОРТ ФІЗИКО-ХІМІЧНИХ ПОКАЗНИКІВ ПРИРОДНОГО ГАЗУ № 676
A2: Філія "УМГ "ХАРКІВТРАНСГАЗ" | F2: переданого Краматорським ЛВУМГ та прийнятого ПАТ "ДОНЕЦЬКОБЛГАЗ", ПАТ "ХАРКІВГАЗ", ПАТ "ЗОКМ", ТОВ "ЛІДЕР"
E3: ТОВ "КНАУФ ГІПС ДОНБАС", ДП "УКРАВТОГАЗ", ПрАТ "СКВЗ", ТОВ "ГІРНИЧІ МАШИНИ - ДРМЗ", ТОВ "ДТЕК СХІДЕНЕРГО"
A4: Сєвєродонецьке ЛВУМГ | G4: Маршрут № 676
A5: Вимірювальна хіміко-аналітична лабораторія
A6: Свідоцтво № РЬ089/2014 чинно до 06.06.2017 р. | H6: по газопроводу "Амвросієвка-Горловка-Слов'янськ", "Новопськов-Краматорськ", | V6: за період з | X6: 01.02.2017 р. | Z6: по | AA6: 28.02.2017 р.
F7: "Краматорськ-Донецьк", Донецьк-Маріуполь", "Шебелинка-Слов'янськ", "газопровід-відвід на ГРС 1, 2 Вуглегірської ДРЕС"
A9: Число місяця | B9: Компонентний склад, мол. % | N9: Фізико-хімічні показники газу обчислені на основі компонентного складу, 101,325 кПа | X9: Температура точки роси за вологою (Р = 3.92 МПа), °С | Y9: Температура точки роси за вуглеводнями, °С | Z9: Вміст сірководню, г/м3 | AA9: Вміст меркаптанової сірки, г/м3 | AB9: Вміст механічних домішок, г/м3
N10: Густина абсолютна, кг/м3,при 20 °С, | O10: Температура вимірювання/згоряння при 20/25°С
B11: метан, С1 | C11: етан, С2 | D11: пропан, С3 | E11: ізо-бутан, і-С4 | F11: н-бутан, н-С4 | G11: нео-пентан, нео-С5 | H11: ізо-пентан, і-С5 | I11: н-пентан, н-С5 | J11: гексани та вищі, С6+ | K11: кисень, О2 | L11: азот, N2 | M11: діоксид вуглецю, CО2 | O11: Теплота згоряння нижча | R11: Теплота згоряння вища | U11: Число Воббе вище
O12: ккал/м³ | P12: МДж/м³ | Q12: кВт⋅год/м³ | R12: ккал/м³ | S12: МДж/м³ | T12: кВт⋅год/м³ | U12: ккал/м³ | V12: МДж/м³ | W12: кВт⋅год/м³
A13: 1 | O13: 8156 | P13: 34.15 | Q13: =P13/3.6 -> 9.486111111 | R13: 9036 | S13: 37.83 | T13: =S13/3.6 -> 10.50833333 | U13: =V13/0.0041868 -> 11715.48677 | V13: 49.0504 | W13: =V13/3.6 -> 13.62511111 | AC13: =SUM(B13:M13)+$K$44+$N$44 -> 0
A14: 2 | B14: 93.1761 | C14: 3.3834 | D14: 0.8321 | E14: 0.0816 | F14: 0.1016 | G14: 0.002 | H14: 0.0203 | I14: 0.0169 | J14: 0.0405 | K14: 0.0128 | L14: 2.1158 | M14: 0.2168 | N14: 0.7163 | O14: 8167.72 | P14: 34.1966 | Q14: 9.499055556 | R14: 9049.15 | S14: 37.887 | T14: 10.52416667 | U14: 11734.31 | V14: 49.1292 | W14: 13.647 | AC14: 99.9999
A15: 3 | O15: 8167.72 | P15: 34.1966 | Q15: =P15/3.6 -> 9.499055556 | R15: 9049.15 | S15: 37.887 | T15: =S15/3.6 -> 10.52416667 | U15: 11734.31 | V15: 49.1292 | W15: 13.647 | AC15: 0 | AD15: =IF(AC15=100,"ОК"," ") -> 
A16: 4 | O16: 8167.72 | P16: 34.1966 | Q16: 9.499055556 | R16: 9049.15 | S16: 37.887 | T16: 10.52416667 | U16: 11734.31 | V16: 49.1292 | W16: 13.647 | AC16: 0 | AD16: =IF(AC16=100,"ОК"," ") -> 
A17: 5 | O17: 8167.72 | P17: 34.1966 | Q17: 9.499055556 | R17: 9049.15 | S17: 37.887 | T17: 10.52416667 | U17: 11734.31 | V17: 49.1292 | W17: 13.647 | AC17: 0
A18: 6 | O18: 8167.72 | P18: 34.1966 | Q18: 9.499055556 | R18: 9049.15 | S18: 37.887 | T18: 10.52416667 | U18: 11734.31 | V18: 49.1292 | W18: 13.647 | AC18: 0
A19: 7 | O19: 8167.72 | P19: 34.1966 | Q19: 9.499055556 | R19: 9049.15 | S19: 37.887 | T19: 10.52416667 | U19: 11734.31 | V19: 49.1292 | W19: 13.647 | AC19: 0
A20: 8 | B20: 93.4613 | C20: 3.1011 | D20: 0.7792 | E20: 0.0776 | F20: 0.1018 | G20: 0.0047 | H20: 0.0202 | I20: 0.0177 | J20: 0.0311 | K20: 0.0112 | L20: 2.0937 | M20: 0.3005 | N20: 0.7146 | O20: 8135.95 | P20: 34.0636 | Q20: 9.462111111 | R20: 9014.93 | S20: 37.7437 | T20: 10.48436111 | U20: 11703.74 | V20: 49.0012 | W20: 13.61144444 | X20: -19.2 | Y20: -17.3 | Z20: 0.0003 | AA20: 0.004 | AB20: відс | AC20: 100.0001
A21: 9 | O21: 8135.95 | P21: 34.0636 | Q21: =P21/3.6 -> 9.462111111 | R21: 9014.93 | S21: 37.7437 | T21: =S21/3.6 -> 10.48436111 | U21: 11703.74 | V21: 49.0012 | W21: 13.61144444 | AC21: 0
A22: 10 | O22: 8135.95 | P22: 34.0636 | Q22: 9.462111111 | R22: 9014.93 | S22: 37.7437 | T22: 10.48436111 | U22: 11703.74 | V22: 49.0012 | W22: 13.61144444 | AC22: 0
A23: 11 | O23: 8135.95 | P23: 34.0636 | Q23: 9.462111111 | R23: 9014.93 | S23: 37.7437 | T23: 10.48436111 | U23: 11703.74 | V23: 49.0012 | W23: 13.61144444 | AC23: 0
A24: 12 | O24: 8135.95 | P24: 34.0636 | Q24: 9.462111111 | R24: 9014.93 | S24: 37.7437 | T24: 10.48436111 | U24: 11703.74 | V24: 49.0012 | W24: 13.61144444 | AC24: 0
A25: 13 | O25: 8135.95 | P25: 34.0636 | Q25: 9.462111111 | R25: 9014.93 | S25: 37.7437 | T25: 10.48436111 | U25: 11703.74 | V25: 49.0012 | W25: 13.61144444 | AC25: 0
A26: 14 | O26: 8135.95 | P26: 34.0636 | Q26: 9.462111111 | R26: 9014.93 | S26: 37.7437 | T26: 10.48436111 | U26: 11703.74 | V26: 49.0012 | W26: 13.61144444 | AC26: 0
A27: 15 | O27: 8135.95 | P27: 34.0636 | Q27: 9.462111111 | R27: 9014.93 | S27: 37.7437 | T27: 10.48436111 | U27: 11703.74 | V27: 49.0012 | W27: 13.61144444 | AC27: 0
A28: 16 | B28: 94.1893 | C28: 2.7529 | D28: 0.6671 | E28: 0.0761 | F28: 0.1049 | G28: 0.0047 | H28: 0.0214 | I28: 0.0186 | J28: 0.0318 | K28: 0.0109 | L28: 1.9175 | M28: 0.2047 | N28: 0.7093 | O28: 8123.03 | P28: 34.0095 | Q28: =P28/3.6 -> 9.447083333 | R28: 9001.96 | S28: 37.6894 | T28: =S28/3.6 -> 10.46927778 | U28: 11730.1 | V28: 49.1116 | W28: 13.64211111 | AC28: 99.9999
A29: 17 | O29: 8123.03 | P29: 34.0095 | Q29: =P29/3.6 -> 9.447083333 | R29: 9001.96 | S29: 37.6894 | T29: =S29/3.6 -> 10.46927778 | U29: 11730.1 | V29: 49.1116 | W29: 13.64211111 | AC29: 0
A30: 18 | O30: 8123.03 | P30: 34.0095 | Q30: 9.447083333 | R30: 9001.96 | S30: 37.6894 | T30: 10.46927778 | U30: 11730.1 | V30: 49.1116 | W30: 13.64211111 | AC30: 0
A31: 19 | O31: 8123.03 | P31: 34.0095 | Q31: 9.447083333 | R31: 9001.96 | S31: 37.6894 | T31: 10.46927778 | U31: 11730.1 | V31: 49.1116 | W31: 13.64211111 | AC31: 0
A32: 20 | O32: 8123.03 | P32: 34.0095 | Q32: 9.447083333 | R32: 9001.96 | S32: 37.6894 | T32: 10.46927778 | U32: 11730.1 | V32: 49.1116 | W32: 13.64211111 | AC32: 0 | AD32: =IF(AC32=100,"ОК"," ") -> 
A33: 21 | O33: 8123.03 | P33: 34.0095 | Q33: 9.447083333 | R33: 9001.96 | S33: 37.6894 | T33: 10.46927778 | U33: 11730.1 | V33: 49.1116 | W33: 13.64211111 | AC33: 0
A34: 22 | O34: 8123.03 | P34: 34.0095 | Q34: 9.447083333 | R34: 9001.96 | S34: 37.6894 | T34: 10.46927778 | U34: 11730.1 | V34: 49.1116 | W34: 13.64211111 | AC34: 0
A35: 23 | O35: 8123.03 | P35: 34.0095 | Q35: 9.447083333 | R35: 9001.96 | S35: 37.6894 | T35: 10.46927778 | U35: 11730.1 | V35: 49.1116 | W35: 13.64211111 | AC35: 0 | AD35: =IF(AC35=100,"ОК"," ") -> 
A36: 24 | B36: 94.1412 | C36: 3.1206 | D36: 0.7852 | E36: 0.0834 | F36: 0.0936 | G36: 0.0015 | H36: 0.0189 | I36: 0.0155 | J36: 0.013 | K36: 0.0137 | L36: 1.4517 | M36: 0.2619 | N36: 0.7104 | O36: 8184.48 | P36: 34.2668 | Q36: =P36/3.6 -> 9.518555556 | R36: =S36*238.8459 -> 9069.026592 | S36: 37.9702 | T36: =S36/3.6 -> 10.54727778 | U36: 11808.47 | V36: 49.4397 | W36: 13.73325 | AC36: 100.0002
A37: 25 | O37: 8184.48 | P37: 34.2668 | Q37: =P37/3.6 -> 9.518555556 | R37: =S37*238.8459 -> 9069.026592 | S37: 37.9702 | T37: =S37/3.6 -> 10.54727778 | U37: 11808.47 | V37: 49.4397 | W37: 13.73325 | AC37: 0
A38: 26 | O38: 8184.48 | P38: 34.2668 | Q38: 9.518555556 | R38: 9069.026592 | S38: 37.9702 | T38: 10.54727778 | U38: 11808.47 | V38: 49.4397 | W38: 13.73325 | AC38: 0
A39: 27 | O39: 8184.48 | P39: 34.2668 | Q39: 9.518555556 | R39: 9069.026592 | S39: 37.9702 | T39: 10.54727778 | U39: 11808.47 | V39: 49.4397 | W39: 13.73325 | AC39: 0
A40: 28 | O40: 8184.48 | P40: 34.2668 | Q40: 9.518555556 | R40: 9069.026592 | S40: 37.9702 | T40: 10.54727778 | U40: 11808.47 | V40: 49.4397 | W40: 13.73325 | AC40: 0
A41: 29 | B41: 96.1882 | C41: 2.0721 | D41: 0.6594 | E41: 0.1046 | F41: 0.1031 | G41: 0.0041 | H41: 0.0205 | I41: 0.0145 | J41: 0.0047 | K41: 0.0076 | L41: 0.6366 | M41: 0.1845 | N41: 0.6982 | O41: =P41*238.8459 -> 8179.015115 | P41: 34.2439 | Q41: =P41/3.6 -> 9.512194444 | R41: 9065.993249 | S41: 37.9575 | T41: =S41/3.6 -> 10.54375 | U41: 11908 | V41: 49.8549 | W41: =V41/3.6 -> 13.84858333 | X41: -20.6 | Y41: -2 | AC41: 99.9999
A42: 30 | O42: 8178.083616 | P42: 34.24 | Q42: =P42/3.6 -> 9.511111111 | R42: 9066.590364 | S42: 37.96 | T42: =S42/3.6 -> 10.54444444 | AC42: 0
A43: 31 | O43: 8179.015115 | P43: 34.2439 | Q43: =P43/3.6 -> 9.512194444 | R43: 9065.993249 | S43: 37.9575 | T43: =S43/3.6 -> 10.54375 | AC43: 0
A44: Рівень одоризації відповідає чинним нормативним документам | O44: =SUMPRODUCT(O13:O40,' розрахунок'!BK7:BK34)/' розрахунок'!BK38 -> 8147.865412 | P44: =SUMPRODUCT(P13:P40,' розрахунок'!BK7:BK34)/' розрахунок'!BK38 -> 34.11358802 | Q44: =SUMPRODUCT(Q13:Q40,' розрахунок'!BK7:BK34)/' розрахунок'!BK38 -> 9.475996671 | R44: =SUMPRODUCT(R13:R40,' розрахунок'!BK7:BK34)/' розрахунок'!BK38 -> 9028.25562 | S44: =SUMPRODUCT(S13:S40,' розрахунок'!BK7:BK34)/' розрахунок'!BK38 -> 37.79941925 | T44: =SUMPRODUCT(T13:T40,' розрахунок'!BK7:BK34)/' розрахунок'!BK38 -> 10.49983868
H45: Середньозважене значення теплоти згоряння:
B48: Начальник управління Северодонецького ЛВУМГ Головко Ю.О.
C49: Підрозділу підприємства, якому підпорядкована лабораторія | O49: прізвище | R49: підпис | V49: дата
B50: Інженер ІІ кат. ВХАЛ Єрьоменко М.О.
C51: Лабораторія, де здійснювалось вимірювання газу | O51: прізвище | R51: підпис | V51: дата
B52: Начальник служби метрології Левкович А.М.
C53: Підрозділу, відповідального за облік газу за маршрутом | O53: прізвище | R53: підпис | V53: дата

Sheet розрахунок (hidden)
A2: Додаток до Паспорту фізико-хімічних показників природного газу по маршруту № 676
A4: Число місяця | B4: Теплота згоряння вища, МДж/м3 | C4: Донецька область | BE4: Харківська область | BK4: Загальний обсяг газу, м3
C5: Обсяг газу переданого за добу, м3 | BE5: Обсяг газу переданого за добу, м3
C6: ГРС Краматорськ | D6: АГНКС м.Краматорськ | E6: ГРС Бахмутська ПТФ | F6: ГРС м. Дзержинськ | G6: ГРС к-п Козаченко | H6: ГРС с. Рай-Олександрівка | I6: ГРС м.Красний Лиман | J6: ГРС м.Часів Яр | K6: ГРС р-п ім.Кірова | L6: ГРС к-п ім. Тимірязєва | M6: ГРС к-п ім. Леніна | N6: ГРС к-пів Правди та ім. Кірова | O6: ГРС 1 м.Костянтинівка | P6: ГРС 2 м.Костянтинівка | Q6: ТОВ "ТД "ЛІДЕР" | R6: ГРС Правдинська ПТФ | S6: ГРС с. Покровське | T6: ТОВ "КНАУФ ГИПС ДОНБАС" | U6: ГРС 1 Вуглегірська ДРЕС | V6: ГРС 2 Вуглегірська ДРЕС | W6: ГРС м. Сіверськ | X6: ГРС м. Красноармійськ | Y6: ГРС к-п Промінь | Z6: ГРС к-п Костянтинівський | AA6: ГРС м. Слов'янськ | AB6: АГНКС м. Слов'янськ | AC6: ГРС к-п Широкий Шлях | AD6: ГРС м. Артемівськ | AE6: ПАТ "ЗОКМ" | AF6: ГРС с. Кіндратівка | AG6: ГРС Щербинівська ТПФ | AH6: ГРС Шидловського КВЗ (Прат "СКВЗ") | AI6: АГНКС м. Костянтинівка | AJ6: ГРС м. Дружківка | AK6: ТОВ "ГІРНИЧІ МАШИНИ - ДРМЗ" | AL6: АГНКС м. Дружківка | AM6: ГРС 1 м. Курахове (ТОВ "ДТЕК СХІДЕНЕРГО") | AN6: ГРС 2 м. Курахове | AO6: ГРС смт. Очеретино | AP6: ГРС м. Селідове | AQ6: ГРС с. Володимірівка | AR6: ГРС с. Донське | AS6: ГРС м. Волноваха | AT6: ГРС с. Новотроїцьке | AU6: ГРС к-п Оленівський | AV6: ГРС с.Ольгинка | AW6: ГРС м. Вугледар | AX6: ГРС 1 Слов'янська ДРЕС | AY6: ГРС 2 Слов'янська ДРЕС | AZ6: ГРС НКМЗ (ПАТ "НКМЗ") | BA6: ГРС с. Малинівка | BB6: ГРС к-п ім. Горького | BC6: ГРС с. Очеретино | BD6: ГРС р-п Маріупольський | BE6: ГРС Ізюм | BF6: ГРС с. Бражківка | BG6: ГРС м. Барвінкове | BH6: ГРС к-пу "Жовтень" | BI6: ГРС к-п Степок | BJ6: ГРС с.Петрівське
A7: 1 | B7: =паспорт!S13 -> 37.83 | C7: =Лист1!AL3+Лист1!AN3+Лист1!AP3 -> 1138516.84 | D7: =Лист1!EU3 -> 2684.53 | E7: =Лист1!BC3 -> 133415.58 | F7: =Лист1!G3 -> 257369.09 | G7: =Лист1!BI3 -> 9691.73 | H7: =Лист1!DK3 -> 2333.62 | I7: =Лист1!DE3 -> 163466.94 | J7: =Лист1!BY3+Лист1!W3 -> 110053.64 | K7: =Лист1!BG3 -> 4182.12 | L7: =Лист1!BQ3 -> 3955.84 | M7: =Лист1!Q3 -> 8906.29 | N7: =Лист1!BM3 -> 5816.97 | O7: =Лист1!K3 -> 628383.44 | P7: 0 | Q7: =Лист1!FA3 -> 10402.23 | R7: =Лист1!DI3 -> 13352.87 | S7: =Лист1!BK3 -> 6349.19 | T7: =Лист1!FD3+Лист1!FF3 -> 123422.71 | U7: =Лист1!BS3 -> 73588.79 | V7: =Лист1!BU3+Лист1!BW3 -> 0 | W7: =Лист1!BO3 -> 48443.7 | X7: =Лист1!CD3 -> 601648.06 | Y7: =Лист1!AR3 -> 16367.02 | Z7: =Лист1!O3 -> 7346.88 | AA7: =Лист1!DS3 -> 765505.25 | AB7: =Лист1!ES3 -> 730.22 | AC7: =Лист1!Y3 -> 17600.61 | AD7: =Лист1!AW3+Лист1!AY3+Лист1!BA3 -> 442713.74 | AE7: =Лист1!FK3 -> 7730.79 | AF7: =Лист1!AJ3 -> 57216.55 | AG7: =Лист1!AA3 -> 10071.77 | AH7: =Лист1!GE3+Лист1!GG3 -> 4126.13 | AI7: =Лист1!EW3 -> 2740.47 | AJ7: =Лист1!AH3 -> 383894.81 | AK7: =Лист1!FP3 -> 34181.42 | AL7: =Лист1!EO3-Лист1!EQ3 -> 1582.49 | AM7: =Лист1!FS3 -> 889.19 | AN7: =Лист1!CF3+Лист1!CH3 -> 25828.44 | AO7: =Лист1!S3+Лист1!U3 -> 16544.06 | AP7: =Лист1!CJ3 -> 103688.76 | AQ7: =Лист1!CL3 -> 45404.76 | AR7: =Лист1!CP3 -> 36512.54 | AS7: =Лист1!CN3 -> 129714.5 | AT7: =Лист1!CX3 -> 22300.64 | AU7: =Лист1!CR3 -> 8838.33 | AV7: =Лист1!CV3 -> 7468.16 | AW7: =Лист1!CT3 -> 108782.99 | AX7: =Лист1!DQ3 -> 14975.53 | AY7: =Лист1!DM3+Лист1!DO3 -> 102614.02 | AZ7: =Лист1!FZ3 -> 84971.74 | BA7: =Лист1!DG3 -> 4452.74 | BB7: =Лист1!BE3 -> 12385.56 | BC7: =Лист1!AF3 -> 6026.29 | BD7: =Лист1!CZ3 -> 8432.68 | BE7: =Лист1!EF3 -> 335646.22 | BF7: =Лист1!EB3 -> 9187.37 | BG7: =Лист1!DX3+Лист1!DZ3 -> 67802.32 | BH7: =Лист1!ED3 -> 6577.76 | BI7: =Лист1!EJ3 -> 10589.57 | BJ7: =Лист1!EH3 -> 20390.42 | BK7: =SUM(C7:BJ7) -> 6287816.92
A8: 2 | B8: =паспорт!S14 -> 37.887 | C8: =Лист1!AL4+Лист1!AN4+Лист1!AP4 -> 1168132.41 | D8: =Лист1!EU4 -> 2989.43 | E8: =Лист1!BC4 -> 112703.1 | F8: =Лист1!G4 -> 239971.95 | G8: =Лист1!BI4 -> 9035.07 | H8: =Лист1!DK4 -> 2256.81 | I8: =Лист1!DE4 -> 151350.38 | J8: =Лист1!BY4+Лист1!W4 -> 102576.01 | K8: =Лист1!BG4 -> 3892.4 | L8: =Лист1!BQ4 -> 3793.16 | M8: =Лист1!Q4 -> 8228 | N8: =Лист1!BM4 -> 5321.77 | O8: =Лист1!K4 -> 589944.44 | P8: 0 | Q8: =Лист1!FA4 -> 10886.4 | R8: =Лист1!DI4 -> 13283.9 | S8: =Лист1!BK4 -> 5801.75 | T8: =Лист1!FD4+Лист1!FF4 -> 132812.71 | U8: =Лист1!BS4 -> 68866.17 | V8: =Лист1!BU4+Лист1!BW4 -> 0 | W8: =Лист1!BO4 -> 44974.09 | X8: =Лист1!CD4 -> 563518.38 | Y8: =Лист1!AR4 -> 14992.2 | Z8: =Лист1!O4 -> 6940.24 | AA8: =Лист1!DS4 -> 701031.69 | AB8: =Лист1!ES4 -> 741.36 | AC8: =Лист1!Y4 -> 15545.2 | AD8: =Лист1!AW4+Лист1!AY4+Лист1!BA4 -> 408608.82 | AE8: =Лист1!FK4 -> 8734.31 | AF8: =Лист1!AJ4 -> 55304.66 | AG8: =Лист1!AA4 -> 9100.78 | AH8: =Лист1!GE4+Лист1!GG4 -> 4366.45 | AI8: =Лист1!EW4 -> 2637.44 | AJ8: =Лист1!AH4 -> 349797.63 | AK8: =Лист1!FP4 -> 27287.37 | AL8: =Лист1!EO4-Лист1!EQ4 -> 1707.46 | AM8: =Лист1!FS4 -> 728.85 | AN8: =Лист1!CF4+Лист1!CH4 -> 17527.37 | AO8: =Лист1!S4+Лист1!U4 -> 15452.49 | AP8: =Лист1!CJ4 -> 96632.61 | AQ8: =Лист1!CL4 -> 42638.29 | AR8: =Лист1!CP4 -> 35804.36 | AS8: =Лист1!CN4 -> 119442.13 | AT8: =Лист1!CX4 -> 19717.68 | AU8: =Лист1!CR4 -> 8071.75 | AV8: =Лист1!CV4 -> 6877.63 | AW8: =Лист1!CT4 -> 102019.34 | AX8: =Лист1!DQ4 -> 14133.67 | AY8: =Лист1!DM4+Лист1!DO4 -> 64324.08 | AZ8: =Лист1!FZ4 -> 104713.02 | BA8: =Лист1!DG4 -> 4106.76 | BB8: =Лист1!BE4 -> 10946.76 | BC8: =Лист1!AF4 -> 5505.53 | BD8: =Лист1!CZ4 -> 7699.05 | BE8: =Лист1!EF4 -> 304756.63 | BF8: =Лист1!EB4 -> 8317.99 | BG8: =Лист1!DX4+Лист1!DZ4 -> 61485.21 | BH8: =Лист1!ED4 -> 5904.82 | BI8: =Лист1!EJ4 -> 9706.89 | BJ8: =Лист1!EH4 -> 18309.85 | BK8: 5931956.7
A9: 3 | B9: =паспорт!S15 -> 37.887 | C9: =Лист1!AL5+Лист1!AN5+Лист1!AP5 -> 1090630.37 | D9: =Лист1!EU5 -> 2177.03 | E9: =Лист1!BC5 -> 115719.71 | F9: =Лист1!G5 -> 223240.58 | G9: =Лист1!BI5 -> 8091.6 | H9: =Лист1!DK5 -> 2195.53 | I9: =Лист1!DE5 -> 139973.63 | J9: =Лист1!BY5+Лист1!W5 -> 95037.67 | K9: =Лист1!BG5 -> 3722.22 | L9: =Лист1!BQ5 -> 3557.68 | M9: =Лист1!Q5 -> 7756.95 | N9: =Лист1!BM5 -> 5284.08 | O9: =Лист1!K5 -> 565824 | P9: 0 | Q9: =Лист1!FA5 -> 10508.99 | R9: =Лист1!DI5 -> 11560.05 | S9: =Лист1!BK5 -> 5571.23 | T9: =Лист1!FD5+Лист1!FF5 -> 71265.56 | U9: =Лист1!BS5 -> 63595.97 | V9: =Лист1!BU5+Лист1!BW5 -> 0 | W9: =Лист1!BO5 -> 43131.04 | X9: =Лист1!CD5 -> 516288.53 | Y9: =Лист1!AR5 -> 14362.19 | Z9: =Лист1!O5 -> 6641.52 | AA9: =Лист1!DS5 -> 669781.5 | AB9: =Лист1!ES5 -> 337.51 | AC9: =Лист1!Y5 -> 14877.94 | AD9: =Лист1!AW5+Лист1!AY5+Лист1!BA5 -> 368614.2 | AE9: =Лист1!FK5 -> 6355.84 | AF9: =Лист1!AJ5 -> 52818.11 | AG9: =Лист1!AA5 -> 8799.9 | AH9: =Лист1!GE5+Лист1!GG5 -> 3679.76 | AI9: =Лист1!EW5 -> 3317.51 | AJ9: =Лист1!AH5 -> 322981.28 | AK9: =Лист1!FP5 -> 25828.59 | AL9: =Лист1!EO5-Лист1!EQ5 -> 1764.07 | AM9: =Лист1!FS5 -> 689.76 | AN9: =Лист1!CF5+Лист1!CH5 -> 15040.91 | AO9: =Лист1!S5+Лист1!U5 -> 15100.34 | AP9: =Лист1!CJ5 -> 89801.43 | AQ9: =Лист1!CL5 -> 41331.44 | AR9: =Лист1!CP5 -> 33304.08 | AS9: =Лист1!CN5 -> 114134.56 | AT9: =Лист1!CX5 -> 18600.57 | AU9: =Лист1!CR5 -> 7758.1 | AV9: =Лист1!CV5 -> 6533.1 | AW9: =Лист1!CT5 -> 88881.6 | AX9: =Лист1!DQ5 -> 13722.9 | AY9: =Лист1!DM5+Лист1!DO5 -> 37725.43 | AZ9: =Лист1!FZ5 -> 101416.46 | BA9: =Лист1!DG5 -> 3941.75 | BB9: =Лист1!BE5 -> 10709.08 | BC9: =Лист1!AF5 -> 5268.37 | BD9: =Лист1!CZ5 -> 7103.26 | BE9: =Лист1!EF5 -> 286266.56 | BF9: =Лист1!EB5 -> 8109.28 | BG9: =Лист1!DX5+Лист1!DZ5 -> 59417.72 | BH9: =Лист1!ED5 -> 5822.25 | BI9: =Лист1!EJ5 -> 9425.08 | BJ9: =Лист1!EH5 -> 17706.77 | BK9: 5483103.14
A10: 4 | B10: =паспорт!S16 -> 37.887 | C10: =Лист1!AL6+Лист1!AN6+Лист1!AP6 -> 1028317.25 | D10: =Лист1!EU6 -> 942.25 | E10: =Лист1!BC6 -> 115637.95 | F10: =Лист1!G6 -> 202391.39 | G10: =Лист1!BI6 -> 7334.51 | H10: =Лист1!DK6 -> 1996.35 | I10: =Лист1!DE6 -> 114539.31 | J10: =Лист1!BY6+Лист1!W6 -> 87501.45 | K10: =Лист1!BG6 -> 3449.96 | L10: =Лист1!BQ6 -> 3014.36 | M10: =Лист1!Q6 -> 7123.18 | N10: =Лист1!BM6 -> 4732.52 | O10: =Лист1!K6 -> 491736.28 | P10: 0 | Q10: =Лист1!FA6 -> 7255.87 | R10: =Лист1!DI6 -> 10742.21 | S10: =Лист1!BK6 -> 5141.95 | T10: =Лист1!FD6+Лист1!FF6 -> 12567.21 | U10: =Лист1!BS6 -> 55897.25 | V10: =Лист1!BU6+Лист1!BW6 -> 0 | W10: =Лист1!BO6 -> 38127.3 | X10: =Лист1!CD6 -> 449957.66 | Y10: =Лист1!AR6 -> 12877.41 | Z10: =Лист1!O6 -> 6025.63 | AA10: =Лист1!DS6 -> 575078.81 | AB10: =Лист1!ES6 -> 219.09 | AC10: =Лист1!Y6 -> 13305.09 | AD10: =Лист1!AW6+Лист1!AY6+Лист1!BA6 -> 324518.01 | AE10: =Лист1!FK6 -> 563.54 | AF10: =Лист1!AJ6 -> 48361.34 | AG10: =Лист1!AA6 -> 8199.24 | AH10: =Лист1!GE6+Лист1!GG6 -> 4336.99 | AI10: =Лист1!EW6 -> 2681.2 | AJ10: =Лист1!AH6 -> 279040.78 | AK10: =Лист1!FP6 -> 12937.09 | AL10: =Лист1!EO6-Лист1!EQ6 -> 1273.28 | AM10: =Лист1!FS6 -> 3541.84 | AN10: =Лист1!CF6+Лист1!CH6 -> 13040.19 | AO10: =Лист1!S6+Лист1!U6 -> 14091.7 | AP10: =Лист1!CJ6 -> 75788.57 | AQ10: =Лист1!CL6 -> 38716.72 | AR10: =Лист1!CP6 -> 29090.08 | AS10: =Лист1!CN6 -> 103171.66 | AT10: =Лист1!CX6 -> 15456.64 | AU10: =Лист1!CR6 -> 7159.68 | AV10: =Лист1!CV6 -> 5974.22 | AW10: =Лист1!CT6 -> 82834.27 | AX10: =Лист1!DQ6 -> 12580.99 | AY10: =Лист1!DM6+Лист1!DO6 -> 27997.6 | AZ10: =Лист1!FZ6 -> 114267.99 | BA10: =Лист1!DG6 -> 3578.79 | BB10: =Лист1!BE6 -> 9485.72 | BC10: =Лист1!AF6 -> 4822.77 | BD10: =Лист1!CZ6 -> 6734.38 | BE10: =Лист1!EF6 -> 259105.48 | BF10: =Лист1!EB6 -> 7500.14 | BG10: =Лист1!DX6+Лист1!DZ6 -> 53401.4 | BH10: =Лист1!ED6 -> 5280.29 | BI10: =Лист1!EJ6 -> 8662.32 | BJ10: =Лист1!EH6 -> 16218.04 | BK10: 4856325.19
A11: 5 | B11: =паспорт!S17 -> 37.887 | C11: =Лист1!AL7+Лист1!AN7+Лист1!AP7 -> 1033786.96 | D11: =Лист1!EU7 -> 1008.38 | E11: =Лист1!BC7 -> 115265.72 | F11: =Лист1!G7 -> 192908.3 | G11: =Лист1!BI7 -> 7193.84 | H11: =Лист1!DK7 -> 2323.19 | I11: =Лист1!DE7 -> 121261.67 | J11: =Лист1!BY7+Лист1!W7 -> 85769.16 | K11: =Лист1!BG7 -> 3304.98 | L11: =Лист1!BQ7 -> 2581.25 | M11: =Лист1!Q7 -> 6757.35 | N11: =Лист1!BM7 -> 4610.48 | O11: =Лист1!K7 -> 489540.44 | P11: 0 | Q11: =Лист1!FA7 -> 6003.25 | R11: =Лист1!DI7 -> 10700.88 | S11: =Лист1!BK7 -> 4950.89 | T11: =Лист1!FD7+Лист1!FF7 -> 36767.92 | U11: =Лист1!BS7 -> 57294.21 | V11: =Лист1!BU7+Лист1!BW7 -> 115122.83 | W11: =Лист1!BO7 -> 37341.84 | X11: =Лист1!CD7 -> 465378.91 | Y11: =Лист1!AR7 -> 12710.45 | Z11: =Лист1!O7 -> 5712.18 | AA11: =Лист1!DS7 -> 599734.56 | AB11: =Лист1!ES7 -> 161.51 | AC11: =Лист1!Y7 -> 12771.67 | AD11: =Лист1!AW7+Лист1!AY7+Лист1!BA7 -> 323655.22 | AE11: =Лист1!FK7 -> 1659.93 | AF11: =Лист1!AJ7 -> 47097.6 | AG11: =Лист1!AA7 -> 7838.34 | AH11: =Лист1!GE7+Лист1!GG7 -> 4514.95 | AI11: =Лист1!EW7 -> 2213.8 | AJ11: =Лист1!AH7 -> 284386.22 | AK11: =Лист1!FP7 -> 12967.46 | AL11: =Лист1!EO7-Лист1!EQ7 -> 804.43 | AM11: =Лист1!FS7 -> 90548.8 | AN11: =Лист1!CF7+Лист1!CH7 -> 13703.07 | AO11: =Лист1!S7+Лист1!U7 -> 13528.14 | AP11: =Лист1!CJ7 -> 79729.52 | AQ11: =Лист1!CL7 -> 46994.4 | AR11: =Лист1!CP7 -> 27841.05 | AS11: =Лист1!CN7 -> 101792.77 | AT11: =Лист1!CX7 -> 16443.2 | AU11: =Лист1!CR7 -> 6897.23 | AV11: =Лист1!CV7 -> 5623.21 | AW11: =Лист1!CT7 -> 78894.53 | AX11: =Лист1!DQ7 -> 12480.69 | AY11: =Лист1!DM7+Лист1!DO7 -> 19616.05 | AZ11: =Лист1!FZ7 -> 112956.15 | BA11: =Лист1!DG7 -> 3477.3 | BB11: =Лист1!BE7 -> 9104.48 | BC11: =Лист1!AF7 -> 4628.26 | BD11: =Лист1!CZ7 -> 6284.01 | BE11: =Лист1!EF7 -> 253749.45 | BF11: =Лист1!EB7 -> 7082.02 | BG11: =Лист1!DX7+Лист1!DZ7 -> 52633.82 | BH11: =Лист1!ED7 -> 5012.48 | BI11: =Лист1!EJ7 -> 8723.25 | BJ11: =Лист1!EH7 -> 16165.64 | BK11: 5110010.29
A12: 6 | B12: =паспорт!S18 -> 37.887 | C12: =Лист1!AL8+Лист1!AN8+Лист1!AP8 -> 1226016.44 | D12: =Лист1!EU8 -> 2919.05 | E12: =Лист1!BC8 -> 127868.66 | F12: =Лист1!G8 -> 218616.14 | G12: =Лист1!BI8 -> 9818.15 | H12: =Лист1!DK8 -> 2132.51 | I12: =Лист1!DE8 -> 154951.13 | J12: =Лист1!BY8+Лист1!W8 -> 102262.41 | K12: =Лист1!BG8 -> 3607.28 | L12: =Лист1!BQ8 -> 3302.32 | M12: =Лист1!Q8 -> 7421 | N12: =Лист1!BM8 -> 5117.78 | O12: =Лист1!K8 -> 572661.75 | P12: 0 | Q12: =Лист1!FA8 -> 12079.69 | R12: =Лист1!DI8 -> 12953.53 | S12: =Лист1!BK8 -> 5442.02 | T12: =Лист1!FD8+Лист1!FF8 -> 49968.32 | U12: =Лист1!BS8 -> 66180.31 | V12: =Лист1!BU8+Лист1!BW8 -> 29609.79 | W12: =Лист1!BO8 -> 41855.39 | X12: =Лист1!CD8 -> 555458.44 | Y12: =Лист1!AR8 -> 13785.87 | Z12: =Лист1!O8 -> 6299.13 | AA12: =Лист1!DS8 -> 710755.75 | AB12: =Лист1!ES8 -> 699.76 | AC12: =Лист1!Y8 -> 15964.31 | AD12: =Лист1!AW8+Лист1!AY8+Лист1!BA8 -> 387589.41 | AE12: =Лист1!FK8 -> 9074.92 | AF12: =Лист1!AJ8 -> 55307.85 | AG12: =Лист1!AA8 -> 8651.7 | AH12: =Лист1!GE8+Лист1!GG8 -> 3676.49 | AI12: =Лист1!EW8 -> 3064.24 | AJ12: =Лист1!AH8 -> 337719.31 | AK12: =Лист1!FP8 -> 25120.55 | AL12: =Лист1!EO8-Лист1!EQ8 -> 2306.31 | AM12: =Лист1!FS8 -> 20404.17 | AN12: =Лист1!CF8+Лист1!CH8 -> 12563.76 | AO12: =Лист1!S8+Лист1!U8 -> 15165.11 | AP12: =Лист1!CJ8 -> 94091.21 | AQ12: =Лист1!CL8 -> 48024.83 | AR12: =Лист1!CP8 -> 31467.43 | AS12: =Лист1!CN8 -> 108772.16 | AT12: =Лист1!CX8 -> 18565.85 | AU12: =Лист1!CR8 -> 6978.84 | AV12: =Лист1!CV8 -> 5917.56 | AW12: =Лист1!CT8 -> 89699.05 | AX12: =Лист1!DQ8 -> 13549.58 | AY12: =Лист1!DM8+Лист1!DO8 -> 54372.29 | AZ12: =Лист1!FZ8 -> 100805.34 | BA12: =Лист1!DG8 -> 3836.91 | BB12: =Лист1!BE8 -> 10339.64 | BC12: =Лист1!AF8 -> 5156.17 | BD12: =Лист1!CZ8 -> 6748.94 | BE12: =Лист1!EF8 -> 290614.53 | BF12: =Лист1!EB8 -> 8037.03 | BG12: =Лист1!DX8+Лист1!DZ8 -> 59487.4 | BH12: =Лист1!ED8 -> 5716.18 | BI12: =Лист1!EJ8 -> 9532.62 | BJ12: =Лист1!EH8 -> 18105.7 | BK12: 5828210.01
A13: 7 | B13: =паспорт!S19 -> 37.887 | C13: =Лист1!AL9+Лист1!AN9+Лист1!AP9 -> 1373605.51 | D13: =Лист1!EU9 -> 3379.05 | E13: =Лист1!BC9 -> 138831.55 | F13: =Лист1!G9 -> 247421.09 | G13: =Лист1!BI9 -> 11394 | H13: =Лист1!DK9 -> 2409.43 | I13: =Лист1!DE9 -> 176076.61 | J13: =Лист1!BY9+Лист1!W9 -> 115050.75 | K13: =Лист1!BG9 -> 4010.85 | L13: =Лист1!BQ9 -> 3939.86 | M13: =Лист1!Q9 -> 8495.28 | N13: =Лист1!BM9 -> 5637.08 | O13: =Лист1!K9 -> 655742.44 | P13: 0 | Q13: =Лист1!FA9 -> 12826.18 | R13: =Лист1!DI9 -> 14853.72 | S13: =Лист1!BK9 -> 6136 | T13: =Лист1!FD9+Лист1!FF9 -> 60222.89 | U13: =Лист1!BS9 -> 75617.01 | V13: =Лист1!BU9+Лист1!BW9 -> 85466.61 | W13: =Лист1!BO9 -> 48250.59 | X13: =Лист1!CD9 -> 625839.13 | Y13: =Лист1!AR9 -> 15840.69 | Z13: =Лист1!O9 -> 7162.25 | AA13: =Лист1!DS9 -> 771824.63 | AB13: =Лист1!ES9 -> 722.76 | AC13: =Лист1!Y9 -> 19352.03 | AD13: =Лист1!AW9+Лист1!AY9+Лист1!BA9 -> 442655.15 | AE13: =Лист1!FK9 -> 9040.72 | AF13: =Лист1!AJ9 -> 60051.89 | AG13: =Лист1!AA9 -> 9883.96 | AH13: =Лист1!GE9+Лист1!GG9 -> 4453.4 | AI13: =Лист1!EW9 -> 3421.57 | AJ13: =Лист1!AH9 -> 387654.72 | AK13: =Лист1!FP9 -> 32733.01 | AL13: =Лист1!EO9-Лист1!EQ9 -> 2250.89 | AM13: =Лист1!FS9 -> 103843.78 | AN13: =Лист1!CF9+Лист1!CH9 -> 13745.09 | AO13: =Лист1!S9+Лист1!U9 -> 16740.89 | AP13: =Лист1!CJ9 -> 107324.55 | AQ13: =Лист1!CL9 -> 51897.08 | AR13: =Лист1!CP9 -> 37773.27 | AS13: =Лист1!CN9 -> 130026.44 | AT13: =Лист1!CX9 -> 22563.58 | AU13: =Лист1!CR9 -> 8053.61 | AV13: =Лист1!CV9 -> 7179.43 | AW13: =Лист1!CT9 -> 105671.73 | AX13: =Лист1!DQ9 -> 15180.3 | AY13: =Лист1!DM9+Лист1!DO9 -> 245687.7 | AZ13: =Лист1!FZ9 -> 109775.12 | BA13: =Лист1!DG9 -> 4296.56 | BB13: =Лист1!BE9 -> 12094.93 | BC13: =Лист1!AF9 -> 5939.48 | BD13: =Лист1!CZ9 -> 7797.14 | BE13: =Лист1!EF9 -> 334202.91 | BF13: =Лист1!EB9 -> 9179.72 | BG13: =Лист1!DX9+Лист1!DZ9 -> 67315.63 | BH13: =Лист1!ED9 -> 6501.91 | BI13: =Лист1!EJ9 -> 10566.81 | BJ13: =Лист1!EH9 -> 20127.31 | BK13: 6895738.27
A14: 8 | B14: =паспорт!S20 -> 37.7437 | C14: =Лист1!AL10+Лист1!AN10+Лист1!AP10 -> 1449939.24 | D14: =Лист1!EU10 -> 3620.98 | E14: =Лист1!BC10 -> 124646.88 | F14: =Лист1!G10 -> 259807.22 | G14: =Лист1!BI10 -> 11451.3 | H14: =Лист1!DK10 -> 2536.69 | I14: =Лист1!DE10 -> 188049.66 | J14: =Лист1!BY10+Лист1!W10 -> 121571.08 | K14: =Лист1!BG10 -> 4166.48 | L14: =Лист1!BQ10 -> 4314.15 | M14: =Лист1!Q10 -> 9119.1 | N14: =Лист1!BM10 -> 5959.45 | O14: =Лист1!K10 -> 700255.06 | P14: 0 | Q14: =Лист1!FA10 -> 13677.33 | R14: =Лист1!DI10 -> 15894.7 | S14: =Лист1!BK10 -> 6358.49 | T14: =Лист1!FD10+Лист1!FF10 -> 85760.5 | U14: =Лист1!BS10 -> 78890.03 | V14: =Лист1!BU10+Лист1!BW10 -> 92952.6 | W14: =Лист1!BO10 -> 51994.74 | X14: =Лист1!CD10 -> 658290.25 | Y14: =Лист1!AR10 -> 16968.07 | Z14: =Лист1!O10 -> 7500.35 | AA14: =Лист1!DS10 -> 824243.13 | AB14: =Лист1!ES10 -> 457.56 | AC14: =Лист1!Y10 -> 20388.16 | AD14: =Лист1!AW10+Лист1!AY10+Лист1!BA10 -> 461795.52 | AE14: =Лист1!FK10 -> 10292.74 | AF14: =Лист1!AJ10 -> 62475.34 | AG14: =Лист1!AA10 -> 10574.35 | AH14: =Лист1!GE10+Лист1!GG10 -> 3405.11 | AI14: =Лист1!EW10 -> 3483.87 | AJ14: =Лист1!AH10 -> 412009.25 | AK14: =Лист1!FP10 -> 35295.93 | AL14: =Лист1!EO10-Лист1!EQ10 -> 3046.33 | AM14: =Лист1!FS10 -> 36263.18 | AN14: =Лист1!CF10+Лист1!CH10 -> 13604.79 | AO14: =Лист1!S10+Лист1!U10 -> 17743.64 | AP14: =Лист1!CJ10 -> 113803.55 | AQ14: =Лист1!CL10 -> 52757.14 | AR14: =Лист1!CP10 -> 38118.69 | AS14: =Лист1!CN10 -> 136632.56 | AT14: =Лист1!CX10 -> 23090.69 | AU14: =Лист1!CR10 -> 8535.98 | AV14: =Лист1!CV10 -> 7604.62 | AW14: =Лист1!CT10 -> 109260.51 | AX14: =Лист1!DQ10 -> 15994.3 | AY14: =Лист1!DM10+Лист1!DO10 -> 248018.9 | AZ14: =Лист1!FZ10 -> 126175.06 | BA14: =Лист1!DG10 -> 4592.56 | BB14: =Лист1!BE10 -> 12934 | BC14: =Лист1!AF10 -> 6292.15 | BD14: =Лист1!CZ10 -> 8538.38 | BE14: =Лист1!EF10 -> 354245.34 | BF14: =Лист1!EB10 -> 9664.64 | BG14: =Лист1!DX10+Лист1!DZ10 -> 70600.77 | BH14: =Лист1!ED10 -> 6931.18 | BI14: =Лист1!EJ10 -> 11118.05 | BJ14: =Лист1!EH10 -> 21491.1 | BK14: 7215203.42
A15: 9 | B15: =паспорт!S21 -> 37.7437 | C15: =Лист1!AL11+Лист1!AN11+Лист1!AP11 -> 1495869.27 | D15: =Лист1!EU11 -> 3430.02 | E15: =Лист1!BC11 -> 140911.86 | F15: =Лист1!G11 -> 257800.8 | G15: =Лист1!BI11 -> 10166.94 | H15: =Лист1!DK11 -> 2497.6 | I15: =Лист1!DE11 -> 182721.53 | J15: =Лист1!BY11+Лист1!W11 -> 119679.5 | K15: =Лист1!BG11 -> 4221.24 | L15: =Лист1!BQ11 -> 4268.23 | M15: =Лист1!Q11 -> 8950.08 | N15: =Лист1!BM11 -> 5864.57 | O15: =Лист1!K11 -> 674739.69 | P15: 0 | Q15: =Лист1!FA11 -> 12810.51 | R15: =Лист1!DI11 -> 14781.7 | S15: =Лист1!BK11 -> 6083.09 | T15: =Лист1!FD11+Лист1!FF11 -> 57323.46 | U15: =Лист1!BS11 -> 76779.9 | V15: =Лист1!BU11+Лист1!BW11 -> 0 | W15: =Лист1!BO11 -> 50509.53 | X15: =Лист1!CD11 -> 647934.25 | Y15: =Лист1!AR11 -> 16908.59 | Z15: =Лист1!O11 -> 7468.08 | AA15: =Лист1!DS11 -> 806750.38 | AB15: =Лист1!ES11 -> 775.81 | AC15: =Лист1!Y11 -> 18750.73 | AD15: =Лист1!AW11+Лист1!AY11+Лист1!BA11 -> 460078.55 | AE15: =Лист1!FK11 -> 10422.08 | AF15: =Лист1!AJ11 -> 62392.67 | AG15: =Лист1!AA11 -> 10561.97 | AH15: =Лист1!GE11+Лист1!GG11 -> 4694.11 | AI15: =Лист1!EW11 -> 3279.1 | AJ15: =Лист1!AH11 -> 411995.72 | AK15: =Лист1!FP11 -> 36316.42 | AL15: =Лист1!EO11-Лист1!EQ11 -> 2551.07 | AM15: =Лист1!FS11 -> 19258.02 | AN15: =Лист1!CF11+Лист1!CH11 -> 12102.71 | AO15: =Лист1!S11+Лист1!U11 -> 17220.23 | AP15: =Лист1!CJ11 -> 111604.79 | AQ15: =Лист1!CL11 -> 52552.38 | AR15: =Лист1!CP11 -> 37277.59 | AS15: =Лист1!CN11 -> 134404.05 | AT15: =Лист1!CX11 -> 22442.08 | AU15: =Лист1!CR11 -> 8552.05 | AV15: =Лист1!CV11 -> 7553.07 | AW15: =Лист1!CT11 -> 109803.91 | AX15: =Лист1!DQ11 -> 15593.8 | AY15: =Лист1!DM11+Лист1!DO11 -> 57843.61 | AZ15: =Лист1!FZ11 -> 122398.23 | BA15: =Лист1!DG11 -> 4541.81 | BB15: =Лист1!BE11 -> 12814.47 | BC15: =Лист1!AF11 -> 6195.83 | BD15: =Лист1!CZ11 -> 8810.43 | BE15: =Лист1!EF11 -> 350379.06 | BF15: =Лист1!EB11 -> 9343.89 | BG15: =Лист1!DX11+Лист1!DZ11 -> 69934.56 | BH15: =Лист1!ED11 -> 6838.53 | BI15: =Лист1!EJ11 -> 11008.69 | BJ15: =Лист1!EH11 -> 21091.24 | BK15: 6859854.08
A16: 10 | B16: =паспорт!S22 -> 37.7437 | C16: =Лист1!AL12+Лист1!AN12+Лист1!AP12 -> 1345634.85 | D16: =Лист1!EU12 -> 3056.78 | E16: =Лист1!BC12 -> 120491.2 | F16: =Лист1!G12 -> 252479.34 | G16: =Лист1!BI12 -> 9170.91 | H16: =Лист1!DK12 -> 2347.16 | I16: =Лист1!DE12 -> 170924.52 | J16: =Лист1!BY12+Лист1!W12 -> 110139.56 | K16: =Лист1!BG12 -> 4123.53 | L16: =Лист1!BQ12 -> 3916.94 | M16: =Лист1!Q12 -> 8742.17 | N16: =Лист1!BM12 -> 5510.73 | O16: =Лист1!K12 -> 639289.13 | P16: 0 | Q16: =Лист1!FA12 -> 12004.94 | R16: =Лист1!DI12 -> 14012.61 | S16: =Лист1!BK12 -> 5972.09 | T16: =Лист1!FD12+Лист1!FF12 -> 61350.63 | U16: =Лист1!BS12 -> 73774.38 | V16: =Лист1!BU12+Лист1!BW12 -> 9814.53 | W16: =Лист1!BO12 -> 47765.77 | X16: =Лист1!CD12 -> 631906.94 | Y16: =Лист1!AR12 -> 15990.79 | Z16: =Лист1!O12 -> 7266.97 | AA16: =Лист1!DS12 -> 753400.56 | AB16: =Лист1!ES12 -> 520.14 | AC16: =Лист1!Y12 -> 17608.2 | AD16: =Лист1!AW12+Лист1!AY12+Лист1!BA12 -> 443561.99 | AE16: =Лист1!FK12 -> 7384.39 | AF16: =Лист1!AJ12 -> 58658.45 | AG16: =Лист1!AA12 -> 10175.59 | AH16: =Лист1!GE12+Лист1!GG12 -> 1307 | AI16: =Лист1!EW12 -> 3676.88 | AJ16: =Лист1!AH12 -> 379930.22 | AK16: =Лист1!FP12 -> 33244.33 | AL16: =Лист1!EO12-Лист1!EQ12 -> 1926.8 | AM16: =Лист1!FS12 -> 4013.37 | AN16: =Лист1!CF12+Лист1!CH12 -> 12214.41 | AO16: =Лист1!S12+Лист1!U12 -> 16618.41 | AP16: =Лист1!CJ12 -> 107779.89 | AQ16: =Лист1!CL12 -> 55013.14 | AR16: =Лист1!CP12 -> 37255.05 | AS16: =Лист1!CN12 -> 134260.75 | AT16: =Лист1!CX12 -> 22594.11 | AU16: =Лист1!CR12 -> 8584.62 | AV16: =Лист1!CV12 -> 7533 | AW16: =Лист1!CT12 -> 109758.04 | AX16: =Лист1!DQ12 -> 15000.22 | AY16: =Лист1!DM12+Лист1!DO12 -> 53131.56 | AZ16: =Лист1!FZ12 -> 106749.32 | BA16: =Лист1!DG12 -> 4322.84 | BB16: =Лист1!BE12 -> 11723.13 | BC16: =Лист1!AF12 -> 5840.92 | BD16: =Лист1!CZ12 -> 8806.75 | BE16: =Лист1!EF12 -> 324903.09 | BF16: =Лист1!EB12 -> 8880.15 | BG16: =Лист1!DX12+Лист1!DZ12 -> 66937.95 | BH16: =Лист1!ED12 -> 6280.07 | BI16: =Лист1!EJ12 -> 10395.37 | BJ16: =Лист1!EH12 -> 19842.46 | BK16: 6425519.64
A17: 11 | B17: =паспорт!S23 -> 37.7437 | C17: =Лист1!AL13+Лист1!AN13+Лист1!AP13 -> 1194421.68 | D17: =Лист1!EU13 -> 1631.93 | E17: =Лист1!BC13 -> 127628.23 | F17: =Лист1!G13 -> 231893.03 | G17: =Лист1!BI13 -> 8929.79 | H17: =Лист1!DK13 -> 2271.05 | I17: =Лист1!DE13 -> 151513.19 | J17: =Лист1!BY13+Лист1!W13 -> 104271.41 | K17: =Лист1!BG13 -> 3899.41 | L17: =Лист1!BQ13 -> 3664.4 | M17: =Лист1!Q13 -> 8249.64 | N17: =Лист1!BM13 -> 5221.21 | O17: =Лист1!K13 -> 598220.06 | P17: 0 | Q17: =Лист1!FA13 -> 7304.88 | R17: =Лист1!DI13 -> 12232.95 | S17: =Лист1!BK13 -> 5620.7 | T17: =Лист1!FD13+Лист1!FF13 -> 11933.33 | U17: =Лист1!BS13 -> 68578.48 | V17: =Лист1!BU13+Лист1!BW13 -> 0 | W17: =Лист1!BO13 -> 44590.27 | X17: =Лист1!CD13 -> 560364.5 | Y17: =Лист1!AR13 -> 14651.49 | Z17: =Лист1!O13 -> 6951.33 | AA17: =Лист1!DS13 -> 688754.69 | AB17: =Лист1!ES13 -> 176.95 | AC17: =Лист1!Y13 -> 15605.89 | AD17: =Лист1!AW13+Лист1!AY13+Лист1!BA13 -> 395682.76 | AE17: =Лист1!FK13 -> 6000.08 | AF17: =Лист1!AJ13 -> 56747.17 | AG17: =Лист1!AA13 -> 9432.99 | AH17: =Лист1!GE13+Лист1!GG13 -> 1432.8 | AI17: =Лист1!EW13 -> 2996.81 | AJ17: =Лист1!AH13 -> 336770.22 | AK17: =Лист1!FP13 -> 21350.54 | AL17: =Лист1!EO13-Лист1!EQ13 -> 361.79 | AM17: =Лист1!FS13 -> 45568.17 | AN17: =Лист1!CF13+Лист1!CH13 -> 13757.39 | AO17: =Лист1!S13+Лист1!U13 -> 15376.45 | AP17: =Лист1!CJ13 -> 96853.23 | AQ17: =Лист1!CL13 -> 55981.57 | AR17: =Лист1!CP13 -> 34663.02 | AS17: =Лист1!CN13 -> 126573.33 | AT17: =Лист1!CX13 -> 21217.04 | AU17: =Лист1!CR13 -> 8460.04 | AV17: =Лист1!CV13 -> 7210.81 | AW17: =Лист1!CT13 -> 104915.02 | AX17: =Лист1!DQ13 -> 14199.63 | AY17: =Лист1!DM13+Лист1!DO13 -> 12260.17 | AZ17: =Лист1!FZ13 -> 117351.54 | BA17: =Лист1!DG13 -> 4009.99 | BB17: =Лист1!BE13 -> 11069.56 | BC17: =Лист1!AF13 -> 5412.55 | BD17: =Лист1!CZ13 -> 8373.05 | BE17: =Лист1!EF13 -> 287253.66 | BF17: =Лист1!EB13 -> 7986.8 | BG17: =Лист1!DX13+Лист1!DZ13 -> 60147.55 | BH17: =Лист1!ED13 -> 5477.79 | BI17: =Лист1!EJ13 -> 9286.25 | BJ17: =Лист1!EH13 -> 17753.46 | BK17: 5800513.72
A18: 12 | B18: =паспорт!S24 -> 37.7437 | C18: =Лист1!AL14+Лист1!AN14+Лист1!AP14 -> 1197380.48 | D18: =Лист1!EU14 -> 1213.1 | E18: =Лист1!BC14 -> 106932.13 | F18: =Лист1!G14 -> 225152.02 | G18: =Лист1!BI14 -> 7763.3 | H18: =Лист1!DK14 -> 2170.09 | I18: =Лист1!DE14 -> 143172.14 | J18: =Лист1!BY14+Лист1!W14 -> 97202.93 | K18: =Лист1!BG14 -> 3776.35 | L18: =Лист1!BQ14 -> 3285.64 | M18: =Лист1!Q14 -> 7772.87 | N18: =Лист1!BM14 -> 5167.06 | O18: =Лист1!K14 -> 564405.19 | P18: 0 | Q18: =Лист1!FA14 -> 5948.52 | R18: =Лист1!DI14 -> 11334.82 | S18: =Лист1!BK14 -> 5617.19 | T18: =Лист1!FD14+Лист1!FF14 -> 11746.07 | U18: =Лист1!BS14 -> 65983.45 | V18: =Лист1!BU14+Лист1!BW14 -> 0 | W18: =Лист1!BO14 -> 43646.95 | X18: =Лист1!CD14 -> 540631.44 | Y18: =Лист1!AR14 -> 14558.95 | Z18: =Лист1!O14 -> 6624.05 | AA18: =Лист1!DS14 -> 658447.25 | AB18: =Лист1!ES14 -> 118.24 | AC18: =Лист1!Y14 -> 15287.58 | AD18: =Лист1!AW14+Лист1!AY14+Лист1!BA14 -> 387869.56 | AE18: =Лист1!FK14 -> 4690.85 | AF18: =Лист1!AJ14 -> 53022.32 | AG18: =Лист1!AA14 -> 9147.42 | AH18: =Лист1!GE14+Лист1!GG14 -> 1298.21 | AI18: =Лист1!EW14 -> 2500.86 | AJ18: =Лист1!AH14 -> 330498.41 | AK18: =Лист1!FP14 -> 17529.5 | AL18: =Лист1!EO14-Лист1!EQ14 -> 487.73 | AM18: =Лист1!FS14 -> 34068.24 | AN18: =Лист1!CF14+Лист1!CH14 -> 11972.75 | AO18: =Лист1!S14+Лист1!U14 -> 14363.53 | AP18: =Лист1!CJ14 -> 91374.09 | AQ18: =Лист1!CL14 -> 54107.1 | AR18: =Лист1!CP14 -> 33199.61 | AS18: =Лист1!CN14 -> 119275.54 | AT18: =Лист1!CX14 -> 19517.28 | AU18: =Лист1!CR14 -> 8014.7 | AV18: =Лист1!CV14 -> 6658.3 | AW18: =Лист1!CT14 -> 99964.75 | AX18: =Лист1!DQ14 -> 13598.14 | AY18: =Лист1!DM14+Лист1!DO14 -> 14607.7 | AZ18: =Лист1!FZ14 -> 112512.53 | BA18: =Лист1!DG14 -> 3888.93 | BB18: =Лист1!BE14 -> 10898.74 | BC18: =Лист1!AF14 -> 5108.01 | BD18: =Лист1!CZ14 -> 7801.83 | BE18: =Лист1!EF14 -> 273531.25 | BF18: =Лист1!EB14 -> 7687.84 | BG18: =Лист1!DX14+Лист1!DZ14 -> 57397.21 | BH18: =Лист1!ED14 -> 5208.03 | BI18: =Лист1!EJ14 -> 8690.5 | BJ18: =Лист1!EH14 -> 16434.5 | BK18: 5582263.77
A19: 13 | B19: =паспорт!S25 -> 37.7437 | C19: =Лист1!AL15+Лист1!AN15+Лист1!AP15 -> 1083804.94 | D19: =Лист1!EU15 -> 2448.83 | E19: =Лист1!BC15 -> 121188.92 | F19: =Лист1!G15 -> 215771.44 | G19: =Лист1!BI15 -> 8611.35 | H19: =Лист1!DK15 -> 2056.79 | I19: =Лист1!DE15 -> 138933.84 | J19: =Лист1!BY15+Лист1!W15 -> 93028.29 | K19: =Лист1!BG15 -> 3516.9 | L19: =Лист1!BQ15 -> 3237.14 | M19: =Лист1!Q15 -> 7303.94 | N19: =Лист1!BM15 -> 4946.99 | O19: =Лист1!K15 -> 547906.94 | P19: 0 | Q19: =Лист1!FA15 -> 9669.47 | R19: =Лист1!DI15 -> 11834.47 | S19: =Лист1!BK15 -> 5320.04 | T19: =Лист1!FD15+Лист1!FF15 -> 46254.68 | U19: =Лист1!BS15 -> 63170.62 | V19: =Лист1!BU15+Лист1!BW15 -> 155471.91 | W19: =Лист1!BO15 -> 40359.23 | X19: =Лист1!CD15 -> 534012.25 | Y19: =Лист1!AR15 -> 13618.47 | Z19: =Лист1!O15 -> 6240.06 | AA19: =Лист1!DS15 -> 641269.19 | AB19: =Лист1!ES15 -> 350.55 | AC19: =Лист1!Y15 -> 14565.97 | AD19: =Лист1!AW15+Лист1!AY15+Лист1!BA15 -> 367355.56 | AE19: =Лист1!FK15 -> 11390.14 | AF19: =Лист1!AJ15 -> 51317.14 | AG19: =Лист1!AA15 -> 8503.49 | AH19: =Лист1!GE15+Лист1!GG15 -> 1297.62 | AI19: =Лист1!EW15 -> 2521.99 | AJ19: =Лист1!AH15 -> 320104.19 | AK19: =Лист1!FP15 -> 25282.26 | AL19: =Лист1!EO15-Лист1!EQ15 -> 1646.86 | AM19: =Лист1!FS15 -> 60257.66 | AN19: =Лист1!CF15+Лист1!CH15 -> 8673.34 | AO19: =Лист1!S15+Лист1!U15 -> 13974.46 | AP19: =Лист1!CJ15 -> 89322.27 | AQ19: =Лист1!CL15 -> 53321.46 | AR19: =Лист1!CP15 -> 31590.76 | AS19: =Лист1!CN15 -> 114347.3 | AT19: =Лист1!CX15 -> 18904.54 | AU19: =Лист1!CR15 -> 7520.41 | AV19: =Лист1!CV15 -> 6378.97 | AW19: =Лист1!CT15 -> 92069.98 | AX19: =Лист1!DQ15 -> 13045.64 | AY19: =Лист1!DM15+Лист1!DO15 -> 38955.65 | AZ19: =Лист1!FZ15 -> 117195.34 | BA19: =Лист1!DG15 -> 3685.49 | BB19: =Лист1!BE15 -> 9987.3 | BC19: =Лист1!AF15 -> 4984.09 | BD19: =Лист1!CZ15 -> 7477.21 | BE19: =Лист1!EF15 -> 265832.16 | BF19: =Лист1!EB15 -> 7555.5 | BG19: =Лист1!DX15+Лист1!DZ15 -> 56768.2 | BH19: =Лист1!ED15 -> 5079.85 | BI19: =Лист1!EJ15 -> 8653.4 | BJ19: =Лист1!EH15 -> 16442.27 | BK19: 5616335.72
A20: 14 | B20: =паспорт!S26 -> 37.7437 | C20: =Лист1!AL16+Лист1!AN16+Лист1!AP16 -> 1080838.73 | D20: =Лист1!EU16 -> 2546.08 | E20: =Лист1!BC16 -> 123800.66 | F20: =Лист1!G16 -> 216336.3 | G20: =Лист1!BI16 -> 9586.11 | H20: =Лист1!DK16 -> 2082.83 | I20: =Лист1!DE16 -> 134597.91 | J20: =Лист1!BY16+Лист1!W16 -> 97677.8 | K20: =Лист1!BG16 -> 3552.52 | L20: =Лист1!BQ16 -> 3146.7 | M20: =Лист1!Q16 -> 7409.36 | N20: =Лист1!BM16 -> 4989.22 | O20: =Лист1!K16 -> 554643.13 | P20: 0 | Q20: =Лист1!FA16 -> 11036.35 | R20: =Лист1!DI16 -> 11544.26 | S20: =Лист1!BK16 -> 5528.04 | T20: =Лист1!FD16+Лист1!FF16 -> 128238.68 | U20: =Лист1!BS16 -> 64258.78 | V20: =Лист1!BU16+Лист1!BW16 -> 78.5 | W20: =Лист1!BO16 -> 40721.82 | X20: =Лист1!CD16 -> 530873.63 | Y20: =Лист1!AR16 -> 13888.07 | Z20: =Лист1!O16 -> 6403.78 | AA20: =Лист1!DS16 -> 648565.94 | AB20: =Лист1!ES16 -> 742.05 | AC20: =Лист1!Y16 -> 15928.29 | AD20: =Лист1!AW16+Лист1!AY16+Лист1!BA16 -> 365985.16 | AE20: =Лист1!FK16 -> 8429.28 | AF20: =Лист1!AJ16 -> 50706.64 | AG20: =Лист1!AA16 -> 8895.57 | AH20: =Лист1!GE16+Лист1!GG16 -> 1287.97 | AI20: =Лист1!EW16 -> 2249.58 | AJ20: =Лист1!AH16 -> 327197.59 | AK20: =Лист1!FP16 -> 26646.19 | AL20: =Лист1!EO16-Лист1!EQ16 -> 3153.76 | AM20: =Лист1!FS16 -> 268.97 | AN20: =Лист1!CF16+Лист1!CH16 -> 17032.6 | AO20: =Лист1!S16+Лист1!U16 -> 14165.89 | AP20: =Лист1!CJ16 -> 91660.74 | AQ20: =Лист1!CL16 -> 51673.27 | AR20: =Лист1!CP16 -> 33192.86 | AS20: =Лист1!CN16 -> 116767.43 | AT20: =Лист1!CX16 -> 19328.13 | AU20: =Лист1!CR16 -> 7826.21 | AV20: =Лист1!CV16 -> 6601.59 | AW20: =Лист1!CT16 -> 91442.44 | AX20: =Лист1!DQ16 -> 13207.1 | AY20: =Лист1!DM16+Лист1!DO16 -> 78609.98 | AZ20: =Лист1!FZ16 -> 102700.65 | BA20: =Лист1!DG16 -> 3840.54 | BB20: =Лист1!BE16 -> 10328.87 | BC20: =Лист1!AF16 -> 5140.17 | BD20: =Лист1!CZ16 -> 7676.69 | BE20: =Лист1!EF16 -> 277665.06 | BF20: =Лист1!EB16 -> 8049.53 | BG20: =Лист1!DX16+Лист1!DZ16 -> 58457.16 | BH20: =Лист1!ED16 -> 5427.86 | BI20: =Лист1!EJ16 -> 9168.89 | BJ20: =Лист1!EH16 -> 17625.98 | BK20: 5561425.89
A21: 15 | B21: =паспорт!S27 -> 37.7437 | C21: =Лист1!AL17+Лист1!AN17+Лист1!AP17 -> 1030799.65 | D21: =Лист1!EU17 -> 4698.76 | E21: =Лист1!BC17 -> 116739.23 | F21: =Лист1!G17 -> 204268.17 | G21: =Лист1!BI17 -> 8546.51 | H21: =Лист1!DK17 -> 1964.47 | I21: =Лист1!DE17 -> 124581.37 | J21: =Лист1!BY17+Лист1!W17 -> 91893.77 | K21: =Лист1!BG17 -> 3301.51 | L21: =Лист1!BQ17 -> 3137.71 | M21: =Лист1!Q17 -> 7048.42 | N21: =Лист1!BM17 -> 4834.15 | O21: =Лист1!K17 -> 521264.03 | P21: 0 | Q21: =Лист1!FA17 -> 10879.66 | R21: =Лист1!DI17 -> 11442.23 | S21: =Лист1!BK17 -> 5392.64 | T21: =Лист1!FD17+Лист1!FF17 -> 130264.73 | U21: =Лист1!BS17 -> 60467.54 | V21: =Лист1!BU17+Лист1!BW17 -> 0 | W21: =Лист1!BO17 -> 38493.33 | X21: =Лист1!CD17 -> 489199 | Y21: =Лист1!AR17 -> 13119.33 | Z21: =Лист1!O17 -> 6070.87 | AA21: =Лист1!DS17 -> 592538.63 | AB21: =Лист1!ES17 -> 427.06 | AC21: =Лист1!Y17 -> 14278.84 | AD21: =Лист1!AW17+Лист1!AY17+Лист1!BA17 -> 343314.4 | AE21: =Лист1!FK17 -> 4813.43 | AF21: =Лист1!AJ17 -> 49570.03 | AG21: =Лист1!AA17 -> 8414.1 | AH21: =Лист1!GE17+Лист1!GG17 -> 1222.21 | AI21: =Лист1!EW17 -> 2001.21 | AJ21: =Лист1!AH17 -> 298273.06 | AK21: =Лист1!FP17 -> 22802.01 | AL21: =Лист1!EO17-Лист1!EQ17 -> 1943.57 | AM21: =Лист1!FS17 -> 3838.99 | AN21: =Лист1!CF17+Лист1!CH17 -> 12421.54 | AO21: =Лист1!S17+Лист1!U17 -> 13399.14 | AP21: =Лист1!CJ17 -> 85406.6 | AQ21: =Лист1!CL17 -> 49052.49 | AR21: =Лист1!CP17 -> 29276.04 | AS21: =Лист1!CN17 -> 108639.93 | AT21: =Лист1!CX17 -> 17525.29 | AU21: =Лист1!CR17 -> 7561.86 | AV21: =Лист1!CV17 -> 6201.94 | AW21: =Лист1!CT17 -> 83875.08 | AX21: =Лист1!DQ17 -> 12596.76 | AY21: =Лист1!DM17+Лист1!DO17 -> 12565.29 | AZ21: =Лист1!FZ17 -> 108764.16 | BA21: =Лист1!DG17 -> 3653.11 | BB21: =Лист1!BE17 -> 9946.81 | BC21: =Лист1!AF17 -> 4939.92 | BD21: =Лист1!CZ17 -> 7201.82 | BE21: =Лист1!EF17 -> 267355.16 | BF21: =Лист1!EB17 -> 7676.31 | BG21: =Лист1!DX17+Лист1!DZ17 -> 55370.9 | BH21: =Лист1!ED17 -> 5303.73 | BI21: =Лист1!EJ17 -> 8680.68 | BJ21: =Лист1!EH17 -> 16576.8 | BK21: 5165835.98
A22: 16 | B22: =паспорт!S28 -> 37.6894 | C22: =Лист1!AL18+Лист1!AN18+Лист1!AP18 -> 1158614.12 | D22: =Лист1!EU18 -> 2648.03 | E22: =Лист1!BC18 -> 125658.73 | F22: =Лист1!G18 -> 225707.81 | G22: =Лист1!BI18 -> 8643.66 | H22: =Лист1!DK18 -> 2058.36 | I22: =Лист1!DE18 -> 150093.36 | J22: =Лист1!BY18+Лист1!W18 -> 99440.91 | K22: =Лист1!BG18 -> 3726.19 | L22: =Лист1!BQ18 -> 3477.28 | M22: =Лист1!Q18 -> 7361.9 | N22: =Лист1!BM18 -> 5002.12 | O22: =Лист1!K18 -> 572864.06 | P22: 0 | Q22: =Лист1!FA18 -> 8855.14 | R22: =Лист1!DI18 -> 12627.02 | S22: =Лист1!BK18 -> 5480.75 | T22: =Лист1!FD18+Лист1!FF18 -> 117156.56 | U22: =Лист1!BS18 -> 67717.3 | V22: =Лист1!BU18+Лист1!BW18 -> 0 | W22: =Лист1!BO18 -> 42136.21 | X22: =Лист1!CD18 -> 565739.5 | Y22: =Лист1!AR18 -> 13801.03 | Z22: =Лист1!O18 -> 6252.89 | AA22: =Лист1!DS18 -> 674265.5 | AB22: =Лист1!ES18 -> 256.41 | AC22: =Лист1!Y18 -> 15717.97 | AD22: =Лист1!AW18+Лист1!AY18+Лист1!BA18 -> 380674.11 | AE22: =Лист1!FK18 -> 8657.52 | AF22: =Лист1!AJ18 -> 52467.02 | AG22: =Лист1!AA18 -> 8878.46 | AH22: =Лист1!GE18+Лист1!GG18 -> 1123.43 | AI22: =Лист1!EW18 -> 2229.63 | AJ22: =Лист1!AH18 -> 327348.44 | AK22: =Лист1!FP18 -> 27378.49 | AL22: =Лист1!EO18-Лист1!EQ18 -> 1682.56 | AM22: =Лист1!FS18 -> 303.9 | AN22: =Лист1!CF18+Лист1!CH18 -> 12209.54 | AO22: =Лист1!S18+Лист1!U18 -> 13968.95 | AP22: =Лист1!CJ18 -> 95412.16 | AQ22: =Лист1!CL18 -> 52148.35 | AR22: =Лист1!CP18 -> 34790.3 | AS22: =Лист1!CN18 -> 116064.92 | AT22: =Лист1!CX18 -> 20216.32 | AU22: =Лист1!CR18 -> 7535.09 | AV22: =Лист1!CV18 -> 6579.55 | AW22: =Лист1!CT18 -> 95831.8 | AX22: =Лист1!DQ18 -> 13027.76 | AY22: =Лист1!DM18+Лист1!DO18 -> 18670.63 | AZ22: =Лист1!FZ18 -> 105339.63 | BA22: =Лист1!DG18 -> 3721.22 | BB22: =Лист1!BE18 -> 10332.26 | BC22: =Лист1!AF18 -> 4972.33 | BD22: =Лист1!CZ18 -> 7396.64 | BE22: =Лист1!EF18 -> 274561.97 | BF22: =Лист1!EB18 -> 7727.5 | BG22: =Лист1!DX18+Лист1!DZ18 -> 56889.07 | BH22: =Лист1!ED18 -> 5395.75 | BI22: =Лист1!EJ18 -> 8786.8 | BJ22: =Лист1!EH18 -> 17076.28 | BK22: 5694701.19
A23: 17 | B23: =паспорт!S29 -> 37.6894 | C23: =Лист1!AL19+Лист1!AN19+Лист1!AP19 -> 1096991.74 | D23: =Лист1!EU19 -> 2483.75 | E23: =Лист1!BC19 -> 100250.21 | F23: =Лист1!G19 -> 222492.72 | G23: =Лист1!BI19 -> 7841.71 | H23: =Лист1!DK19 -> 2064.37 | I23: =Лист1!DE19 -> 137545.53 | J23: =Лист1!BY19+Лист1!W19 -> 97325.55 | K23: =Лист1!BG19 -> 3747.31 | L23: =Лист1!BQ19 -> 3500.3 | M23: =Лист1!Q19 -> 7647.57 | N23: =Лист1!BM19 -> 5255.06 | O23: =Лист1!K19 -> 544906.5 | P23: 0 | Q23: =Лист1!FA19 -> 8932.72 | R23: =Лист1!DI19 -> 11664.3 | S23: =Лист1!BK19 -> 5617.51 | T23: =Лист1!FD19+Лист1!FF19 -> 113706.33 | U23: =Лист1!BS19 -> 65369.77 | V23: =Лист1!BU19+Лист1!BW19 -> 0 | W23: =Лист1!BO19 -> 42703.61 | X23: =Лист1!CD19 -> 529134.38 | Y23: =Лист1!AR19 -> 14112.79 | Z23: =Лист1!O19 -> 6634.81 | AA23: =Лист1!DS19 -> 655817.5 | AB23: =Лист1!ES19 -> 462.99 | AC23: =Лист1!Y19 -> 15450.6 | AD23: =Лист1!AW19+Лист1!AY19+Лист1!BA19 -> 372158.18 | AE23: =Лист1!FK19 -> 6727.04 | AF23: =Лист1!AJ19 -> 51766.34 | AG23: =Лист1!AA19 -> 8865.26 | AH23: =Лист1!GE19+Лист1!GG19 -> 1319.17 | AI23: =Лист1!EW19 -> 2317.53 | AJ23: =Лист1!AH19 -> 325460.25 | AK23: =Лист1!FP19 -> 29198.98 | AL23: =Лист1!EO19-Лист1!EQ19 -> 1688.35 | AM23: =Лист1!FS19 -> 88244.7 | AN23: =Лист1!CF19+Лист1!CH19 -> 12821.9 | AO23: =Лист1!S19+Лист1!U19 -> 14041.25 | AP23: =Лист1!CJ19 -> 88359.89 | AQ23: =Лист1!CL19 -> 49819.97 | AR23: =Лист1!CP19 -> 33048.46 | AS23: =Лист1!CN19 -> 113134.46 | AT23: =Лист1!CX19 -> 19072.4 | AU23: =Лист1!CR19 -> 7704.5 | AV23: =Лист1!CV19 -> 6462.44 | AW23: =Лист1!CT19 -> 88077.62 | AX23: =Лист1!DQ19 -> 13376.93 | AY23: =Лист1!DM19+Лист1!DO19 -> 24352.3 | AZ23: =Лист1!FZ19 -> 116653.25 | BA23: =Лист1!DG19 -> 3847.7 | BB23: =Лист1!BE19 -> 10800.56 | BC23: =Лист1!AF19 -> 5137.85 | BD23: =Лист1!CZ19 -> 7313.9 | BE23: =Лист1!EF19 -> 282334.34 | BF23: =Лист1!EB19 -> 7952.62 | BG23: =Лист1!DX19+Лист1!DZ19 -> 58184.44 | BH23: =Лист1!ED19 -> 5630 | BI23: =Лист1!EJ19 -> 9064.07 | BJ23: =Лист1!EH19 -> 17749.04 | BK23: 5584345.32
A24: 18 | B24: =паспорт!S30 -> 37.6894 | C24: =Лист1!AL20+Лист1!AN20+Лист1!AP20 -> 994409.52 | D24: =Лист1!EU20 -> 1458.98 | E24: =Лист1!BC20 -> 110958.92 | F24: =Лист1!G20 -> 190670.97 | G24: =Лист1!BI20 -> 7404.81 | H24: =Лист1!DK20 -> 1952.08 | I24: =Лист1!DE20 -> 116184.25 | J24: =Лист1!BY20+Лист1!W20 -> 89251.61 | K24: =Лист1!BG20 -> 3429.47 | L24: =Лист1!BQ20 -> 3005.34 | M24: =Лист1!Q20 -> 6952.65 | N24: =Лист1!BM20 -> 4816.55 | O24: =Лист1!K20 -> 494740.97 | P24: 0 | Q24: =Лист1!FA20 -> 6448.21 | R24: =Лист1!DI20 -> 10264.04 | S24: =Лист1!BK20 -> 5118.71 | T24: =Лист1!FD20+Лист1!FF20 -> 6693.06 | U24: =Лист1!BS20 -> 58849.65 | V24: =Лист1!BU20+Лист1!BW20 -> 0 | W24: =Лист1!BO20 -> 37773.42 | X24: =Лист1!CD20 -> 464458 | Y24: =Лист1!AR20 -> 12908.02 | Z24: =Лист1!O20 -> 6075.35 | AA24: =Лист1!DS20 -> 613463.5 | AB24: =Лист1!ES20 -> 291.89 | AC24: =Лист1!Y20 -> 13628.32 | AD24: =Лист1!AW20+Лист1!AY20+Лист1!BA20 -> 328534.36 | AE24: =Лист1!FK20 -> 1064.6 | AF24: =Лист1!AJ20 -> 46401.99 | AG24: =Лист1!AA20 -> 8295.72 | AH24: =Лист1!GE20+Лист1!GG20 -> 1266.35 | AI24: =Лист1!EW20 -> 1868.24 | AJ24: =Лист1!AH20 -> 285885.59 | AK24: =Лист1!FP20 -> 17263.68 | AL24: =Лист1!EO20-Лист1!EQ20 -> 1392 | AM24: =Лист1!FS20 -> 2480.91 | AN24: =Лист1!CF20+Лист1!CH20 -> 10519.19 | AO24: =Лист1!S20+Лист1!U20 -> 12771.44 | AP24: =Лист1!CJ20 -> 78093.45 | AQ24: =Лист1!CL20 -> 49010.44 | AR24: =Лист1!CP20 -> 28438.28 | AS24: =Лист1!CN20 -> 105533.36 | AT24: =Лист1!CX20 -> 16603.24 | AU24: =Лист1!CR20 -> 7211.26 | AV24: =Лист1!CV20 -> 6010.36 | AW24: =Лист1!CT20 -> 81511.69 | AX24: =Лист1!DQ20 -> 12565.84 | AY24: =Лист1!DM20+Лист1!DO20 -> 9607.9 | AZ24: =Лист1!FZ20 -> 100269.6 | BA24: =Лист1!DG20 -> 3622.99 | BB24: =Лист1!BE20 -> 9530.01 | BC24: =Лист1!AF20 -> 4769.1 | BD24: =Лист1!CZ20 -> 6901.8 | BE24: =Лист1!EF20 -> 254805.92 | BF24: =Лист1!EB20 -> 7332.05 | BG24: =Лист1!DX20+Лист1!DZ20 -> 53000.72 | BH24: =Лист1!ED20 -> 5113.12 | BI24: =Лист1!EJ20 -> 8371.47 | BJ24: =Лист1!EH20 -> 16150.22 | BK24: 4843405.18
A25: 19 | B25: =паспорт!S31 -> 37.6894 | C25: =Лист1!AL21+Лист1!AN21+Лист1!AP21 -> 901483.23 | D25: =Лист1!EU21 -> 1270.72 | E25: =Лист1!BC21 -> 108414.84 | F25: =Лист1!G21 -> 177065.98 | G25: =Лист1!BI21 -> 6174.13 | H25: =Лист1!DK21 -> 1803.18 | I25: =Лист1!DE21 -> 108064.38 | J25: =Лист1!BY21+Лист1!W21 -> 88189.02 | K25: =Лист1!BG21 -> 3108.76 | L25: =Лист1!BQ21 -> 2409.29 | M25: =Лист1!Q21 -> 6285.55 | N25: =Лист1!BM21 -> 4345.44 | O25: =Лист1!K21 -> 455474.34 | P25: 0 | Q25: =Лист1!FA21 -> 5182.64 | R25: =Лист1!DI21 -> 9419.49 | S25: =Лист1!BK21 -> 4772.42 | T25: =Лист1!FD21+Лист1!FF21 -> 2094.61 | U25: =Лист1!BS21 -> 53861.75 | V25: =Лист1!BU21+Лист1!BW21 -> 0 | W25: =Лист1!BO21 -> 35356.35 | X25: =Лист1!CD21 -> 433655.56 | Y25: =Лист1!AR21 -> 11903.34 | Z25: =Лист1!O21 -> 5463.47 | AA25: =Лист1!DS21 -> 556225.75 | AB25: =Лист1!ES21 -> 209.35 | AC25: =Лист1!Y21 -> 12495.56 | AD25: =Лист1!AW21+Лист1!AY21+Лист1!BA21 -> 299528.98 | AE25: =Лист1!FK21 -> 7196.73 | AF25: =Лист1!AJ21 -> 45392.75 | AG25: =Лист1!AA21 -> 7723.47 | AH25: =Лист1!GE21+Лист1!GG21 -> 1255.76 | AI25: =Лист1!EW21 -> 1333.21 | AJ25: =Лист1!AH21 -> 261758.7 | AK25: =Лист1!FP21 -> 13680.66 | AL25: =Лист1!EO21-Лист1!EQ21 -> 1030.43 | AM25: =Лист1!FS21 -> 39332.63 | AN25: =Лист1!CF21+Лист1!CH21 -> 13643.3 | AO25: =Лист1!S21+Лист1!U21 -> 11856.46 | AP25: =Лист1!CJ21 -> 75351.3 | AQ25: =Лист1!CL21 -> 49744.2 | AR25: =Лист1!CP21 -> 25303.73 | AS25: =Лист1!CN21 -> 96475.63 | AT25: =Лист1!CX21 -> 14755.4 | AU25: =Лист1!CR21 -> 6741.05 | AV25: =Лист1!CV21 -> 5518.05 | AW25: =Лист1!CT21 -> 69794.88 | AX25: =Лист1!DQ21 -> 11849.94 | AY25: =Лист1!DM21+Лист1!DO21 -> 8800.59 | AZ25: =Лист1!FZ21 -> 106545.12 | BA25: =Лист1!DG21 -> 3274.21 | BB25: =Лист1!BE21 -> 8608.48 | BC25: =Лист1!AF21 -> 4303.38 | BD25: =Лист1!CZ21 -> 6293.53 | BE25: =Лист1!EF21 -> 239424.19 | BF25: =Лист1!EB21 -> 6876.13 | BG25: =Лист1!DX21+Лист1!DZ21 -> 49240.71 | BH25: =Лист1!ED21 -> 4684.97 | BI25: =Лист1!EJ21 -> 8020.47 | BJ25: =Лист1!EH21 -> 15017.99 | BK25: 4515086.18
A26: 20 | B26: =паспорт!S32 -> 37.6894 | C26: =Лист1!AL22+Лист1!AN22+Лист1!AP22 -> 883922.8 | D26: =Лист1!EU22 -> 2524.55 | E26: =Лист1!BC22 -> 101838.28 | F26: =Лист1!G22 -> 175326.84 | G26: =Лист1!BI22 -> 6000.42 | H26: =Лист1!DK22 -> 1658.34 | I26: =Лист1!DE22 -> 106817.87 | J26: =Лист1!BY22+Лист1!W22 -> 87985.93 | K26: =Лист1!BG22 -> 2924.16 | L26: =Лист1!BQ22 -> 2427.01 | M26: =Лист1!Q22 -> 5958.63 | N26: =Лист1!BM22 -> 4167.58 | O26: =Лист1!K22 -> 438670.75 | P26: 0 | Q26: =Лист1!FA22 -> 7819.31 | R26: =Лист1!DI22 -> 9273.89 | S26: =Лист1!BK22 -> 4437.58 | T26: =Лист1!FD22+Лист1!FF22 -> 103503.58 | U26: =Лист1!BS22 -> 49769.26 | V26: =Лист1!BU22+Лист1!BW22 -> 123479.15 | W26: =Лист1!BO22 -> 32383.44 | X26: =Лист1!CD22 -> 403819.75 | Y26: =Лист1!AR22 -> 10974.33 | Z26: =Лист1!O22 -> 5001.99 | AA26: =Лист1!DS22 -> 555207.75 | AB26: =Лист1!ES22 -> 373.77 | AC26: =Лист1!Y22 -> 12447.39 | AD26: =Лист1!AW22+Лист1!AY22+Лист1!BA22 -> 284227.56 | AE26: =Лист1!FK22 -> 6509.02 | AF26: =Лист1!AJ22 -> 43701.4 | AG26: =Лист1!AA22 -> 6992.36 | AH26: =Лист1!GE22+Лист1!GG22 -> 963.16 | AI26: =Лист1!EW22 -> 1718.58 | AJ26: =Лист1!AH22 -> 249002.06 | AK26: =Лист1!FP22 -> 21149.7 | AL26: =Лист1!EO22-Лист1!EQ22 -> 1548.96 | AM26: =Лист1!FS22 -> 51708.48 | AN26: =Лист1!CF22+Лист1!CH22 -> 12935.11 | AO26: =Лист1!S22+Лист1!U22 -> 10111.38 | AP26: =Лист1!CJ22 -> 69640.73 | AQ26: =Лист1!CL22 -> 45846.53 | AR26: =Лист1!CP22 -> 23186.86 | AS26: =Лист1!CN22 -> 86688.53 | AT26: =Лист1!CX22 -> 13486.65 | AU26: =Лист1!CR22 -> 5819.07 | AV26: =Лист1!CV22 -> 4784.63 | AW26: =Лист1!CT22 -> 63580.81 | AX26: =Лист1!DQ22 -> 11041.4 | AY26: =Лист1!DM22+Лист1!DO22 -> 8951.5 | AZ26: =Лист1!FZ22 -> 108473.1 | BA26: =Лист1!DG22 -> 3024.43 | BB26: =Лист1!BE22 -> 7910.34 | BC26: =Лист1!AF22 -> 3974.26 | BD26: =Лист1!CZ22 -> 5540.83 | BE26: =Лист1!EF22 -> 218279.78 | BF26: =Лист1!EB22 -> 6409.49 | BG26: =Лист1!DX22+Лист1!DZ22 -> 45508.05 | BH26: =Лист1!ED22 -> 4403.1 | BI26: =Лист1!EJ22 -> 7502.93 | BJ26: =Лист1!EH22 -> 14071.12 | BK26: 4587406.26
A27: 21 | B27: =паспорт!S33 -> 37.6894 | C27: =Лист1!AL23+Лист1!AN23+Лист1!AP23 -> 874440.43 | D27: =Лист1!EU23 -> 1916.4 | E27: =Лист1!BC23 -> 100836.41 | F27: =Лист1!G23 -> 174417.39 | G27: =Лист1!BI23 -> 6077.99 | H27: =Лист1!DK23 -> 1656.2 | I27: =Лист1!DE23 -> 102794.82 | J27: =Лист1!BY23+Лист1!W23 -> 81564.85 | K27: =Лист1!BG23 -> 2867.74 | L27: =Лист1!BQ23 -> 2340 | M27: =Лист1!Q23 -> 5972 | N27: =Лист1!BM23 -> 3953.17 | O27: =Лист1!K23 -> 443260.84 | P27: 0 | Q27: =Лист1!FA23 -> 8399.18 | R27: =Лист1!DI23 -> 8877.77 | S27: =Лист1!BK23 -> 4339.69 | T27: =Лист1!FD23+Лист1!FF23 -> 130485.06 | U27: =Лист1!BS23 -> 48345.3 | V27: =Лист1!BU23+Лист1!BW23 -> 26558 | W27: =Лист1!BO23 -> 31685.23 | X27: =Лист1!CD23 -> 406123.28 | Y27: =Лист1!AR23 -> 11094.34 | Z27: =Лист1!O23 -> 4999.87 | AA27: =Лист1!DS23 -> 536679.31 | AB27: =Лист1!ES23 -> 550.13 | AC27: =Лист1!Y23 -> 12165.91 | AD27: =Лист1!AW23+Лист1!AY23+Лист1!BA23 -> 276873.84 | AE27: =Лист1!FK23 -> 3810.48 | AF27: =Лист1!AJ23 -> 43553.54 | AG27: =Лист1!AA23 -> 7035.72 | AH27: =Лист1!GE23+Лист1!GG23 -> 0.09 | AI27: =Лист1!EW23 -> 2120.66 | AJ27: =Лист1!AH23 -> 252053.7 | AK27: =Лист1!FP23 -> 20222.11 | AL27: =Лист1!EO23-Лист1!EQ23 -> 2036.06 | AM27: =Лист1!FS23 -> 81527.74 | AN27: =Лист1!CF23+Лист1!CH23 -> 12209.93 | AO27: =Лист1!S23+Лист1!U23 -> 11421.55 | AP27: =Лист1!CJ23 -> 68035.3 | AQ27: =Лист1!CL23 -> 48514.03 | AR27: =Лист1!CP23 -> 24232.24 | AS27: =Лист1!CN23 -> 90337.98 | AT27: =Лист1!CX23 -> 14339.72 | AU27: =Лист1!CR23 -> 5557.7 | AV27: =Лист1!CV23 -> 4924.82 | AW27: =Лист1!CT23 -> 64596.6 | AX27: =Лист1!DQ23 -> 10783.65 | AY27: =Лист1!DM23+Лист1!DO23 -> 4024.01 | AZ27: =Лист1!FZ23 -> 101377.01 | BA27: =Лист1!DG23 -> 3078.19 | BB27: =Лист1!BE23 -> 7897.41 | BC27: =Лист1!AF23 -> 3999.56 | BD27: =Лист1!CZ23 -> 5896.31 | BE27: =Лист1!EF23 -> 214596.5 | BF27: =Лист1!EB23 -> 6407.35 | BG27: =Лист1!DX23+Лист1!DZ23 -> 45190.3 | BH27: =Лист1!ED23 -> 4337.69 | BI27: =Лист1!EJ23 -> 7583.67 | BJ27: =Лист1!EH23 -> 14028.45 | BK27: 4495005.22
A28: 22 | B28: =паспорт!S34 -> 37.6894 | C28: =Лист1!AL24+Лист1!AN24+Лист1!AP24 -> 838970.34 | D28: =Лист1!EU24 -> 1992.04 | E28: =Лист1!BC24 -> 97694.02 | F28: =Лист1!G24 -> 168407.34 | G28: =Лист1!BI24 -> 6521.35 | H28: =Лист1!DK24 -> 3062.6 | I28: =Лист1!DE24 -> 102911.37 | J28: =Лист1!BY24+Лист1!W24 -> 76668.61 | K28: =Лист1!BG24 -> 2880.27 | L28: =Лист1!BQ24 -> 2614.9 | M28: =Лист1!Q24 -> 5990.98 | N28: =Лист1!BM24 -> 4054.46 | O28: =Лист1!K24 -> 439643.31 | P28: 0 | Q28: =Лист1!FA24 -> 8715.5 | R28: =Лист1!DI24 -> 8917.3 | S28: =Лист1!BK24 -> 4471.85 | T28: =Лист1!FD24+Лист1!FF24 -> 152920.83 | U28: =Лист1!BS24 -> 50519.94 | V28: =Лист1!BU24+Лист1!BW24 -> 0 | W28: =Лист1!BO24 -> 31437.38 | X28: =Лист1!CD24 -> 407740.28 | Y28: =Лист1!AR24 -> 10987.72 | Z28: =Лист1!O24 -> 5051.48 | AA28: =Лист1!DS24 -> 552439.69 | AB28: =Лист1!ES24 -> 853.08 | AC28: =Лист1!Y24 -> 11788.11 | AD28: =Лист1!AW24+Лист1!AY24+Лист1!BA24 -> 273579.01 | AE28: =Лист1!FK24 -> 3412.11 | AF28: =Лист1!AJ24 -> 43305.87 | AG28: =Лист1!AA24 -> 7188.46 | AH28: =Лист1!GE24+Лист1!GG24 -> 1140.09 | AI28: =Лист1!EW24 -> 1966.69 | AJ28: =Лист1!AH24 -> 254192.77 | AK28: =Лист1!FP24 -> 19047.92 | AL28: =Лист1!EO24-Лист1!EQ24 -> 1825.09 | AM28: =Лист1!FS24 -> 99906.57 | AN28: =Лист1!CF24+Лист1!CH24 -> 7754.97 | AO28: =Лист1!S24+Лист1!U24 -> 10886.58 | AP28: =Лист1!CJ24 -> 71137.97 | AQ28: =Лист1!CL24 -> 49470.91 | AR28: =Лист1!CP24 -> 24817.56 | AS28: =Лист1!CN24 -> 91217.33 | AT28: =Лист1!CX24 -> 14700.74 | AU28: =Лист1!CR24 -> 6052.43 | AV28: =Лист1!CV24 -> 5051.24 | AW28: =Лист1!CT24 -> 64497.7 | AX28: =Лист1!DQ24 -> 10580.65 | AY28: =Лист1!DM24+Лист1!DO24 -> 0 | AZ28: =Лист1!FZ24 -> 111528.38 | BA28: =Лист1!DG24 -> 2988.78 | BB28: =Лист1!BE24 -> 7949.81 | BC28: =Лист1!AF24 -> 3980.07 | BD28: =Лист1!CZ24 -> 5849.99 | BE28: =Лист1!EF24 -> 209605.22 | BF28: =Лист1!EB24 -> 6274.16 | BG28: =Лист1!DX24+Лист1!DZ24 -> 44614.89 | BH28: =Лист1!ED24 -> 4222.17 | BI28: =Лист1!EJ24 -> 7366.89 | BJ28: =Лист1!EH24 -> 13417.69 | BK28: 4476785.46
A29: 23 | B29: =паспорт!S35 -> 37.6894 | C29: =Лист1!AL25+Лист1!AN25+Лист1!AP25 -> 828444.66 | D29: =Лист1!EU25 -> 2098.94 | E29: =Лист1!BC25 -> 103209.79 | F29: =Лист1!G25 -> 170906.19 | G29: =Лист1!BI25 -> 7142.9 | H29: =Лист1!DK25 -> 3442.81 | I29: =Лист1!DE25 -> 103318.35 | J29: =Лист1!BY25+Лист1!W25 -> 77735.05 | K29: =Лист1!BG25 -> 2852.89 | L29: =Лист1!BQ25 -> 2332.21 | M29: =Лист1!Q25 -> 6184.86 | N29: =Лист1!BM25 -> 4028.92 | O29: =Лист1!K25 -> 450537.94 | P29: 0 | Q29: =Лист1!FA25 -> 7763.06 | R29: =Лист1!DI25 -> 9378.75 | S29: =Лист1!BK25 -> 4502.94 | T29: =Лист1!FD25+Лист1!FF25 -> 117590.22 | U29: =Лист1!BS25 -> 50767.91 | V29: =Лист1!BU25+Лист1!BW25 -> 0 | W29: =Лист1!BO25 -> 32072.78 | X29: =Лист1!CD25 -> 410115.91 | Y29: =Лист1!AR25 -> 11299.44 | Z29: =Лист1!O25 -> 5084.3 | AA29: =Лист1!DS25 -> 548427.69 | AB29: =Лист1!ES25 -> 462.17 | AC29: =Лист1!Y25 -> 12276.57 | AD29: =Лист1!AW25+Лист1!AY25+Лист1!BA25 -> 279305.83 | AE29: =Лист1!FK25 -> 4492.01 | AF29: =Лист1!AJ25 -> 40493.46 | AG29: =Лист1!AA25 -> 7362.8 | AH29: =Лист1!GE25+Лист1!GG25 -> 1093.97 | AI29: =Лист1!EW25 -> 1835.79 | AJ29: =Лист1!AH25 -> 257401.33 | AK29: =Лист1!FP25 -> 19309.37 | AL29: =Лист1!EO25-Лист1!EQ25 -> 1658.42 | AM29: =Лист1!FS25 -> 40624.32 | AN29: =Лист1!CF25+Лист1!CH25 -> 11433.53 | AO29: =Лист1!S25+Лист1!U25 -> 11094.2 | AP29: =Лист1!CJ25 -> 69234 | AQ29: =Лист1!CL25 -> 42192.87 | AR29: =Лист1!CP25 -> 24391.84 | AS29: =Лист1!CN25 -> 91532.66 | AT29: =Лист1!CX25 -> 14387.92 | AU29: =Лист1!CR25 -> 6260.82 | AV29: =Лист1!CV25 -> 5139.73 | AW29: =Лист1!CT25 -> 65250.22 | AX29: =Лист1!DQ25 -> 10573.93 | AY29: =Лист1!DM25+Лист1!DO25 -> 2136.69 | AZ29: =Лист1!FZ25 -> 100012.16 | BA29: =Лист1!DG25 -> 3095.2 | BB29: =Лист1!BE25 -> 8223.34 | BC29: =Лист1!AF25 -> 4158.4 | BD29: =Лист1!CZ25 -> 5979.96 | BE29: =Лист1!EF25 -> 213479.77 | BF29: =Лист1!EB25 -> 6603.41 | BG29: =Лист1!DX25+Лист1!DZ25 -> 45354.29 | BH29: =Лист1!ED25 -> 4361.23 | BI29: =Лист1!EJ25 -> 7479.2 | BJ29: =Лист1!EH25 -> 13894.66 | BK29: 4391824.58
A30: 24 | B30: =паспорт!S36 -> 37.9702 | C30: =Лист1!AL26+Лист1!AN26+Лист1!AP26 -> 844439.23 | D30: =Лист1!EU26 -> 2150.69 | E30: =Лист1!BC26 -> 92311.58 | F30: =Лист1!G26 -> 157220.48 | G30: =Лист1!BI26 -> 4681.7 | H30: =Лист1!DK26 -> 3099.83 | I30: =Лист1!DE26 -> 88078.05 | J30: =Лист1!BY26+Лист1!W26 -> 70517.36 | K30: =Лист1!BG26 -> 2734.73 | L30: =Лист1!BQ26 -> 2059.93 | M30: =Лист1!Q26 -> 5623.87 | N30: =Лист1!BM26 -> 3937.65 | O30: =Лист1!K26 -> 394835.81 | P30: 0 | Q30: =Лист1!FA26 -> 7879.03 | R30: =Лист1!DI26 -> 8072.55 | S30: =Лист1!BK26 -> 4099.06 | T30: =Лист1!FD26+Лист1!FF26 -> 98923.49 | U30: =Лист1!BS26 -> 43890.94 | V30: =Лист1!BU26+Лист1!BW26 -> 5452.6 | W30: =Лист1!BO26 -> 29078 | X30: =Лист1!CD26 -> 356776.53 | Y30: =Лист1!AR26 -> 10244.5 | Z30: =Лист1!O26 -> 4684.76 | AA30: =Лист1!DS26 -> 483851.53 | AB30: =Лист1!ES26 -> 402 | AC30: =Лист1!Y26 -> 11219.7 | AD30: =Лист1!AW26+Лист1!AY26+Лист1!BA26 -> 241461.95 | AE30: =Лист1!FK26 -> 2341.03 | AF30: =Лист1!AJ26 -> 38732.39 | AG30: =Лист1!AA26 -> 6736.48 | AH30: =Лист1!GE26+Лист1!GG26 -> 1145.12 | AI30: =Лист1!EW26 -> 1852.1 | AJ30: =Лист1!AH26 -> 220529.31 | AK30: =Лист1!FP26 -> 18453.87 | AL30: =Лист1!EO26-Лист1!EQ26 -> 1625.97 | AM30: =Лист1!FS26 -> 5595.81 | AN30: =Лист1!CF26+Лист1!CH26 -> 13795.33 | AO30: =Лист1!S26+Лист1!U26 -> 9603.49 | AP30: =Лист1!CJ26 -> 57837.05 | AQ30: =Лист1!CL26 -> 31075.59 | AR30: =Лист1!CP26 -> 21373.71 | AS30: =Лист1!CN26 -> 85166.69 | AT30: =Лист1!CX26 -> 12268.52 | AU30: =Лист1!CR26 -> 5624.67 | AV30: =Лист1!CV26 -> 4789.15 | AW30: =Лист1!CT26 -> 61582.65 | AX30: =Лист1!DQ26 -> 9927.29 | AY30: =Лист1!DM26+Лист1!DO26 -> 37571.92 | AZ30: =Лист1!FZ26 -> 92020.65 | BA30: =Лист1!DG26 -> 2891.96 | BB30: =Лист1!BE26 -> 7619.14 | BC30: =Лист1!AF26 -> 3671.34 | BD30: =Лист1!CZ26 -> 5630.57 | BE30: =Лист1!EF26 -> 188907.34 | BF30: =Лист1!EB26 -> 6063.57 | BG30: =Лист1!DX26+Лист1!DZ26 -> 39780.78 | BH30: =Лист1!ED26 -> 3999.86 | BI30: =Лист1!EJ26 -> 6976.43 | BJ30: =Лист1!EH26 -> 12596.79 | BK30: 3995514.12
A31: 25 | B31: =паспорт!S37 -> 37.9702 | C31: =Лист1!AL27+Лист1!AN27+Лист1!AP27 -> 953836.54 | D31: =Лист1!EU27 -> 1151.95 | E31: =Лист1!BC27 -> 102575.6 | F31: =Лист1!G27 -> 177370.91 | G31: =Лист1!BI27 -> 7578.44 | H31: =Лист1!DK27 -> 2567.09 | I31: =Лист1!DE27 -> 106490.81 | J31: =Лист1!BY27+Лист1!W27 -> 80373.84 | K31: =Лист1!BG27 -> 2838.81 | L31: =Лист1!BQ27 -> 2453.81 | M31: =Лист1!Q27 -> 5785.5 | N31: =Лист1!BM27 -> 4114.48 | O31: =Лист1!K27 -> 464588.16 | P31: 0 | Q31: =Лист1!FA27 -> 6614.48 | R31: =Лист1!DI27 -> 9613.94 | S31: =Лист1!BK27 -> 4342.63 | T31: =Лист1!FD27+Лист1!FF27 -> 3406.31 | U31: =Лист1!BS27 -> 52187.5 | V31: =Лист1!BU27+Лист1!BW27 -> 0 | W31: =Лист1!BO27 -> 31672.44 | X31: =Лист1!CD27 -> 426625.91 | Y31: =Лист1!AR27 -> 10502.28 | Z31: =Лист1!O27 -> 4869.97 | AA31: =Лист1!DS27 -> 549342.19 | AB31: =Лист1!ES27 -> 147.76 | AC31: =Лист1!Y27 -> 12503.27 | AD31: =Лист1!AW27+Лист1!AY27+Лист1!BA27 -> 269615.13 | AE31: =Лист1!FK27 -> 1289.67 | AF31: =Лист1!AJ27 -> 43277.55 | AG31: =Лист1!AA27 -> 6936.28 | AH31: =Лист1!GE27+Лист1!GG27 -> 444.2 | AI31: =Лист1!EW27 -> 2135.66 | AJ31: =Лист1!AH27 -> 251635.08 | AK31: =Лист1!FP27 -> 11980.84 | AL31: =Лист1!EO27-Лист1!EQ27 -> 1659.32 | AM31: =Лист1!FS27 -> 39302.46 | AN31: =Лист1!CF27+Лист1!CH27 -> 16029.32 | AO31: =Лист1!S27+Лист1!U27 -> 11030.15 | AP31: =Лист1!CJ27 -> 70676.37 | AQ31: =Лист1!CL27 -> 38248.36 | AR31: =Лист1!CP27 -> 25427 | AS31: =Лист1!CN27 -> 90548.52 | AT31: =Лист1!CX27 -> 14664.34 | AU31: =Лист1!CR27 -> 5762.94 | AV31: =Лист1!CV27 -> 5093.39 | AW31: =Лист1!CT27 -> 64804.43 | AX31: =Лист1!DQ27 -> 10235.71 | AY31: =Лист1!DM27+Лист1!DO27 -> 113014.34 | AZ31: =Лист1!FZ27 -> 106434.78 | BA31: =Лист1!DG27 -> 3039.47 | BB31: =Лист1!BE27 -> 7886.08 | BC31: =Лист1!AF27 -> 3816.58 | BD31: =Лист1!CZ27 -> 5801.53 | BE31: =Лист1!EF27 -> 203892.44 | BF31: =Лист1!EB27 -> 6094.1 | BG31: =Лист1!DX27+Лист1!DZ27 -> 44620.14 | BH31: =Лист1!ED27 -> 4256.5 | BI31: =Лист1!EJ27 -> 7163.11 | BJ31: =Лист1!EH27 -> 13348.64 | BK31: 4523719.05
A32: 26 | B32: =паспорт!S38 -> 37.9702 | C32: =Лист1!AL28+Лист1!AN28+Лист1!AP28 -> 970680.53 | D32: =Лист1!EU28 -> 889.82 | E32: =Лист1!BC28 -> 101348.2 | F32: =Лист1!G28 -> 186230.7 | G32: =Лист1!BI28 -> 6150.28 | H32: =Лист1!DK28 -> 1656.28 | I32: =Лист1!DE28 -> 111099.6 | J32: =Лист1!BY28+Лист1!W28 -> 80493.53 | K32: =Лист1!BG28 -> 2970.59 | L32: =Лист1!BQ28 -> 2447.59 | M32: =Лист1!Q28 -> 6173.45 | N32: =Лист1!BM28 -> 4363.38 | O32: =Лист1!K28 -> 457504.56 | P32: 0 | Q32: =Лист1!FA28 -> 4806.79 | R32: =Лист1!DI28 -> 9808.42 | S32: =Лист1!BK28 -> 4583.8 | T32: =Лист1!FD28+Лист1!FF28 -> 1805.41 | U32: =Лист1!BS28 -> 55311.26 | V32: =Лист1!BU28+Лист1!BW28 -> 0 | W32: =Лист1!BO28 -> 33430.05 | X32: =Лист1!CD28 -> 439752.75 | Y32: =Лист1!AR28 -> 11154.66 | Z32: =Лист1!O28 -> 5131.74 | AA32: =Лист1!DS28 -> 558620.5 | AB32: =Лист1!ES28 -> 366 | AC32: =Лист1!Y28 -> 13308.81 | AD32: =Лист1!AW28+Лист1!AY28+Лист1!BA28 -> 287834.75 | AE32: =Лист1!FK28 -> 3886.61 | AF32: =Лист1!AJ28 -> 43973.46 | AG32: =Лист1!AA28 -> 7384.05 | AH32: =Лист1!GE28+Лист1!GG28 -> 0 | AI32: =Лист1!EW28 -> 1237.78 | AJ32: =Лист1!AH28 -> 259232.7 | AK32: =Лист1!FP28 -> 9345.51 | AL32: =Лист1!EO28-Лист1!EQ28 -> 1024.6 | AM32: =Лист1!FS28 -> 42066.18 | AN32: =Лист1!CF28+Лист1!CH28 -> 14075.11 | AO32: =Лист1!S28+Лист1!U28 -> 11351.75 | AP32: =Лист1!CJ28 -> 75583.03 | AQ32: =Лист1!CL28 -> 37606.71 | AR32: =Лист1!CP28 -> 26019.34 | AS32: =Лист1!CN28 -> 93327.55 | AT32: =Лист1!CX28 -> 15066.76 | AU32: =Лист1!CR28 -> 6049.97 | AV32: =Лист1!CV28 -> 5288.24 | AW32: =Лист1!CT28 -> 65759.44 | AX32: =Лист1!DQ28 -> 10748.09 | AY32: =Лист1!DM28+Лист1!DO28 -> 118342.62 | AZ32: =Лист1!FZ28 -> 108770.88 | BA32: =Лист1!DG28 -> 3216.14 | BB32: =Лист1!BE28 -> 8374.16 | BC32: =Лист1!AF28 -> 4088.48 | BD32: =Лист1!CZ28 -> 6029.92 | BE32: =Лист1!EF28 -> 216285.77 | BF32: =Лист1!EB28 -> 6694.84 | BG32: =Лист1!DX28+Лист1!DZ28 -> 46118.81 | BH32: =Лист1!ED28 -> 4392.54 | BI32: =Лист1!EJ28 -> 7494.69 | BJ32: =Лист1!EH28 -> 13933.13 | BK32: 4630692.31
A33: 27 | B33: =паспорт!S39 -> 37.9702 | C33: =Лист1!AL29+Лист1!AN29+Лист1!AP29 -> 930847.25 | D33: =Лист1!EU29 -> 2432.36 | E33: =Лист1!BC29 -> 97689.69 | F33: =Лист1!G29 -> 183347.16 | G33: =Лист1!BI29 -> 6436.06 | H33: =Лист1!DK29 -> 1732.36 | I33: =Лист1!DE29 -> 110467.31 | J33: =Лист1!BY29+Лист1!W29 -> 79956.48 | K33: =Лист1!BG29 -> 2994.95 | L33: =Лист1!BQ29 -> 2212.89 | M33: =Лист1!Q29 -> 6127.81 | N33: =Лист1!BM29 -> 4200.03 | O33: =Лист1!K29 -> 445391.44 | P33: 0 | Q33: =Лист1!FA29 -> 8483.94 | R33: =Лист1!DI29 -> 8897.49 | S33: =Лист1!BK29 -> 4442.42 | T33: =Лист1!FD29+Лист1!FF29 -> 29323.76 | U33: =Лист1!BS29 -> 53041.49 | V33: =Лист1!BU29+Лист1!BW29 -> 0 | W33: =Лист1!BO29 -> 32028.64 | X33: =Лист1!CD29 -> 421814.34 | Y33: =Лист1!AR29 -> 11114.44 | Z33: =Лист1!O29 -> 5146.43 | AA33: =Лист1!DS29 -> 541909.19 | AB33: =Лист1!ES29 -> 662.35 | AC33: =Лист1!Y29 -> 12397.86 | AD33: =Лист1!AW29+Лист1!AY29+Лист1!BA29 -> 282504.91 | AE33: =Лист1!FK29 -> 4531.06 | AF33: =Лист1!AJ29 -> 44071.67 | AG33: =Лист1!AA29 -> 7318.62 | AH33: =Лист1!GE29+Лист1!GG29 -> 0 | AI33: =Лист1!EW29 -> 1858.89 | AJ33: =Лист1!AH29 -> 263325.91 | AK33: =Лист1!FP29 -> 18581.08 | AL33: =Лист1!EO29-Лист1!EQ29 -> 1506.42 | AM33: =Лист1!FS29 -> 58215.19 | AN33: =Лист1!CF29+Лист1!CH29 -> 12026.55 | AO33: =Лист1!S29+Лист1!U29 -> 11026.88 | AP33: =Лист1!CJ29 -> 69500.48 | AQ33: =Лист1!CL29 -> 36795.05 | AR33: =Лист1!CP29 -> 24208.89 | AS33: =Лист1!CN29 -> 90714.39 | AT33: =Лист1!CX29 -> 13924.54 | AU33: =Лист1!CR29 -> 6140.34 | AV33: =Лист1!CV29 -> 5047.56 | AW33: =Лист1!CT29 -> 62628.09 | AX33: =Лист1!DQ29 -> 10559.35 | AY33: =Лист1!DM29+Лист1!DO29 -> 109307.88 | AZ33: =Лист1!FZ29 -> 110973.12 | BA33: =Лист1!DG29 -> 3194.78 | BB33: =Лист1!BE29 -> 8201.85 | BC33: =Лист1!AF29 -> 4085.75 | BD33: =Лист1!CZ29 -> 5862.77 | BE33: =Лист1!EF29 -> 211410.89 | BF33: =Лист1!EB29 -> 6461.78 | BG33: =Лист1!DX29+Лист1!DZ29 -> 44221.3 | BH33: =Лист1!ED29 -> 4304.8 | BI33: =Лист1!EJ29 -> 7367.93 | BJ33: =Лист1!EH29 -> 13497.03 | BK33: 4556473.89
A34: 28 | B34: =паспорт!S40 -> 37.9702 | C34: =Лист1!AL30+Лист1!AN30+Лист1!AP30 -> 895899.73 | D34: =Лист1!EU30 -> 2804.59 | E34: =Лист1!BC30 -> 87623.88 | F34: =Лист1!G30 -> 177381.72 | G34: =Лист1!BI30 -> 5599.89 | H34: =Лист1!DK30 -> 1615.58 | I34: =Лист1!DE30 -> 103476.46 | J34: =Лист1!BY30+Лист1!W30 -> 75209.34 | K34: =Лист1!BG30 -> 2708.38 | L34: =Лист1!BQ30 -> 2055.22 | M34: =Лист1!Q30 -> 5771.07 | N34: =Лист1!BM30 -> 3994.74 | O34: =Лист1!K30 -> 420990.59 | P34: 0 | Q34: =Лист1!FA30 -> 8795.59 | R34: =Лист1!DI30 -> 9010.56 | S34: =Лист1!BK30 -> 4165.68 | T34: =Лист1!FD30+Лист1!FF30 -> 55792.64 | U34: =Лист1!BS30 -> 47323.59 | V34: =Лист1!BU30+Лист1!BW30 -> 10896.75 | W34: =Лист1!BO30 -> 29944.59 | X34: =Лист1!CD30 -> 390165.94 | Y34: =Лист1!AR30 -> 10497.66 | Z34: =Лист1!O30 -> 4684.41 | AA34: =Лист1!DS30 -> 519245.09 | AB34: =Лист1!ES30 -> 405.31 | AC34: =Лист1!Y30 -> 11560.66 | AD34: =Лист1!AW30+Лист1!AY30+Лист1!BA30 -> 258774.27 | AE34: =Лист1!FK30 -> 635.61 | AF34: =Лист1!AJ30 -> 43245.32 | AG34: =Лист1!AA30 -> 6861.8 | AH34: =Лист1!GE30+Лист1!GG30 -> 0 | AI34: =Лист1!EW30 -> 1972.63 | AJ34: =Лист1!AH30 -> 239844.53 | AK34: =Лист1!FP30 -> 17427.6 | AL34: =Лист1!EO30-Лист1!EQ30 -> 1743.15 | AM34: =Лист1!FS30 -> 4980.71 | AN34: =Лист1!CF30+Лист1!CH30 -> 13779.9 | AO34: =Лист1!S30+Лист1!U30 -> 10085.09 | AP34: =Лист1!CJ30 -> 62363 | AQ34: =Лист1!CL30 -> 37489.5 | AR34: =Лист1!CP30 -> 21226.94 | AS34: =Лист1!CN30 -> 81289.44 | AT34: =Лист1!CX30 -> 12107.1 | AU34: =Лист1!CR30 -> 5442.75 | AV34: =Лист1!CV30 -> 4499.75 | AW34: =Лист1!CT30 -> 59154.44 | AX34: =Лист1!DQ30 -> 9938.48 | AY34: =Лист1!DM30+Лист1!DO30 -> 96418.29 | AZ34: =Лист1!FZ30 -> 106446.4 | BA34: =Лист1!DG30 -> 2903.09 | BB34: =Лист1!BE30 -> 7605.17 | BC34: =Лист1!AF30 -> 3799.64 | BD34: =Лист1!CZ30 -> 5233.69 | BE34: =Лист1!EF30 -> 196255.08 | BF34: =Лист1!EB30 -> 6130.72 | BG34: =Лист1!DX30+Лист1!DZ30 -> 42356.68 | BH34: =Лист1!ED30 -> 3984.28 | BI34: =Лист1!EJ30 -> 6969.03 | BJ34: =Лист1!EH30 -> 12880.85 | BK34: 4271464.59
A35: 29 | B35: 37.9575 | C35: 104484.13 | D35: 2550.58 | E35: 172597.3 | F35: 6731.51 | G35: 28282.91 | H35: 71078.45 | I35: 3780.78 | J35: 16478.54 | K35: 0 | L35: 2663.42 | BE35: 34255.96 | BH35: 1996.43 | BJ35: 16142.52 | BK35: 461042.53
A36: 30 | B36: 37.96 | C36: 93755.22 | D36: 2251.65 | E36: 156928.03 | F36: 6054.5 | G36: 26299.84 | H36: 60324.38 | I36: 3142.81 | J36: 15516.28 | K36: 0 | L36: 2593.82 | BE36: 30650.76 | BH36: 2703.67 | BJ36: 63785.93 | BK36: 464006.89
A37: 31 | B37: 37.9575 | C37: 92050.88 | D37: 3124.98 | E37: 157999.45 | F37: 6122.1 | G37: 23698.82 | H37: 60708.33 | I37: 3145.17 | J37: 14948.5 | K37: 0 | L37: 3269.38 | BE37: 2593.82 | BH37: 2663.42 | BJ37: 64169.09 | BK37: 434493.94
A38: Загальний обсяг газу, м3 | C38: =SUM(C7:C34) -> 30110674.74 | D38: =SUM(D7:D34) -> 64569.02 | E38: 3172191.53 | F38: 5831973.07 | G38: 223038.45 | H38: 61943.2 | I38: 3703455.99 | J38: 2618427.51 | K38: 96512 | L38: 86451.15 | M38: =SUM(M7:M34) -> 201119.47 | N38: 135247.64 | O38: 14817965.29 | P38: 0 | Q38: 251989.86 | R38: 316350.42 | S38: 145660.35 | T38: 1953301.26 | U38: 1709898.55 | V38: 654903.27 | W38: 1101907.73 | X38: 14027223.5 | Y38: 371234.14 | Z38: 169734.79 | AA38: 17753177.15 | AB38: 12623.78 | AC38: 408791.24 | AD38: 9759070.93 | AE38: 161136.53 | AF38: 1401430.52 | AG38: 235830.65 | AH38: 54850.54 | AI38: 67233.92 | AJ38: 8609923.78 | AK38: 632562.48 | AL38: 47228.17 | AM38: 978472.59 | AN38: 376462.04 | AO38: 378733.65 | AP38: 2386086.54 | AQ38: 1307428.58 | AR38: 842831.58 | AS38: 3029986.57 | AT38: 493860.97 | AU38: 200716 | AV38: 170504.52 | AW38: 2364943.61 | AX38: 355068.27 | AY38: 1619528.7 | AZ38: 3017596.73 | BA38: 102124.24 | BB38: 275707.66 | BC38: 136017.25 | BD38: 195217.06 | BE38: 7389345.77 | BF38: =SUM(BF7:BF34) -> 211285.93 | BG38: 1532237.98 | BH38: 146448.74 | BI38: =SUM(BI7:BI34) -> 244355.06 | BJ38: 461943.43 | BK38: =SUM(BK7:BK34) -> 149186536.1
A39: Енергія, МДж | C39: =SUMPRODUCT(B7:B34,C7:C34) -> 1138207715 | D39: =SUMPRODUCT(B7:B34,D7:D34) -> 2440473.391 | E39: =SUMPRODUCT(B7:B34,E7:E34) -> 119908776.5 | F39: =SUMPRODUCT(B7:B34,F7:F34) -> 220450210.9 | G39: =SUMPRODUCT(B7:B34,G7:G34) -> 8430574.391 | H39: =SUMPRODUCT(B7:B34,H7:H34) -> 2341530.835 | I39: =SUMPRODUCT(B7:B34,I7:I34) -> 139986528.8 | J39: =SUMPRODUCT(B7:B34,J7:J34) -> 98972572.26 | K39: =SUMPRODUCT(B7:B34,K7:K34) -> 3648072.129 | L39: =SUMPRODUCT(B7:B34,L7:L34) -> 3267563.784 | M39: =SUMPRODUCT(B7:B34,M7:M34) -> 7602156.854 | N39: =SUMPRODUCT(B7:B34,N7:N34) -> 5112382.079 | O39: =SUMPRODUCT(B7:B34,O7:O34) -> 560107337.4 | P39: =SUMPRODUCT(B7:B34,P7:P34) -> 0 | Q39: =SUMPRODUCT(B7:B34,Q7:Q34) -> 9525374.84 | R39: =SUMPRODUCT(B7:B34,R7:R34) -> 11957922.24 | S39: =SUMPRODUCT(B7:B34,S7:S34) -> 5505840.017 | T39: =SUMPRODUCT(B7:B34,T7:T34) -> 73790030.82 | U39: =SUMPRODUCT(B7:B34,U7:U34) -> 64632618.38 | V39: =SUMPRODUCT(B7:B34,V7:V34) -> 24747016.21 | W39: =SUMPRODUCT(B7:B34,W7:W34) -> 41650471.4 | X39: =SUMPRODUCT(B7:B34,X7:X34) -> 530210771.3 | Y39: =SUMPRODUCT(B7:B34,Y7:Y34) -> 14032130.51 | Z39: =SUMPRODUCT(B7:B34,Z7:Z34) -> 6415743.676 | AA39: =SUMPRODUCT(B7:B34,AA7:AA34) -> 671059990.7 | AB39: =SUMPRODUCT(B7:B34,AB7:AB34) -> 477205.5504 | AC39: =SUMPRODUCT(B7:B34,AC7:AC34) -> 15452030.23 | AD39: =SUMPRODUCT(B7:B34,AD7:AD34) -> 368872966.2 | AE39: =SUMPRODUCT(B7:B34,AE7:AE34) -> 6088232.435 | AF39: =SUMPRODUCT(B7:B34,AF7:AF34) -> 52974195.18 | AG39: =SUMPRODUCT(B7:B34,AG7:AG34) -> 8914106.059 | AH39: =SUMPRODUCT(B7:B34,AH7:AH34) -> 2074121.713 | AI39: =SUMPRODUCT(B7:B34,AI7:AI34) -> 2541593.352 | AJ39: =SUMPRODUCT(B7:B34,AJ7:AJ34) -> 325444062.8 | AK39: =SUMPRODUCT(B7:B34,AK7:AK34) -> 23905896.85 | AL39: =SUMPRODUCT(B7:B34,AL7:AL34) -> 1785164.52 | AM39: =SUMPRODUCT(B7:B34,AM7:AM34) -> 36974810.94 | AN39: =SUMPRODUCT(B7:B34,AN7:AN34) -> 14234278.61 | AO39: =SUMPRODUCT(B7:B34,AO7:AO34) -> 14315950.8 | AP39: =SUMPRODUCT(B7:B34,AP7:AP34) -> 90189233.54 | AQ39: =SUMPRODUCT(B7:B34,AQ7:AQ34) -> 49409789.47 | AR39: =SUMPRODUCT(B7:B34,AR7:AR34) -> 31857653.19 | AS39: =SUMPRODUCT(B7:B34,AS7:AS34) -> 114528107.8 | AT39: =SUMPRODUCT(B7:B34,AT7:AT34) -> 18666503.38 | AU39: =SUMPRODUCT(B7:B34,AU7:AU34) -> 7586665.853 | AV39: =SUMPRODUCT(B7:B34,AV7:AV34) -> 6444760.304 | AW39: =SUMPRODUCT(B7:B34,AW7:AW34) -> 89388535.94 | AX39: =SUMPRODUCT(B7:B34,AX7:AX34) -> 13421133.6 | AY39: =SUMPRODUCT(B7:B34,AY7:AY34) -> 61303659.36 | AZ39: =SUMPRODUCT(B7:B34,AZ7:AZ34) -> 114067541 | BA39: =SUMPRODUCT(B7:B34,BA7:BA34) -> 3860266.814 | BB39: =SUMPRODUCT(B7:B34,BB7:BB34) -> 10421398.19 | BC39: =SUMPRODUCT(B7:B34,BC7:BC34) -> 5141294.166 | BD39: =SUMPRODUCT(B7:B34,BD7:BD34) -> 7378702.851 | BE39: =SUMPRODUCT(B7:B34,BE7:BE34) -> 279304677.6 | BF39: =SUMPRODUCT(B7:B34,BF7:BF34) -> 7986520.591 | BG39: =SUMPRODUCT(B7:B34,BG7:BG34) -> 57916435.28 | BH39: =SUMPRODUCT(B7:B34,BH7:BH34) -> 5535662.278 | BI39: =SUMPRODUCT(B7:B34,BI7:BI34) -> 9236553.915 | BJ39: =SUMPRODUCT(B7:B34,BJ7:BJ34) -> 17460909.25 | BK39: =SUMPRODUCT(B7:B34,BK7:BK34) -> 5639164424
A40: Теплота згоряння (середньозважене значення за місяць), МДж/м³ | C40: =C39/C38 -> 37.80080403 | D40: =D39/D38 -> 37.79635173 | E40: =E39/E38 -> 37.79998004 | F40: =F39/F38 -> 37.8002793 | G40: 37.79874901 | H40: 37.8012572 | I40: 37.79889086 | J40: 37.79847709 | K40: 37.79915585 | L40: 37.79664914 | M40: =M39/M38 -> 37.79920887 | N40: 37.80015739 | O40: 37.799207 | Q40: 37.80062753 | R40: 37.79960917 | S40: 37.79916784 | T40: 37.77708658 | U40: 37.79909538 | V40: 37.78728454 | W40: 37.79851095 | X40: 37.79869703 | Y40: 37.79859932 | Z40: 37.79863678 | AA40: 37.79943078 | AB40: 37.80211239 | AC40: 37.79931838 | AD40: 37.79795934 | AE40: 37.78306778 | AF40: 37.80008672 | AG40: 37.79875966 | AH40: 37.81406187 | AI40: 37.80224851 | AJ40: 37.79871589 | AK40: 37.79215114 | AL40: 37.79872309 | AM40: 37.78829506 | AN40: 37.8106611 | AO40: 37.79952164 | AP40: 37.79797255 | AQ40: 37.79157824 | AR40: 37.79836203 | AS40: 37.79822292 | AT40: 37.7970816 | AU40: 37.79801238 | AV40: 37.79817863 | AW40: 37.79732234 | AX40: 37.79874108 | AY40: 37.85277739 | AZ40: 37.80079024 | BA40: 37.79971154 | BB40: 37.7987256 | BC40: 37.79883924 | BD40: 37.79742842 | BE40: 37.79829586 | BF40: 37.79958557 | BG40: 37.79859006 | BH40: 37.79931653 | BI40: 37.79972436 | BJ40: 37.79880418 | BK40: 37.79941925
A41: Теплота згоряння (середньозважене значення за місяць), ккал/м³ | C41: =C40*238.8459 -> 9028.567058 | D41: =D40*238.8459 -> 9027.503647 | E41: 9028.370252 | F41: 9028.441729 | G41: 9028.076226 | H41: 9028.675296 | I41: 9028.110106 | J41: 9028.01128 | K41: 9028.173398 | L41: 9027.574681 | M41: =M40*238.8459 -> 9028.186062 | N41: 9028.412613 | O41: 9028.185616 | Q41: 9028.524903 | R41: 9028.281672 | S41: 9028.176262 | T41: 9022.902244 | U41: 9028.158955 | V41: 9025.337985 | W41: 9028.019367 | X41: 9028.063812 | Y41: 9028.040474 | Z41: 9028.04942 | AA41: 9028.239063 | AB41: 9028.879556 | AC41: 9028.212219 | AD41: 9027.887616 | AE41: 9024.330828 | AF41: 9028.395732 | AG41: 9028.078769 | AH41: 9031.733639 | AI41: 9028.912068 | AJ41: 9028.068315 | AK41: 9026.500352 | AL41: 9028.070035 | AM41: 9025.579343 | AN41: 9030.921379 | AO41: 9028.260766 | AP41: 9027.890772 | AQ41: 9026.363516 | AR41: 9027.983798 | AS41: 9027.950572 | AT41: 9027.677971 | AU41: 9027.900286 | AV41: 9027.939992 | AW41: 9027.735471 | AX41: 9028.074332 | AY41: 9040.980684 | AZ41: 9028.563766 | BA41: 9028.306123 | BB41: 9028.070635 | BC41: 9028.097777 | BD41: 9027.760808 | BE41: 9027.967994 | BF41: 9028.276036 | BG41: 9028.038262 | BH41: 9028.211776 | BI41: 9028.309185 | BJ41: 9028.089403 | BK41: 9028.23631
A42: Теплота згоряння (середньозважене значення за місяць), кВт*год./м³ | C42: =C40/3.6 -> 10.50022334 | D42: =D40/3.6 -> 10.49898659 | E42: 10.49999446 | F42: 10.50007758 | G42: 10.4996525 | H42: 10.50034922 | I42: 10.49969191 | J42: 10.49957697 | K42: 10.49976551 | L42: 10.49906921 | M42: =M40/3.6 -> 10.49978024 | N42: 10.50004372 | O42: 10.49977972 | Q42: 10.50017431 | R42: 10.49989144 | S42: 10.49976884 | T42: 10.49363516 | U42: 10.49974872 | V42: 10.49646793 | W42: 10.49958638 | X42: 10.49963807 | Y42: 10.49961092 | Z42: 10.49962133 | AA42: 10.49984188 | AB42: 10.50058678 | AC42: 10.49981066 | AD42: 10.49943315 | AE42: 10.49529661 | AF42: 10.50002409 | AG42: 10.49965546 | AH42: 10.50390607 | AI42: 10.50062459 | AJ42: 10.4996433 | AK42: 10.49781976 | AL42: 10.4996453 | AM42: 10.49674863 | AN42: 10.50296142 | AO42: 10.49986712 | AP42: 10.49943682 | AQ42: 10.49766062 | AR42: 10.49954501 | AS42: 10.49950637 | AT42: 10.49918933 | AU42: 10.49944788 | AV42: 10.49949406 | AW42: 10.4992562 | AX42: 10.4996503 | AY42: 10.51466039 | AZ42: 10.50021951 | BA42: 10.49991987 | BB42: 10.499646 | BC42: 10.49967757 | BD42: 10.49928567 | BE42: 10.49952663 | BF42: 10.49988488 | BG42: 10.49960835 | BH42: 10.49981015 | BI42: 10.49992343 | BJ42: 10.49966783 | BK42: 10.49983868

Sheet додаток
A2: Додаток до Паспорту фізико-хімічних показників природного газу №676
A4: Область | B4: ГРС, прямий споживач | C4: Cередньозважене значення вищої теплоти згоряння
C5: МДж/м³ | D5: ккал/м³ | E5: кВт*год./м³
A6: Донецька область | B6: =' розрахунок'!C6 -> ГРС Краматорськ | C6: =' розрахунок'!C40 -> 37.80080403 | D6: =' розрахунок'!C41 -> 9028.567058 | E6: =' розрахунок'!C42 -> 10.50022334
B7: =' розрахунок'!D6 -> АГНКС м.Краматорськ | C7: =' розрахунок'!D40 -> 37.79635173 | D7: =' розрахунок'!D41 -> 9027.503647 | E7: =' розрахунок'!D42 -> 10.49898659
B8: =' розрахунок'!E6 -> ГРС Бахмутська ПТФ | C8: =' розрахунок'!E40 -> 37.79998004 | D8: =' розрахунок'!E41 -> 9028.370252 | E8: =' розрахунок'!E42 -> 10.49999446
B9: =' розрахунок'!F6 -> ГРС м. Дзержинськ | C9: =' розрахунок'!F40 -> 37.8002793 | D9: =' розрахунок'!F41 -> 9028.441729 | E9: =' розрахунок'!F42 -> 10.50007758
B10: =' розрахунок'!G6 -> ГРС к-п Козаченко | C10: =' розрахунок'!G40 -> 37.79874901 | D10: =' розрахунок'!G41 -> 9028.076226 | E10: =' розрахунок'!G42 -> 10.4996525
B11: =' розрахунок'!H6 -> ГРС с. Рай-Олександрівка | C11: =' розрахунок'!H40 -> 37.8012572 | D11: =' розрахунок'!H41 -> 9028.675296 | E11: =' розрахунок'!H42 -> 10.50034922
B12: =' розрахунок'!I6 -> ГРС м.Красний Лиман | C12: =' розрахунок'!I40 -> 37.79889086 | D12: =' розрахунок'!I41 -> 9028.110106 | E12: =' розрахунок'!I42 -> 10.49969191
B13: =' розрахунок'!J6 -> ГРС м.Часів Яр | C13: =' розрахунок'!J40 -> 37.79847709 | D13: =' розрахунок'!J41 -> 9028.01128 | E13: =' розрахунок'!J42 -> 10.49957697
B14: =' розрахунок'!K6 -> ГРС р-п ім.Кірова | C14: =' розрахунок'!K40 -> 37.79915585 | D14: =' розрахунок'!K41 -> 9028.173398 | E14: =' розрахунок'!K42 -> 10.49976551
B15: =' розрахунок'!L6 -> ГРС к-п ім. Тимірязєва | C15: =' розрахунок'!L40 -> 37.79664914 | D15: =' розрахунок'!L41 -> 9027.574681 | E15: =' розрахунок'!L42 -> 10.49906921
B16: =' розрахунок'!M6 -> ГРС к-п ім. Леніна | C16: =' розрахунок'!M40 -> 37.79920887 | D16: =' розрахунок'!M41 -> 9028.186062 | E16: =' розрахунок'!M42 -> 10.49978024
B17: =' розрахунок'!N6 -> ГРС к-пів Правди та ім. Кірова | C17: =' розрахунок'!N40 -> 37.80015739 | D17: =' розрахунок'!N41 -> 9028.412613 | E17: =' розрахунок'!N42 -> 10.50004372
B18: =' розрахунок'!O6 -> ГРС 1 м.Костянтинівка | C18: =' розрахунок'!O40 -> 37.799207 | D18: =' розрахунок'!O41 -> 9028.185616 | E18: =' розрахунок'!O42 -> 10.49977972
B19: =' розрахунок'!P6 -> ГРС 2 м.Костянтинівка | C19: =' розрахунок'!P40 ->  | D19: =' розрахунок'!P41 ->  | E19: =' розрахунок'!P42 -> 
B20: =' розрахунок'!Q6 -> ТОВ "ТД "ЛІДЕР" | C20: =' розрахунок'!Q40 -> 37.80062753 | D20: =' розрахунок'!Q41 -> 9028.524903 | E20: =' розрахунок'!Q42 -> 10.50017431
B21: =' розрахунок'!R6 -> ГРС Правдинська ПТФ | C21: =' розрахунок'!R40 -> 37.79960917 | D21: =' розрахунок'!R41 -> 9028.281672 | E21: =' розрахунок'!R42 -> 10.49989144
B22: =' розрахунок'!S6 -> ГРС с. Покровське | C22: =' розрахунок'!S40 -> 37.79916784 | D22: =' розрахунок'!S41 -> 9028.176262 | E22: =' розрахунок'!S42 -> 10.49976884
B23: =' розрахунок'!T6 -> ТОВ "КНАУФ ГИПС ДОНБАС" | C23: =' розрахунок'!T40 -> 37.77708658 | D23: =' розрахунок'!T41 -> 9022.902244 | E23: =' розрахунок'!T42 -> 10.49363516
B24: =' розрахунок'!U6 -> ГРС 1 Вуглегірська ДРЕС | C24: =' розрахунок'!U40 -> 37.79909538 | D24: =' розрахунок'!U41 -> 9028.158955 | E24: =' розрахунок'!U42 -> 10.49974872
B25: =' розрахунок'!V6 -> ГРС 2 Вуглегірська ДРЕС | C25: =' розрахунок'!V40 -> 37.78728454 | D25: =' розрахунок'!V41 -> 9025.337985 | E25: =' розрахунок'!V42 -> 10.49646793
B26: =' розрахунок'!W6 -> ГРС м. Сіверськ | C26: =' розрахунок'!W40 -> 37.79851095 | D26: =' розрахунок'!W41 -> 9028.019367 | E26: =' розрахунок'!W42 -> 10.49958638
B27: =' розрахунок'!X6 -> ГРС м. Красноармійськ | C27: =' розрахунок'!X40 -> 37.79869703 | D27: =' розрахунок'!X41 -> 9028.063812 | E27: =' розрахунок'!X42 -> 10.49963807
B28: =' розрахунок'!Y6 -> ГРС к-п Промінь | C28: =' розрахунок'!Y40 -> 37.79859932 | D28: =' розрахунок'!Y41 -> 9028.040474 | E28: =' розрахунок'!Y42 -> 10.49961092
B29: =' розрахунок'!Z6 -> ГРС к-п Костянтинівський | C29: =' розрахунок'!Z40 -> 37.79863678 | D29: =' розрахунок'!Z41 -> 9028.04942 | E29: =' розрахунок'!Z42 -> 10.49962133
B30: =' розрахунок'!AA6 -> ГРС м. Слов'янськ | C30: =' розрахунок'!AA40 -> 37.79943078 | D30: =' розрахунок'!AA41 -> 9028.239063 | E30: =' розрахунок'!AA42 -> 10.49984188
B31: =' розрахунок'!AB6 -> АГНКС м. Слов'янськ | C31: =' розрахунок'!AB40 -> 37.80211239 | D31: =' розрахунок'!AB41 -> 9028.879556 | E31: =' розрахунок'!AB42 -> 10.50058678
B32: =' розрахунок'!AC6 -> ГРС к-п Широкий Шлях | C32: =' розрахунок'!AC40 -> 37.79931838 | D32: =' розрахунок'!AC41 -> 9028.212219 | E32: =' розрахунок'!AC42 -> 10.49981066
B33: =' розрахунок'!AD6 -> ГРС м. Артемівськ | C33: =' розрахунок'!AD40 -> 37.79795934 | D33: =' розрахунок'!AD41 -> 9027.887616 | E33: =' розрахунок'!AD42 -> 10.49943315
B34: =' розрахунок'!AE6 -> ПАТ "ЗОКМ" | C34: =' розрахунок'!AE40 -> 37.78306778 | D34: =' розрахунок'!AE41 -> 9024.330828 | E34: =' розрахунок'!AE42 -> 10.49529661
B35: =' розрахунок'!AF6 -> ГРС с. Кіндратівка | C35: =' розрахунок'!AF40 -> 37.80008672 | D35: =' розрахунок'!AF41 -> 9028.395732 | E35: =' розрахунок'!AF42 -> 10.50002409
B36: =' розрахунок'!AG6 -> ГРС Щербинівська ТПФ | C36: =' розрахунок'!AG40 -> 37.79875966 | D36: =' розрахунок'!AG41 -> 9028.078769 | E36: =' розрахунок'!AG42 -> 10.49965546
B37: =' розрахунок'!AH6 -> ГРС Шидловського КВЗ (Прат "СКВЗ") | C37: =' розрахунок'!AH40 -> 37.81406187 | D37: =' розрахунок'!AH41 -> 9031.733639 | E37: =' розрахунок'!AH42 -> 10.50390607
B38: =' розрахунок'!AI6 -> АГНКС м. Костянтинівка | C38: =' розрахунок'!AI40 -> 37.80224851 | D38: =' розрахунок'!AI41 -> 9028.912068 | E38: =' розрахунок'!AI42 -> 10.50062459
B39: =' розрахунок'!AJ6 -> ГРС м. Дружківка | C39: =' розрахунок'!AJ40 -> 37.79871589 | D39: =' розрахунок'!AJ41 -> 9028.068315 | E39: =' розрахунок'!AJ42 -> 10.4996433
B40: =' розрахунок'!AK6 -> ТОВ "ГІРНИЧІ МАШИНИ - ДРМЗ" | C40: =' розрахунок'!AK40 -> 37.79215114 | D40: =' розрахунок'!AK41 -> 9026.500352 | E40: =' розрахунок'!AK42 -> 10.49781976
B41: =' розрахунок'!AL6 -> АГНКС м. Дружківка | C41: =' розрахунок'!AL40 -> 37.79872309 | D41: =' розрахунок'!AL41 -> 9028.070035 | E41: =' розрахунок'!AL42 -> 10.4996453
B42: =' розрахунок'!AM6 -> ГРС 1 м. Курахове (ТОВ "ДТЕК СХІДЕНЕРГО") | C42: =' розрахунок'!AM40 -> 37.78829506 | D42: =' розрахунок'!AM41 -> 9025.579343 | E42: =' розрахунок'!AM42 -> 10.49674863
B43: =' розрахунок'!AN6 -> ГРС 2 м. Курахове | C43: =' розрахунок'!AN40 -> 37.8106611 | D43: =' розрахунок'!AN41 -> 9030.921379 | E43: =' розрахунок'!AN42 -> 10.50296142
B44: =' розрахунок'!AO6 -> ГРС смт. Очеретино | C44: =' розрахунок'!AO40 -> 37.79952164 | D44: =' розрахунок'!AO41 -> 9028.260766 | E44: =' розрахунок'!AO42 -> 10.49986712
B45: =' розрахунок'!AP6 -> ГРС м. Селідове | C45: =' розрахунок'!AP40 -> 37.79797255 | D45: =' розрахунок'!AP41 -> 9027.890772 | E45: =' розрахунок'!AP42 -> 10.49943682
B46: =' розрахунок'!AQ6 -> ГРС с. Володимірівка | C46: =' розрахунок'!AQ40 -> 37.79157824 | D46: =' розрахунок'!AQ41 -> 9026.363516 | E46: =' розрахунок'!AQ42 -> 10.49766062
B47: =' розрахунок'!AR6 -> ГРС с. Донське | C47: =' розрахунок'!AR40 -> 37.79836203 | D47: =' розрахунок'!AR41 -> 9027.983798 | E47: =' розрахунок'!AR42 -> 10.49954501
B48: =' розрахунок'!AS6 -> ГРС м. Волноваха | C48: =' розрахунок'!AS40 -> 37.79822292 | D48: =' розрахунок'!AS41 -> 9027.950572 | E48: =' розрахунок'!AS42 -> 10.49950637
B49: =' розрахунок'!AT6 -> ГРС с. Новотроїцьке | C49: =' розрахунок'!AT40 -> 37.7970816 | D49: =' розрахунок'!AT41 -> 9027.677971 | E49: =' розрахунок'!AT42 -> 10.49918933
B50: =' розрахунок'!AU6 -> ГРС к-п Оленівський | C50: =' розрахунок'!AU40 -> 37.79801238 | D50: =' розрахунок'!AU41 -> 9027.900286 | E50: =' розрахунок'!AU42 -> 10.49944788
B51: =' розрахунок'!AV6 -> ГРС с.Ольгинка | C51: =' розрахунок'!AV40 -> 37.79817863 | D51: =' розрахунок'!AV41 -> 9027.939992 | E51: =' розрахунок'!AV42 -> 10.49949406
B52: =' розрахунок'!AW6 -> ГРС м. Вугледар | C52: =' розрахунок'!AW40 -> 37.79732234 | D52: =' розрахунок'!AW41 -> 9027.735471 | E52: =' розрахунок'!AW42 -> 10.4992562
B53: =' розрахунок'!AX6 -> ГРС 1 Слов'янська ДРЕС | C53: =' розрахунок'!AX40 -> 37.79874108 | D53: =' розрахунок'!AX41 -> 9028.074332 | E53: =' розрахунок'!AX42 -> 10.4996503
B54: =' розрахунок'!AY6 -> ГРС 2 Слов'янська ДРЕС | C54: =' розрахунок'!AY40 -> 37.85277739 | D54: =' розрахунок'!AY41 -> 9040.980684 | E54: =' розрахунок'!AY42 -> 10.51466039
B55: =' розрахунок'!AZ6 -> ГРС НКМЗ (ПАТ "НКМЗ") | C55: =' розрахунок'!AZ40 -> 37.80079024 | D55: =' розрахунок'!AZ41 -> 9028.563766 | E55: =' розрахунок'!AZ42 -> 10.50021951
B56: =' розрахунок'!BA6 -> ГРС с. Малинівка | C56: =' розрахунок'!BA40 -> 37.79971154 | D56: =' розрахунок'!BA41 -> 9028.306123 | E56: =' розрахунок'!BA42 -> 10.49991987
B57: =' розрахунок'!BB6 -> ГРС к-п ім. Горького | C57: =' розрахунок'!BB40 -> 37.7987256 | D57: =' розрахунок'!BB41 -> 9028.070635 | E57: =' розрахунок'!BB42 -> 10.499646
B58: =' розрахунок'!BC6 -> ГРС с. Очеретино | C58: =' розрахунок'!BC40 -> 37.79883924 | D58: =' розрахунок'!BC41 -> 9028.097777 | E58: =' розрахунок'!BC42 -> 10.49967757
B59: =' розрахунок'!BD6 -> ГРС р-п Маріупольський | C59: =' розрахунок'!BD40 -> 37.79742842 | D59: =' розрахунок'!BD41 -> 9027.760808 | E59: =' розрахунок'!BD42 -> 10.49928567
A60: Харківська область | B60: =' розрахунок'!BE6 -> ГРС Ізюм | C60: =' розрахунок'!BE40 -> 37.79829586 | D60: =' розрахунок'!BE41 -> 9027.967994 | E60: =' розрахунок'!BE42 -> 10.49952663
B61: =' розрахунок'!BF6 -> ГРС с. Бражківка | C61: =' розрахунок'!BF40 -> 37.79958557 | D61: =' розрахунок'!BF41 -> 9028.276036 | E61: =' розрахунок'!BF42 -> 10.49988488
B62: =' розрахунок'!BG6 -> ГРС м. Барвінкове | C62: =' розрахунок'!BG40 -> 37.79859006 | D62: =' розрахунок'!BG41 -> 9028.038262 | E62: =' розрахунок'!BG42 -> 10.49960835
B63: =' розрахунок'!BH6 -> ГРС к-пу "Жовтень" | C63: =' розрахунок'!BH40 -> 37.79931653 | D63: =' розрахунок'!BH41 -> 9028.211776 | E63: =' розрахунок'!BH42 -> 10.49981015
B64: =' розрахунок'!BI6 -> ГРС к-п Степок | C64: =' розрахунок'!BI40 -> 37.79972436 | D64: =' розрахунок'!BI41 -> 9028.309185 | E64: =' розрахунок'!BI42 -> 10.49992343
B65: =' розрахунок'!BJ6 -> ГРС с.Петрівське | C65: =' розрахунок'!BJ40 -> 37.79880418 | D65: =' розрахунок'!BJ41 -> 9028.089403 | E65: =' розрахунок'!BJ42 -> 10.49966783
A66: Середньозважене значення вищої теплоти згоряння по маршруту № 676 | C66: =AVERAGE(C20:C65) -> 37.79914107 | D66: =AVERAGE(D20:D65) -> 9028.169868 | E66: 10.49976141
A70: Начальник управління Северодонецького ЛВУМГ Головко Ю.О.
A71: Підрозділу підприємства, якому підпорядкована лабораторія | D71: прізвище | E71: підпис | F71: дата
A72: Інженер ІІ кат. ВХАЛ Єрьоменко М.О.
A73: Лабораторія, де здійснювалось вимірювання газу | D73: прізвище | E73: підпис | F73: дата
A74: Начальник служби метрології Левкович А.М.
A75: Підрозділу, відповідального за облік газу за маршрутом | D75: прізвище | E75: підпис | F75: дата

Sheet variablesList (hidden)
A1: 3 | B1: x:\gaysin | C1: 10, 11, 24, 25, 127, 128, 132, 180, 207, 215 | D1: x:\
B2: x:\Illinci
B3: x:\Talne

Sheet Лист1
A1: подобъектов объекта Константиновка УГГ (осн.) за 2/17. | AD1: подобъектов объекта Краматорск УГГ (осн.) за 2/17. | AU1: подобъектов объекта Бахмут УГГ (осн.) за 2/17. | CB1: подобъектов объекта Покровск УГГ (осн.) за 2/17. | DC1: подобъектов объекта Славянск УГГ (осн.) за 2/17. | DV1: подобъектов объекта ПАО ХАРЬКОВГАЗ (осн.) за 2/17. | EM1: подобъектов объекта АГНКС 1 (осн.) за 2/17. | FB1: подобъектов объекта Покровское Кнауф (осн.) за 2/17. | FI1: подобъектов объекта ГРС Артемовск ЗЦМ (осн.) за 2/17. | FN1: подобъектов объекта Mashzavod (осн.) за 2/17. | FQ1: подобъектов объекта ГРС 1 Курахово (осн.) за 2/17. | FX1: подобъектов объекта ГРС НКМЗ (осн.) за 2/17. | GC1: подобъектов объекта ГРС Шидловка (Флоутек) (осн.) за 2/17.
A2: День | C2: Авдеевка (счетчик) | E2: Авдеевка (перепад) | G2: dzerginsk | I2: Kobyt_2 | K2: Koprom_2 | M2: Komz_2 | O2: Konstantinovski | Q2: Lenina | S2: Очеретино перепад | U2: Очеретино счетчик | W2: chasovyar2 | Y2: sliah | AA2: Sherb_PTF | AC2: Константиновка УГГ | AD2: День | AF2: OCHERETINO | AH2: Drugkovka | AJ2: Kondratevka | AL2: BYT | AN2: PROM | AP2: krmz | AR2: Promin | AT2: Краматорск УГГ | AU2: День | AW2: art1_1 | AY2: art1_2 | BA2: art2 | BC2: bahmutka | BE2: Gorkogo | BG2: Kirova | BI2: Kazachenko | BK2: Покровское село | BM2: PrKirova | BO2: Seversk | BQ2: Timiryazevo | BS2: UGL BYT | BU2: Ugl2-2 | BW2: Ugl_4 | BY2: chasovyar1 | CA2: Бахмут УГГ | CB2: День | CD2: Krasnoarme | CF2: Курахово-2 УЗ1 | CH2: Курахово-2 | CJ2: Селидово 1(перепад) | CL2: Владимировка | CN2: Волноваха | CP2: Донское | CR2: Еленовка | CT2: Угледар | CV2: Ольгинка | CX2: Новотроицкое (УЗ) | CZ2: Чермалык | DB2: Покровск УГГ | DC2: День | DE2: liman | DG2: malinovka | DI2: Правдинская ПТФ | DK2: ray-aleks | DM2: SLTES1 | DO2: SLTES2 | DQ2: SLAVGRSBYT | DS2: Slaviansk | DU2: Славянск УГГ | DV2: День | DX2: Ду80 | DZ2: Ду150 | EB2: bragkovka | ED2: Govten | EF2: IZIUM | EH2: Петровское | EJ2: Stepok | EL2: ПАО ХАРЬКОВГАЗ | EM2: День | EO2: DrugAGNKS1 | EQ2: DrugAGNKS2 | ES2: Slav.AGNKS1 | EU2: KramatAGNKS1 | EW2: Константиновка | EY2: AGNKS | FA2: АГНКС 1 | FB2: День | FD2: Кнауф 1 | FF2: Кнауф 2 | FH2: Покровское Кнауф | FI2: День | FK2: ART3 | FM2: ГРС Артемовск ЗЦМ | FN2: День | FP2: Mashzavod | FQ2: День | FS2: Курахово-1 (перепад) | FU2: Курахово-1 (счетчик) | FW2: ГРС 1 Курахово | FX2: День | FZ2: NKMZ | GB2: ГРС НКМЗ | GC2: День | GE2: SMIZ | GG2: Shidlovka | GI2: ГРС Шидловка (Флоутек)
A3: 1 | C3: 0 | E3: 296772.28 | F3: A | G3: 257369.09 | I3: 0 | K3: 628383.44 | M3: 0 | O3: 7346.88 | P3: A | Q3: 8906.29 | S3: 16544.06 | U3: 0 | W3: 5793.38 | Y3: 17600.61 | AA3: 10071.77 | AB3: A | AC3: 1248787.81 | AD3: 1 | AF3: 6026.29 | AH3: 383894.81 | AJ3: 57216.55 | AL3: 138976.08 | AN3: 972769.56 | AO3: A | AP3: 26771.2 | AR3: 16367.02 | AS3: A | AT3: 1602021.52 | AU3: 1 | AW3: 258201.58 | AY3: 184512.16 | BA3: 0 | BC3: 133415.58 | BE3: 12385.56 | BG3: 4182.12 | BH3: A | BI3: 9691.73 | BK3: 6349.19 | BM3: 5816.97 | BO3: 48443.7 | BQ3: 3955.84 | BS3: 73588.79 | BU3: 0 | BW3: 0 | BY3: 104260.26 | BZ3: A | CA3: 844803.47 | CB3: 1 | CD3: 601648.06 | CF3: 25828.04 | CH3: 0.4 | CJ3: 103688.76 | CL3: 45404.76 | CN3: 129714.5 | CP3: 36512.54 | CR3: 8838.33 | CT3: 108782.99 | CV3: 7468.16 | CX3: 22300.64 | CZ3: 8432.68 | DB3: 1098619.86 | DC3: 1 | DD3: A | DE3: 163466.94 | DG3: 4452.74 | DI3: 13352.87 | DK3: 2333.62 | DL3: A | DM3: 102614.02 | DO3: 0 | DQ3: 14975.53 | DS3: 765505.25 | DT3: A | DU3: 1066700.95 | DV3: 1 | DX3: 0 | DZ3: 67802.32 | EB3: 9187.37 | ED3: 6577.76 | EF3: 335646.22 | EH3: 20390.42 | EJ3: 10589.57 | EL3: 450193.66 | EM3: 1 | EN3: A | EO3: 1584.2 | EP3: A | EQ3: 1.71 | ER3: A | ES3: 730.22 | ET3: A | EU3: 2684.53 | EV3: A | EW3: 2740.47 | EX3: A | EY3: 2661.1 | EZ3: A | FA3: 10402.23 | FB3: 1 | FD3: 0.32 | FF3: 123422.39 | FH3: 123422.71 | FI3: 1 | FK3: 7730.79 | FM3: 7730.79 | FN3: 1 | FP3: 34181.42 | FQ3: 1 | FR3: A | FS3: 889.19 | FU3: 7.31 | FV3: A | FW3: 896.49 | FX3: 1 | FY3: A | FZ3: 84971.74 | GA3: A | GB3: 84971.74 | GC3: 1 | GD3: A | GE3: 4126.13 | GG3: 0 | GH3: A | GI3: 4126.13
A4: 2 | C4: 0 | E4: 308008.63 | F4: B | G4: 239971.95 | H4: B | I4: 0 | J4: B | K4: 589944.44 | L4: B | M4: 0 | N4: B | O4: 6940.24 | P4: B | Q4: 8228 | R4: B | S4: 15452.49 | T4: B | U4: 0 | V4: B | W4: 5328.33 | X4: B | Y4: 15545.2 | Z4: B | AA4: 9100.78 | AB4: B | AC4: 1198520.05 | AD4: 2 | AE4: B | AF4: 5505.53 | AG4: AB | AH4: 349797.63 | AI4: B | AJ4: 55304.66 | AK4: B | AL4: 135658.31 | AM4: B | AN4: 1009406.88 | AO4: AB | AP4: 23067.22 | AQ4: B | AR4: 14992.2 | AS4: AB | AT4: 1593732.43 | AU4: 2 | AV4: B | AW4: 238344.98 | AX4: B | AY4: 170263.84 | AZ4: B | BA4: 0 | BB4: B | BC4: 112703.1 | BD4: B | BE4: 10946.76 | BF4: B | BG4: 3892.4 | BH4: B | BI4: 9035.07 | BJ4: B | BK4: 5801.75 | BL4: B | BM4: 5321.77 | BN4: B | BO4: 44974.09 | BP4: B | BQ4: 3793.16 | BR4: B | BS4: 68866.17 | BT4: B | BU4: 0 | BV4: B | BW4: 0 | BX4: B | BY4: 97247.68 | BZ4: B | CA4: 771190.79 | CB4: 2 | CC4: B | CD4: 563518.38 | CE4: AB | CF4: 17527.22 | CG4: B | CH4: 0.15 | CI4: B | CJ4: 96632.61 | CK4: B | CL4: 42638.29 | CM4: B | CN4: 119442.13 | CO4: B | CP4: 35804.36 | CQ4: B | CR4: 8071.75 | CS4: B | CT4: 102019.34 | CV4: 6877.63 | CW4: B | CX4: 19717.68 | CY4: B | CZ4: 7699.05 | DA4: AB | DB4: 1019948.59 | DC4: 2 | DD4: AB | DE4: 151350.38 | DF4: B | DG4: 4106.76 | DH4: B | DI4: 13283.9 | DJ4: B | DK4: 2256.81 | DL4: AB | DM4: 64324.08 | DN4: B | DO4: 0 | DP4: B | DQ4: 14133.67 | DR4: B | DS4: 701031.69 | DT4: AB | DU4: 950487.28 | DV4: 2 | DW4: B | DX4: 0 | DY4: B | DZ4: 61485.21 | EA4: B | EB4: 8317.99 | EC4: B | ED4: 5904.82 | EE4: B | EF4: 304756.63 | EG4: B | EH4: 18309.85 | EI4: B | EJ4: 9706.89 | EK4: B | EL4: 408481.39 | EM4: 2 | EN4: AB | EO4: 1708.27 | EP4: AB | EQ4: 0.81 | ER4: AB | ES4: 741.36 | ET4: AB | EU4: 2989.43 | EV4: AB | EW4: 2637.44 | EX4: AB | EY4: 2809.09 | EZ4: AB | FA4: 10886.4 | FB4: 2 | FC4: AB | FD4: 132075.97 | FE4: AB | FF4: 736.74 | FG4: AB | FH4: 132812.7 | FI4: 2 | FJ4: B | FK4: 8734.31 | FL4: B | FM4: 8734.31 | FN4: 2 | FO4: AB | FP4: 27287.37 | FQ4: 2 | FR4: AB | FS4: 728.85 | FT4: B | FU4: 0 | FV4: AB | FW4: 728.85 | FX4: 2 | FY4: AB | FZ4: 104713.02 | GA4: AB | GB4: 104713.02 | GC4: 2 | GD4: B | GE4: 4366.45 | GF4: B | GG4: 0 | GH4: B | GI4: 4366.45
A5: 3 | C5: 0 | E5: 268725.66 | G5: 223240.58 | I5: 0 | K5: 565824 | M5: 0 | O5: 6641.52 | P5: A | Q5: 7756.95 | S5: 15100.34 | U5: 0 | W5: 5020 | Y5: 14877.94 | AA5: 8799.9 | AB5: A | AC5: 1115986.88 | AD5: 3 | AF5: 5268.37 | AH5: 322981.28 | AJ5: 52818.11 | AL5: 131295.27 | AN5: 948077.94 | AO5: A | AP5: 11257.16 | AR5: 14362.19 | AS5: A | AT5: 1486060.31 | AU5: 3 | AW5: 215157.31 | AY5: 153456.89 | BA5: 0 | BC5: 115719.71 | BE5: 10709.08 | BG5: 3722.22 | BI5: 8091.6 | BK5: 5571.23 | BM5: 5284.08 | BO5: 43131.04 | BQ5: 3557.68 | BS5: 63595.97 | BU5: 0 | BW5: 0 | BY5: 90017.67 | CA5: 718014.49 | CB5: 3 | CD5: 516288.53 | CE5: A | CF5: 15040.82 | CH5: 0.09 | CJ5: 89801.43 | CL5: 41331.44 | CN5: 114134.56 | CP5: 33304.08 | CR5: 7758.1 | CT5: 88881.6 | CV5: 6533.1 | CX5: 18600.57 | CZ5: 7103.26 | DA5: A | DB5: 938777.59 | DC5: 3 | DD5: A | DE5: 139973.63 | DG5: 3941.75 | DI5: 11560.05 | DK5: 2195.53 | DL5: A | DM5: 37725.43 | DO5: 0 | DQ5: 13722.9 | DS5: 669781.5 | DT5: A | DU5: 878900.78 | DV5: 3 | DX5: 0 | DZ5: 59417.72 | EB5: 8109.28 | ED5: 5822.25 | EF5: 286266.56 | EH5: 17706.77 | EJ5: 9425.08 | EL5: 386747.67 | EM5: 3 | EN5: A | EO5: 1764.71 | EP5: A | EQ5: 0.64 | ER5: A | ES5: 337.51 | ET5: A | EU5: 2177.03 | EV5: A | EW5: 3317.51 | EX5: A | EY5: 2911.59 | EZ5: A | FA5: 10508.99 | FB5: 3 | FD5: 71265.45 | FF5: 0.11 | FH5: 71265.55 | FI5: 3 | FJ5: A | FK5: 6355.84 | FL5: A | FM5: 6355.84 | FN5: 3 | FP5: 25828.59 | FQ5: 3 | FR5: A | FS5: 689.76 | FU5: 0 | FV5: A | FW5: 689.76 | FX5: 3 | FY5: A | FZ5: 101416.46 | GA5: A | GB5: 101416.46 | GC5: 3 | GD5: A | GE5: 3670.61 | GF5: A | GG5: 9.15 | GH5: A | GI5: 3679.76
A6: 4 | C6: 0 | E6: 221125.63 | G6: 202391.39 | I6: 0 | K6: 491736.28 | M6: 0 | O6: 6025.63 | Q6: 7123.18 | S6: 14091.7 | U6: 0 | W6: 4581.82 | Y6: 13305.09 | AA6: 8199.24 | AC6: 968579.96 | AD6: 4 | AF6: 4822.77 | AH6: 279040.78 | AJ6: 48361.34 | AL6: 123053.66 | AN6: 895778.06 | AO6: A | AP6: 9485.53 | AQ6: A | AR6: 12877.41 | AS6: A | AT6: 1373419.56 | AU6: 4 | AW6: 189237.92 | AY6: 135280.09 | BA6: 0 | BC6: 115637.95 | BE6: 9485.72 | BG6: 3449.96 | BI6: 7334.51 | BK6: 5141.95 | BM6: 4732.52 | BN6: A | BO6: 38127.3 | BQ6: 3014.36 | BS6: 55897.25 | BU6: 0 | BW6: 0 | BY6: 82919.63 | BZ6: A | CA6: 650259.16 | CB6: 4 | CD6: 449957.66 | CE6: A | CF6: 13040.16 | CH6: 0.03 | CJ6: 75788.57 | CL6: 38716.72 | CN6: 103171.66 | CP6: 29090.08 | CR6: 7159.68 | CT6: 82834.27 | CV6: 5974.22 | CX6: 15456.64 | CZ6: 6734.38 | DA6: A | DB6: 827924.07 | DC6: 4 | DD6: A | DE6: 114539.31 | DG6: 3578.79 | DI6: 10742.21 | DK6: 1996.35 | DL6: A | DM6: 27997.6 | DO6: 0 | DQ6: 12580.99 | DS6: 575078.81 | DT6: A | DU6: 746514.06 | DV6: 4 | DX6: 0 | DZ6: 53401.4 | EB6: 7500.14 | ED6: 5280.29 | EF6: 259105.48 | EH6: 16218.04 | EJ6: 8662.32 | EL6: 350167.67 | EM6: 4 | EN6: A | EO6: 1273.85 | EP6: A | EQ6: 0.57 | ER6: A | ES6: 219.09 | ET6: A | EU6: 942.25 | EV6: A | EW6: 2681.2 | EX6: A | EY6: 2138.91 | EZ6: A | FA6: 7255.87 | FB6: 4 | FD6: 12567.21 | FF6: 0 | FH6: 12567.21 | FI6: 4 | FK6: 563.54 | FM6: 563.54 | FN6: 4 | FO6: A | FP6: 12937.09 | FQ6: 4 | FR6: A | FS6: 3541.84 | FU6: 0 | FV6: A | FW6: 3541.84 | FX6: 4 | FY6: A | FZ6: 114267.99 | GA6: A | GB6: 114267.99 | GC6: 4 | GE6: 4336.99 | GG6: 0 | GI6: 4336.99
A7: 5 | C7: 0 | E7: 220940.64 | G7: 192908.3 | I7: 0 | K7: 489540.44 | M7: 0 | O7: 5712.18 | P7: A | Q7: 6757.35 | S7: 13528.14 | U7: 0 | W7: 4449.5 | Y7: 12771.67 | AA7: 7838.34 | AB7: A | AC7: 954446.55 | AD7: 5 | AF7: 4628.26 | AH7: 284386.22 | AJ7: 47097.6 | AL7: 123381.3 | AN7: 901654.88 | AO7: A | AP7: 8750.78 | AR7: 12710.45 | AS7: A | AT7: 1382609.49 | AU7: 5 | AW7: 188806.45 | AY7: 134848.77 | BA7: 0 | BC7: 115265.72 | BE7: 9104.48 | BF7: A | BG7: 3304.98 | BI7: 7193.84 | BK7: 4950.89 | BM7: 4610.48 | BO7: 37341.84 | BQ7: 2581.25 | BS7: 57294.21 | BT7: A | BU7: 101791.75 | BV7: A | BW7: 13331.08 | BY7: 81319.66 | BZ7: A | CA7: 761745.4 | CB7: 5 | CD7: 465378.91 | CE7: A | CF7: 13702.99 | CH7: 0.08 | CJ7: 79729.52 | CL7: 46994.4 | CN7: 101792.77 | CP7: 27841.05 | CR7: 6897.23 | CT7: 78894.53 | CV7: 5623.21 | CX7: 16443.2 | CZ7: 6284.01 | DA7: A | DB7: 849581.9 | DC7: 5 | DD7: A | DE7: 121261.67 | DG7: 3477.3 | DI7: 10700.88 | DK7: 2323.19 | DL7: A | DM7: 19616.05 | DO7: 0 | DQ7: 12480.69 | DS7: 599734.56 | DT7: A | DU7: 769594.34 | DV7: 5 | DX7: 0 | DZ7: 52633.82 | EB7: 7082.02 | ED7: 5012.48 | EF7: 253749.45 | EH7: 16165.64 | EJ7: 8723.25 | EL7: 343366.67 | EM7: 5 | EN7: A | EO7: 804.8 | EP7: A | EQ7: 0.37 | ER7: A | ES7: 161.51 | ET7: A | EU7: 1008.38 | EV7: A | EW7: 2213.8 | EX7: A | EY7: 1814.39 | EZ7: A | FA7: 6003.25 | FB7: 5 | FD7: 36767.92 | FF7: 0 | FH7: 36767.92 | FI7: 5 | FJ7: A | FK7: 1659.93 | FL7: A | FM7: 1659.93 | FN7: 5 | FP7: 12967.46 | FQ7: 5 | FR7: A | FS7: 90548.8 | FU7: 0 | FV7: A | FW7: 90548.8 | FX7: 5 | FY7: A | FZ7: 112956.15 | GA7: A | GB7: 112956.15 | GC7: 5 | GE7: 4514.95 | GG7: 0 | GI7: 4514.95
A8: 6 | C8: 0 | E8: 295691.13 | F8: A | G8: 218616.14 | I8: 0 | K8: 572661.75 | M8: 0 | O8: 6299.13 | P8: A | Q8: 7421 | S8: 15165.11 | U8: 0 | W8: 5007.71 | Y8: 15964.31 | AA8: 8651.7 | AB8: A | AC8: 1145477.98 | AD8: 6 | AF8: 5156.17 | AH8: 337719.31 | AJ8: 55307.85 | AL8: 133327.92 | AN8: 1080420.13 | AO8: A | AP8: 12268.39 | AR8: 13785.87 | AS8: A | AT8: 1637985.63 | AU8: 6 | AW8: 226426.53 | AY8: 161162.88 | BA8: 0 | BB8: A | BC8: 127868.66 | BD8: A | BE8: 10339.64 | BG8: 3607.28 | BI8: 9818.15 | BK8: 5442.02 | BM8: 5117.78 | BO8: 41855.39 | BQ8: 3302.32 | BS8: 66180.31 | BU8: 0 | BV8: A | BW8: 29609.79 | BY8: 97254.7 | BZ8: A | CA8: 787985.46 | CB8: 6 | CD8: 555458.44 | CE8: A | CF8: 12563.53 | CH8: 0.23 | CJ8: 94091.21 | CL8: 48024.83 | CN8: 108772.16 | CP8: 31467.43 | CR8: 6978.84 | CT8: 89699.05 | CV8: 5917.56 | CX8: 18565.85 | CZ8: 6748.94 | DA8: A | DB8: 978288.06 | DC8: 6 | DD8: A | DE8: 154951.13 | DG8: 3836.91 | DI8: 12953.53 | DK8: 2132.51 | DL8: A | DM8: 54372.29 | DO8: 0 | DQ8: 13549.58 | DS8: 710755.75 | DT8: A | DU8: 952551.7 | DV8: 6 | DX8: 0 | DZ8: 59487.4 | EB8: 8037.03 | ED8: 5716.18 | EF8: 290614.53 | EH8: 18105.7 | EJ8: 9532.62 | EL8: 391493.46 | EM8: 6 | EN8: A | EO8: 2306.71 | EP8: A | EQ8: 0.4 | ER8: A | ES8: 699.76 | ET8: A | EU8: 2919.05 | EV8: A | EW8: 3064.24 | EX8: A | EY8: 3089.53 | EZ8: A | FA8: 12079.69 | FB8: 6 | FD8: 49968.32 | FF8: 0 | FH8: 49968.32 | FI8: 6 | FJ8: A | FK8: 9074.92 | FL8: A | FM8: 9074.92 | FN8: 6 | FP8: 25120.55 | FQ8: 6 | FR8: A | FS8: 20404.17 | FU8: 0 | FV8: A | FW8: 20404.17 | FX8: 6 | FY8: A | FZ8: 100805.34 | GA8: A | GB8: 100805.34 | GC8: 6 | GD8: A | GE8: 3676.49 | GG8: 0 | GH8: A | GI8: 3676.49
A9: 7 | C9: 0 | E9: 326058.88 | F9: A | G9: 247421.09 | I9: 0 | K9: 655742.44 | M9: 0 | O9: 7162.25 | P9: A | Q9: 8495.28 | S9: 16740.89 | U9: 0 | W9: 5816.3 | Y9: 19352.03 | AA9: 9883.96 | AB9: A | AC9: 1296673.12 | AD9: 7 | AF9: 5939.48 | AH9: 387654.72 | AJ9: 60051.89 | AL9: 137802.95 | AN9: 1222450.25 | AO9: A | AP9: 13352.31 | AR9: 15840.69 | AS9: A | AT9: 1843092.29 | AU9: 7 | AW9: 258883.02 | AY9: 183772.13 | BA9: 0 | BC9: 138831.55 | BE9: 12094.93 | BG9: 4010.85 | BI9: 11394 | BK9: 6136 | BM9: 5637.08 | BO9: 48250.59 | BQ9: 3939.86 | BS9: 75617.01 | BT9: A | BU9: 54493.7 | BV9: A | BW9: 30972.91 | BY9: 109234.45 | BZ9: A | CA9: 943268.08 | CB9: 7 | CD9: 625839.13 | CE9: A | CF9: 13744.67 | CH9: 0.42 | CJ9: 107324.55 | CL9: 51897.08 | CN9: 130026.44 | CP9: 37773.27 | CR9: 8053.61 | CT9: 105671.73 | CV9: 7179.43 | CX9: 22563.58 | CZ9: 7797.14 | DA9: A | DB9: 1117871.04 | DC9: 7 | DD9: A | DE9: 176076.61 | DG9: 4296.56 | DI9: 14853.72 | DK9: 2409.43 | DL9: A | DM9: 114292.56 | DN9: A | DO9: 131395.14 | DQ9: 15180.3 | DS9: 771824.63 | DT9: A | DU9: 1230328.95 | DV9: 7 | DX9: 0 | DZ9: 67315.63 | EB9: 9179.72 | ED9: 6501.91 | EF9: 334202.91 | EH9: 20127.31 | EJ9: 10566.81 | EL9: 447894.29 | EM9: 7 | EN9: A | EO9: 2254.71 | EP9: A | EQ9: 3.82 | ER9: A | ES9: 722.76 | ET9: A | EU9: 3379.05 | EV9: A | EW9: 3421.57 | EX9: A | EY9: 3044.27 | EZ9: A | FA9: 12826.18 | FB9: 7 | FD9: 60222.89 | FF9: 0 | FH9: 60222.89 | FI9: 7 | FK9: 9040.72 | FM9: 9040.72 | FN9: 7 | FP9: 32733.01 | FQ9: 7 | FR9: A | FS9: 103843.78 | FU9: 0 | FV9: A | FW9: 103843.78 | FX9: 7 | FY9: A | FZ9: 109775.12 | GA9: A | GB9: 109775.12 | GC9: 7 | GD9: A | GE9: 4453.4 | GG9: 0 | GH9: A | GI9: 4453.4
A10: 8 | C10: 0 | E10: 295809.84 | F10: AB | G10: 259807.22 | H10: B | I10: 0 | J10: B | K10: 700255.06 | L10: B | M10: 0 | N10: B | O10: 7500.35 | P10: AB | Q10: 9119.1 | R10: B | S10: 17743.64 | T10: B | U10: 0 | V10: B | W10: 6101.27 | X10: B | Y10: 20388.16 | Z10: B | AA10: 10574.35 | AB10: AB | AC10: 1327299 | AD10: 8 | AE10: B | AF10: 6292.15 | AG10: B | AH10: 412009.25 | AI10: B | AJ10: 62475.34 | AK10: B | AL10: 138262.38 | AM10: B | AN10: 1296829.25 | AO10: AB | AP10: 14847.61 | AQ10: B | AR10: 16968.07 | AS10: AB | AT10: 1947684.05 | AU10: 8 | AV10: AB | AW10: 270139.13 | AX10: AB | AY10: 191656.39 | AZ10: B | BA10: 0 | BB10: AB | BC10: 124646.88 | BD10: AB | BE10: 12934 | BF10: B | BG10: 4166.48 | BH10: B | BI10: 11451.3 | BJ10: B | BK10: 6358.49 | BL10: B | BM10: 5959.45 | BN10: B | BO10: 51994.74 | BP10: B | BQ10: 4314.15 | BR10: B | BS10: 78890.03 | BT10: AB | BU10: 52392.3 | BV10: AB | BW10: 40560.3 | BX10: B | BY10: 115469.81 | BZ10: AB | CA10: 970933.45 | CB10: 8 | CC10: B | CD10: 658290.25 | CE10: AB | CF10: 13604 | CG10: B | CH10: 0.79 | CI10: B | CJ10: 113803.55 | CK10: B | CL10: 52757.14 | CM10: B | CN10: 136632.56 | CO10: B | CP10: 38118.69 | CQ10: B | CR10: 8535.98 | CS10: B | CT10: 109260.51 | CV10: 7604.62 | CW10: B | CX10: 23090.69 | CY10: B | CZ10: 8538.38 | DA10: AB | DB10: 1170237.16 | DC10: 8 | DD10: B | DE10: 188049.66 | DF10: B | DG10: 4592.56 | DH10: B | DI10: 15894.7 | DJ10: B | DK10: 2536.69 | DL10: AB | DM10: 49194.02 | DN10: AB | DO10: 198824.88 | DP10: B | DQ10: 15994.3 | DR10: B | DS10: 824243.13 | DT10: AB | DU10: 1299329.93 | DV10: 8 | DW10: B | DX10: 0 | DY10: B | DZ10: 70600.77 | EA10: B | EB10: 9664.64 | EC10: B | ED10: 6931.18 | EE10: B | EF10: 354245.34 | EG10: B | EH10: 21491.1 | EI10: B | EJ10: 11118.05 | EK10: B | EL10: 474051.09 | EM10: 8 | EN10: AB | EO10: 3062.52 | EP10: AB | EQ10: 16.19 | ER10: AB | ES10: 457.56 | ET10: AB | EU10: 3620.98 | EV10: AB | EW10: 3483.87 | EX10: AB | EY10: 3036.21 | EZ10: AB | FA10: 13677.33 | FB10: 8 | FC10: B | FD10: 85760.49 | FE10: B | FF10: 0.01 | FG10: B | FH10: 85760.5 | FI10: 8 | FJ10: ABC | FK10: 10292.74 | FL10: ABC | FM10: 10292,74* | FN10: 8 | FO10: B | FP10: 35295.93 | FQ10: 8 | FR10: AB | FS10: 36263.18 | FT10: B | FU10: 0 | FV10: AB | FW10: 36263.18 | FX10: 8 | FY10: AB | FZ10: 126175.06 | GA10: AB | GB10: 126175.06 | GC10: 8 | GD10: AB | GE10: 3405.11 | GF10: B | GG10: 0 | GH10: AB | GI10: 3405.11
A11: 9 | C11: 0 | E11: 283068.75 | F11: A | G11: 257800.8 | I11: 0 | K11: 674739.69 | M11: 0 | O11: 7468.08 | P11: A | Q11: 8950.08 | S11: 17220.23 | U11: 0 | W11: 5942.53 | Y11: 18750.73 | AA11: 10561.97 | AB11: A | AC11: 1284502.87 | AD11: 9 | AF11: 6195.83 | AH11: 411995.72 | AJ11: 62392.67 | AL11: 138345.91 | AN11: 1287856.5 | AO11: A | AP11: 69666.86 | AR11: 16908.59 | AS11: A | AT11: 1993362.08 | AU11: 9 | AW11: 269188.53 | AY11: 190890.02 | BA11: 0 | BC11: 140911.86 | BD11: A | BE11: 12814.47 | BG11: 4221.24 | BH11: A | BI11: 10166.94 | BK11: 6083.09 | BM11: 5864.57 | BO11: 50509.53 | BQ11: 4268.23 | BS11: 76779.9 | BU11: 0 | BW11: 0 | BY11: 113736.97 | BZ11: A | CA11: 885435.35 | CB11: 9 | CD11: 647934.25 | CE11: A | CF11: 12102.17 | CH11: 0.54 | CJ11: 111604.79 | CL11: 52552.38 | CN11: 134404.05 | CP11: 37277.59 | CR11: 8552.05 | CT11: 109803.91 | CV11: 7553.07 | CX11: 22442.08 | CZ11: 8810.43 | DA11: A | DB11: 1153037.31 | DC11: 9 | DE11: 182721.53 | DG11: 4541.81 | DI11: 14781.7 | DK11: 2497.6 | DL11: A | DM11: 24234.03 | DN11: A | DO11: 33609.58 | DQ11: 15593.8 | DS11: 806750.38 | DT11: A | DU11: 1084730.43 | DV11: 9 | DW11: A | DX11: 0 | DY11: A | DZ11: 69934.56 | EB11: 9343.89 | ED11: 6838.53 | EF11: 350379.06 | EH11: 21091.24 | EJ11: 11008.69 | EK11: A | EL11: 468595.96 | EM11: 9 | EN11: A | EO11: 2594.69 | EP11: A | EQ11: 43.62 | ER11: A | ES11: 775.81 | ET11: A | EU11: 3430.02 | EV11: A | EW11: 3279.1 | EX11: A | EY11: 2687.28 | EZ11: A | FA11: 12810.51 | FB11: 9 | FD11: 57323.46 | FF11: 0 | FH11: 57323.46 | FI11: 9 | FK11: 10422.08 | FM11: 10422.08 | FN11: 9 | FP11: 36316.42 | FQ11: 9 | FR11: A | FS11: 19258.02 | FU11: 0 | FV11: A | FW11: 19258.02 | FX11: 9 | FY11: A | FZ11: 122398.23 | GA11: A | GB11: 122398.23 | GC11: 9 | GE11: 4694.11 | GG11: 0 | GI11: 4694.11
A12: 10 | C12: 0 | E12: 258710.11 | F12: A | G12: 252479.34 | I12: 0 | K12: 639289.13 | M12: 0 | N12: A | O12: 7266.97 | P12: A | Q12: 8742.17 | S12: 16618.41 | U12: 0 | W12: 5783.3 | Y12: 17608.2 | AA12: 10175.59 | AB12: A | AC12: 1216673.22 | AD12: 10 | AF12: 5840.92 | AH12: 379930.22 | AJ12: 58658.45 | AL12: 139418.61 | AN12: 1186156.25 | AO12: A | AP12: 20059.99 | AR12: 15990.79 | AS12: A | AT12: 1806055.22 | AU12: 10 | AW12: 259518.8 | AY12: 184043.19 | BA12: 0 | BC12: 120491.2 | BD12: A | BE12: 11723.13 | BF12: A | BG12: 4123.53 | BI12: 9170.91 | BK12: 5972.09 | BM12: 5510.73 | BO12: 47765.77 | BQ12: 3916.94 | BS12: 73774.38 | BT12: A | BU12: 9814.53 | BW12: 0 | BY12: 104356.26 | BZ12: A | CA12: 840181.44 | CB12: 10 | CD12: 631906.94 | CE12: A | CF12: 12214.23 | CH12: 0.18 | CJ12: 107779.89 | CL12: 55013.14 | CN12: 134260.75 | CP12: 37255.05 | CR12: 8584.62 | CT12: 109758.04 | CV12: 7533 | CX12: 22594.11 | CZ12: 8806.75 | DA12: A | DB12: 1135706.7 | DC12: 10 | DE12: 170924.52 | DG12: 4322.84 | DI12: 14012.61 | DK12: 2347.16 | DL12: A | DM12: 17899.08 | DN12: A | DO12: 35232.48 | DQ12: 15000.22 | DS12: 753400.56 | DT12: A | DU12: 1013139.48 | DV12: 10 | DX12: 0 | DZ12: 66937.95 | EB12: 8880.15 | ED12: 6280.07 | EF12: 324903.09 | EH12: 19842.46 | EJ12: 10395.37 | EL12: 437239.08 | EM12: 10 | EN12: A | EO12: 1957.63 | EP12: A | EQ12: 30.83 | ER12: A | ES12: 520.14 | ET12: A | EU12: 3056.78 | EV12: A | EW12: 3676.88 | EX12: A | EY12: 2762.7 | EZ12: A | FA12: 12004.94 | FB12: 10 | FD12: 61350.63 | FF12: 0 | FH12: 61350.63 | FI12: 10 | FJ12: A | FK12: 7384.39 | FL12: A | FM12: 7384.39 | FN12: 10 | FP12: 33244.33 | FQ12: 10 | FR12: A | FS12: 4013.37 | FU12: 0 | FV12: A | FW12: 4013.37 | FX12: 10 | FY12: A | FZ12: 106749.32 | GA12: A | GB12: 106749.32 | GC12: 10 | GD12: A | GE12: 1307 | GG12: 0 | GH12: A | GI12: 1307
A13: 11 | C13: 0 | E13: 230519.25 | F13: A | G13: 231893.03 | I13: 0 | K13: 598220.06 | M13: 0 | O13: 6951.33 | Q13: 8249.64 | S13: 15376.45 | U13: 0 | W13: 5328.61 | Y13: 15605.89 | AA13: 9432.99 | AB13: A | AC13: 1121577.26 | AD13: 11 | AF13: 5412.55 | AH13: 336770.22 | AJ13: 56747.17 | AL13: 136250.42 | AN13: 1038637.63 | AO13: A | AP13: 19533.63 | AR13: 14651.49 | AS13: A | AT13: 1608003.1 | AU13: 11 | AW13: 231455.88 | AY13: 164226.88 | BA13: 0 | BC13: 127628.23 | BD13: A | BE13: 11069.56 | BG13: 3899.41 | BI13: 8929.79 | BK13: 5620.7 | BM13: 5221.21 | BO13: 44590.27 | BQ13: 3664.4 | BS13: 68578.48 | BU13: 0 | BW13: 0 | BY13: 98942.8 | BZ13: A | CA13: 773827.61 | CB13: 11 | CD13: 560364.5 | CE13: A | CF13: 13757.17 | CH13: 0.22 | CJ13: 96853.23 | CL13: 55981.57 | CN13: 126573.33 | CP13: 34663.02 | CR13: 8460.04 | CT13: 104915.02 | CV13: 7210.81 | CX13: 21217.04 | CZ13: 8373.05 | DA13: A | DB13: 1038369.01 | DC13: 11 | DE13: 151513.19 | DG13: 4009.99 | DI13: 12232.95 | DK13: 2271.05 | DL13: A | DM13: 12260.17 | DO13: 0 | DQ13: 14199.63 | DS13: 688754.69 | DT13: A | DU13: 885241.67 | DV13: 11 | DX13: 0 | DZ13: 60147.55 | EA13: A | EB13: 7986.8 | ED13: 5477.79 | EF13: 287253.66 | EH13: 17753.46 | EJ13: 9286.25 | EK13: A | EL13: 387905.51 | EM13: 11 | EN13: A | EO13: 372.08 | EP13: A | EQ13: 10.29 | ER13: A | ES13: 176.95 | ET13: A | EU13: 1631.93 | EV13: A | EW13: 2996.81 | EX13: A | EY13: 2116.83 | EZ13: A | FA13: 7304.88 | FB13: 11 | FD13: 11933.33 | FF13: 0 | FH13: 11933.33 | FI13: 11 | FK13: 6000.08 | FM13: 6000.08 | FN13: 11 | FP13: 21350.54 | FQ13: 11 | FR13: A | FS13: 45568.17 | FU13: 0 | FV13: A | FW13: 45568.17 | FX13: 11 | FY13: A | FZ13: 117351.54 | GA13: A | GB13: 117351.54 | GC13: 11 | GD13: A | GE13: 1432.8 | GG13: 0 | GH13: A | GI13: 1432.8
A14: 12 | C14: 0 | E14: 192032.69 | F14: A | G14: 225152.02 | I14: 0 | K14: 564405.19 | M14: 0 | O14: 6624.05 | P14: A | Q14: 7772.87 | S14: 14363.53 | U14: 0 | W14: 5142.2 | Y14: 15287.58 | AA14: 9147.42 | AB14: A | AC14: 1039927.54 | AD14: 12 | AF14: 5108.01 | AH14: 330498.41 | AJ14: 53022.32 | AL14: 134482.83 | AN14: 1035817.44 | AO14: A | AP14: 27080.21 | AR14: 14558.95 | AS14: A | AT14: 1600568.16 | AU14: 12 | AW14: 226930 | AY14: 160939.56 | BA14: 0 | BC14: 106932.13 | BD14: A | BE14: 10898.74 | BG14: 3776.35 | BI14: 7763.3 | BK14: 5617.19 | BL14: A | BM14: 5167.06 | BN14: A | BO14: 43646.95 | BQ14: 3285.64 | BS14: 65983.45 | BU14: 0 | BW14: 0 | BY14: 92060.73 | BZ14: A | CA14: 733001.1 | CB14: 12 | CD14: 540631.44 | CE14: A | CF14: 11972.61 | CH14: 0.14 | CJ14: 91374.09 | CL14: 54107.1 | CN14: 119275.54 | CP14: 33199.61 | CR14: 8014.7 | CT14: 99964.75 | CV14: 6658.3 | CX14: 19517.28 | CZ14: 7801.83 | DA14: A | DB14: 992517.4 | DC14: 12 | DE14: 143172.14 | DG14: 3888.93 | DI14: 11334.82 | DK14: 2170.09 | DL14: A | DM14: 14607.7 | DO14: 0 | DQ14: 13598.14 | DS14: 658447.25 | DT14: A | DU14: 847219.06 | DV14: 12 | DX14: 0 | DZ14: 57397.21 | EB14: 7687.84 | ED14: 5208.03 | EF14: 273531.25 | EH14: 16434.5 | EJ14: 8690.5 | EL14: 368949.34 | EM14: 12 | EN14: A | EO14: 491.41 | EP14: A | EQ14: 3.68 | ER14: A | ES14: 118.24 | ET14: A | EU14: 1213.1 | EV14: A | EW14: 2500.86 | EX14: A | EY14: 1621.24 | EZ14: A | FA14: 5948.52 | FB14: 12 | FD14: 11746.07 | FF14: 0 | FH14: 11746.07 | FI14: 12 | FK14: 4690.85 | FM14: 4690.85 | FN14: 12 | FP14: 17529.5 | FQ14: 12 | FR14: A | FS14: 34068.24 | FU14: 0 | FV14: A | FW14: 34068.24 | FX14: 12 | FY14: A | FZ14: 112512.53 | GA14: A | GB14: 112512.53 | GC14: 12 | GD14: A | GE14: 1298.21 | GG14: 0 | GH14: A | GI14: 1298.21
A15: 13 | C15: 0 | E15: 159550.52 | G15: 215771.44 | I15: 0 | K15: 547906.94 | M15: 0 | O15: 6240.06 | Q15: 7303.94 | S15: 13974.46 | U15: 0 | W15: 4871.64 | Y15: 14565.97 | AA15: 8503.49 | AC15: 978688.46 | AD15: 13 | AF15: 4984.09 | AH15: 320104.19 | AJ15: 51317.14 | AL15: 132480.08 | AN15: 930613 | AO15: A | AP15: 20711.86 | AR15: 13618.47 | AS15: A | AT15: 1473828.83 | AU15: 13 | AW15: 214875.58 | AY15: 152479.98 | BA15: 0 | BC15: 121188.92 | BD15: A | BE15: 9987.3 | BG15: 3516.9 | BI15: 8611.35 | BK15: 5320.04 | BM15: 4946.99 | BO15: 40359.23 | BQ15: 3237.14 | BS15: 63170.62 | BT15: A | BU15: 2103.63 | BV15: A | BW15: 153368.28 | BY15: 88156.65 | BZ15: A | CA15: 871322.61 | CB15: 13 | CD15: 534012.25 | CE15: A | CF15: 8673.32 | CH15: 0.02 | CJ15: 89322.27 | CL15: 53321.46 | CN15: 114347.3 | CP15: 31590.76 | CR15: 7520.41 | CT15: 92069.98 | CV15: 6378.97 | CX15: 18904.54 | CZ15: 7477.21 | DA15: A | DB15: 963618.48 | DC15: 13 | DD15: A | DE15: 138933.84 | DG15: 3685.49 | DI15: 11834.47 | DJ15: A | DK15: 2056.79 | DL15: A | DM15: 38955.65 | DO15: 0 | DQ15: 13045.64 | DS15: 641269.19 | DT15: A | DU15: 849781.07 | DV15: 13 | DX15: 0 | DZ15: 56768.2 | EB15: 7555.5 | ED15: 5079.85 | EF15: 265832.16 | EH15: 16442.27 | EJ15: 8653.4 | EL15: 360331.37 | EM15: 13 | EN15: A | EO15: 1652.58 | EP15: A | EQ15: 5.72 | ER15: A | ES15: 350.55 | ET15: A | EU15: 2448.83 | EV15: A | EW15: 2521.99 | EX15: A | EY15: 2689.8 | EZ15: A | FA15: 9669.47 | FB15: 13 | FD15: 46254.68 | FF15: 0 | FH15: 46254.69 | FI15: 13 | FK15: 11390.14 | FM15: 11390.14 | FN15: 13 | FP15: 25282.26 | FQ15: 13 | FR15: A | FS15: 60257.66 | FU15: 0 | FV15: A | FW15: 60257.66 | FX15: 13 | FY15: A | FZ15: 117195.34 | GA15: A | GB15: 117195.34 | GC15: 13 | GE15: 1297.62 | GG15: 0 | GI15: 1297.62
A16: 14 | C16: 0 | E16: 150501 | G16: 216336.3 | I16: 0 | K16: 554643.13 | M16: 0 | O16: 6403.78 | P16: A | Q16: 7409.36 | S16: 14165.89 | U16: 0 | W16: 5009.28 | Y16: 15928.29 | AA16: 8895.57 | AB16: A | AC16: 979292.6 | AD16: 14 | AF16: 5140.17 | AH16: 327197.59 | AJ16: 50706.64 | AL16: 132198.77 | AN16: 927493.75 | AO16: A | AP16: 21146.21 | AR16: 13888.07 | AS16: A | AT16: 1477771.21 | AU16: 14 | AW16: 214076.8 | AY16: 151908.36 | BA16: 0 | BB16: A | BC16: 123800.66 | BD16: A | BE16: 10328.87 | BF16: A | BG16: 3552.52 | BI16: 9586.11 | BK16: 5528.04 | BM16: 4989.22 | BN16: A | BO16: 40721.82 | BQ16: 3146.7 | BS16: 64258.78 | BU16: 0 | BV16: A | BW16: 78.5 | BY16: 92668.52 | BZ16: A | CA16: 724644.88 | CB16: 14 | CD16: 530873.63 | CE16: A | CF16: 17032.6 | CH16: 0 | CJ16: 91660.74 | CL16: 51673.27 | CN16: 116767.43 | CP16: 33192.86 | CR16: 7826.21 | CT16: 91442.44 | CV16: 6601.59 | CX16: 19328.13 | CZ16: 7676.69 | DA16: A | DB16: 974075.57 | DC16: 14 | DD16: A | DE16: 134597.91 | DF16: A | DG16: 3840.54 | DI16: 11544.26 | DK16: 2082.83 | DL16: A | DM16: 78609.98 | DO16: 0 | DQ16: 13207.1 | DS16: 648565.94 | DT16: A | DU16: 892448.55 | DV16: 14 | DX16: 0 | DZ16: 58457.16 | EB16: 8049.53 | ED16: 5427.86 | EE16: ABC | EF16: 277665.06 | EH16: 17625.98 | EJ16: 9168.89 | EK16: ABC | EL16: 376394,47* | EM16: 14 | EN16: A | EO16: 3159.51 | EP16: A | EQ16: 5.75 | ER16: A | ES16: 742.05 | ET16: A | EU16: 2546.08 | EV16: A | EW16: 2249.58 | EX16: A | EY16: 2333.38 | EZ16: A | FA16: 11036.35 | FB16: 14 | FD16: 128219.78 | FF16: 18.9 | FH16: 128238.68 | FI16: 14 | FK16: 8429.28 | FM16: 8429.28 | FN16: 14 | FP16: 26646.19 | FQ16: 14 | FR16: A | FS16: 268.97 | FU16: 0 | FV16: A | FW16: 268.97 | FX16: 14 | FY16: A | FZ16: 102700.65 | GA16: A | GB16: 102700.65 | GC16: 14 | GE16: 1287.97 | GG16: 0 | GI16: 1287.97
A17: 15 | B17: A | C17: 0 | D17: A | E17: 149473.5 | G17: 204268.17 | I17: 0 | K17: 521264.03 | M17: 0 | O17: 6070.87 | P17: A | Q17: 7048.42 | S17: 13399.14 | U17: 0 | W17: 4793.11 | Y17: 14278.84 | AA17: 8414.1 | AB17: A | AC17: 929010.18 | AD17: 15 | AF17: 4939.92 | AH17: 298273.06 | AJ17: 49570.03 | AL17: 124656.52 | AN17: 885041.06 | AO17: A | AP17: 21102.07 | AQ17: A | AR17: 13119.33 | AS17: A | AT17: 1396702 | AU17: 15 | AW17: 200841.98 | AY17: 142472.42 | BA17: 0 | BC17: 116739.23 | BD17: A | BE17: 9946.81 | BF17: A | BG17: 3301.51 | BI17: 8546.51 | BK17: 5392.64 | BM17: 4834.15 | BO17: 38493.33 | BQ17: 3137.71 | BS17: 60467.54 | BU17: 0 | BW17: 0 | BY17: 87100.66 | BZ17: A | CA17: 681274.51 | CB17: 15 | CD17: 489199 | CE17: A | CF17: 12421.54 | CH17: 0 | CJ17: 85406.6 | CL17: 49052.49 | CN17: 108639.93 | CP17: 29276.04 | CR17: 7561.86 | CT17: 83875.08 | CV17: 6201.94 | CX17: 17525.29 | CZ17: 7201.82 | DA17: A | DB17: 896361.59 | DC17: 15 | DD17: A | DE17: 124581.37 | DG17: 3653.11 | DI17: 11442.23 | DK17: 1964.47 | DL17: A | DM17: 12565.29 | DO17: 0 | DQ17: 12596.76 | DR17: A C | DS17: 592538.63 | DT17: A C | DU17: 759341,86* | DV17: 15 | DX17: 0 | DZ17: 55370.9 | EB17: 7676.31 | ED17: 5303.73 | EF17: 267355.16 | EH17: 16576.8 | EJ17: 8680.68 | EL17: 360963.58 | EM17: 15 | EN17: A | EO17: 1949.16 | EP17: A | EQ17: 5.59 | ER17: A | ES17: 427.06 | ET17: A | EU17: 4698.76 | EV17: A | EW17: 2001.21 | EX17: A | EY17: 1797.87 | EZ17: A | FA17: 10879.66 | FB17: 15 | FD17: 130244.2 | FF17: 20.53 | FH17: 130264.73 | FI17: 15 | FK17: 4813.43 | FM17: 4813.43 | FN17: 15 | FP17: 22802.01 | FQ17: 15 | FR17: A | FS17: 3838.99 | FU17: 0 | FV17: A | FW17: 3838.99 | FX17: 15 | FY17: A | FZ17: 108764.16 | GA17: A | GB17: 108764.16 | GC17: 15 | GD17: A | GE17: 1206.92 | GF17: A | GG17: 15.29 | GH17: A | GI17: 1222.21
A18: 16 | C18: 0 | E18: 150848.73 | F18: AB | G18: 225707.81 | H18: B | I18: 0 | J18: B | K18: 572864.06 | L18: B | M18: 0 | N18: B | O18: 6252.89 | P18: AB | Q18: 7361.9 | R18: B | S18: 13968.95 | T18: B | U18: 0 | V18: B | W18: 4966.11 | X18: B | Y18: 15717.97 | Z18: B | AA18: 8878.46 | AB18: AB | AC18: 1006566.9 | AD18: 16 | AE18: B | AF18: 4972.33 | AG18: B | AH18: 327348.44 | AI18: B | AJ18: 52467.02 | AK18: B | AL18: 134911 | AM18: B | AN18: 1002147.38 | AO18: B | AP18: 21555.74 | AQ18: B | AR18: 13801.03 | AS18: B | AT18: 1557202.93 | AU18: 16 | AV18: B | AW18: 222755.78 | AX18: B | AY18: 157918.33 | AZ18: B | BA18: 0 | BB18: B | BC18: 125658.73 | BD18: AB | BE18: 10332.26 | BF18: B | BG18: 3726.19 | BH18: B | BI18: 8643.66 | BJ18: B | BK18: 5480.75 | BL18: B | BM18: 5002.12 | BN18: B | BO18: 42136.21 | BP18: B | BQ18: 3477.28 | BR18: B | BS18: 67717.3 | BT18: B | BU18: 0 | BV18: B | BW18: 0 | BX18: B | BY18: 94474.8 | BZ18: AB | CA18: 747323.42 | CB18: 16 | CC18: ABC | CD18: 565739.5 | CE18: A | CF18: 12209.54 | CH18: 0 | CI18: B | CJ18: 95412.16 | CK18: B | CL18: 52148.35 | CM18: B | CN18: 116064.92 | CO18: B | CP18: 34790.3 | CQ18: B | CR18: 7535.09 | CS18: B | CT18: 95831.8 | CV18: 6579.55 | CW18: B | CX18: 20216.32 | CY18: B | CZ18: 7396.64 | DA18: ABC | DB18: 1013924,18* | DC18: 16 | DD18: B | DE18: 150093.36 | DF18: B | DG18: 3721.22 | DH18: B | DI18: 12627.02 | DJ18: B | DK18: 2058.36 | DL18: AB | DM18: 18670.63 | DN18: B | DO18: 0 | DP18: B | DQ18: 13027.76 | DR18: B | DS18: 674265.5 | DT18: AB | DU18: 874463.85 | DV18: 16 | DW18: B | DX18: 0 | DY18: B | DZ18: 56889.07 | EA18: B | EB18: 7727.5 | EC18: B | ED18: 5395.75 | EE18: B | EF18: 274561.97 | EG18: B | EH18: 17076.28 | EI18: B | EJ18: 8786.8 | EK18: B | EL18: 370437.36 | EM18: 16 | EN18: AB | EO18: 1712.12 | EP18: AB | EQ18: 29.56 | ER18: AB | ES18: 256.41 | ET18: AB | EU18: 2648.03 | EV18: AB | EW18: 2229.63 | EX18: AB | EY18: 1979.4 | EZ18: AB | FA18: 8855.14 | FB18: 16 | FC18: B | FD18: 117153.64 | FE18: B | FF18: 2.92 | FG18: B | FH18: 117156.56 | FI18: 16 | FJ18: B | FK18: 8657.52 | FL18: B | FM18: 8657.52 | FN18: 16 | FO18: B | FP18: 27378.49 | FQ18: 16 | FR18: AB | FS18: 303.9 | FT18: B | FU18: 0 | FV18: AB | FW18: 303.9 | FX18: 16 | FY18: AB | FZ18: 105339.63 | GA18: AB | GB18: 105339.63 | GC18: 16 | GD18: AB | GE18: 1123.21 | GF18: AB | GG18: 0.22 | GH18: AB | GI18: 1123.44
A19: 17 | C19: 0 | E19: 150128.33 | F19: A | G19: 222492.72 | I19: 0 | K19: 544906.5 | M19: 0 | O19: 6634.81 | P19: A | Q19: 7647.57 | S19: 14041.25 | U19: 0 | W19: 5159.94 | Y19: 15450.6 | AA19: 8865.26 | AB19: A | AC19: 975326.98 | AD19: 17 | AF19: 5137.85 | AG19: A C | AH19: 325460.25 | AJ19: 51766.34 | AL19: 131900.92 | AN19: 933935.38 | AP19: 31155.44 | AR19: 14112.79 | AS19: A C | AT19: 1493468,97* | AU19: 17 | AW19: 217808.41 | AY19: 154349.77 | BA19: 0 | BC19: 100250.21 | BD19: A | BE19: 10800.56 | BG19: 3747.31 | BI19: 7841.71 | BK19: 5617.51 | BM19: 5255.06 | BO19: 42703.61 | BQ19: 3500.3 | BS19: 65369.77 | BU19: 0 | BW19: 0 | BY19: 92165.61 | BZ19: A | CA19: 709409.84 | CB19: 17 | CD19: 529134.38 | CE19: AB | CF19: 12821.9 | CG19: B | CH19: 0 | CJ19: 88359.89 | CL19: 49819.97 | CN19: 113134.46 | CP19: 33048.46 | CR19: 7704.5 | CT19: 88077.62 | CV19: 6462.44 | CX19: 19072.4 | CZ19: 7313.9 | DA19: AB | DB19: 954949.93 | DC19: 17 | DD19: A | DE19: 137545.53 | DG19: 3847.7 | DI19: 11664.3 | DJ19: A | DK19: 2064.37 | DM19: 24352.3 | DO19: 0 | DQ19: 13376.93 | DS19: 655817.5 | DT19: A | DU19: 848668.63 | DV19: 17 | DX19: 0 | DZ19: 58184.44 | EB19: 7952.62 | ED19: 5630 | EF19: 282334.34 | EH19: 17749.04 | EJ19: 9064.07 | EL19: 380914.51 | EM19: 17 | EN19: A C | EO19: 1788.71 | EP19: A | EQ19: 100.36 | ER19: A | ES19: 462.99 | ET19: A | EU19: 2483.75 | EV19: A | EW19: 2317.53 | EX19: A | EY19: 1779.37 | EZ19: A C | FA19: 8932.72 | FB19: 17 | FD19: 113698.46 | FF19: 7.87 | FH19: 113706.33 | FI19: 17 | FK19: 6727.04 | FM19: 6727.04 | FN19: 17 | FP19: 29198.98 | FQ19: 17 | FR19: A | FS19: 88244.7 | FU19: 0 | FV19: A | FW19: 88244.7 | FX19: 17 | FY19: A | FZ19: 116653.25 | GA19: A | GB19: 116653.25 | GC19: 17 | GE19: 1319.17 | GG19: 0 | GI19: 1319.17
A20: 18 | C20: 0 | E20: 143501.94 | G20: 190670.97 | I20: 0 | K20: 494740.97 | M20: 0 | O20: 6075.35 | Q20: 6952.65 | S20: 12771.44 | U20: 0 | W20: 4775.69 | Y20: 13628.32 | AA20: 8295.72 | AC20: 881413.04 | AD20: 18 | AF20: 4769.1 | AH20: 285885.59 | AJ20: 46401.99 | AL20: 126260.96 | AN20: 841855.88 | AO20: A | AP20: 26292.68 | AR20: 12908.02 | AS20: A | AT20: 1344374.22 | AU20: 18 | AW20: 192281.45 | AY20: 136252.91 | BA20: 0 | BC20: 110958.92 | BD20: A | BE20: 9530.01 | BG20: 3429.47 | BI20: 7404.81 | BK20: 5118.71 | BM20: 4816.55 | BO20: 37773.42 | BQ20: 3005.34 | BS20: 58849.65 | BU20: 0 | BW20: 0 | BY20: 84475.92 | BZ20: A | CA20: 653897.17 | CB20: 18 | CD20: 464458 | CE20: A | CF20: 10519.19 | CH20: 0 | CJ20: 78093.45 | CL20: 49010.44 | CN20: 105533.36 | CP20: 28438.28 | CR20: 7211.26 | CT20: 81511.69 | CV20: 6010.36 | CX20: 16603.24 | CZ20: 6901.8 | DA20: A | DB20: 854291.05 | DC20: 18 | DD20: A | DE20: 116184.25 | DG20: 3622.99 | DI20: 10264.04 | DK20: 1952.08 | DL20: A | DM20: 9607.9 | DO20: 0 | DQ20: 12565.84 | DS20: 613463.5 | DT20: A | DU20: 767660.6 | DV20: 18 | DX20: 0 | DZ20: 53000.72 | EA20: A | EB20: 7332.05 | ED20: 5113.12 | EF20: 254805.92 | EH20: 16150.22 | EJ20: 8371.47 | EK20: A | EL20: 344773.5 | EM20: 18 | EN20: A | EO20: 1441.75 | EP20: A | EQ20: 49.75 | ER20: A | ES20: 291.89 | ET20: A | EU20: 1458.98 | EV20: A | EW20: 1868.24 | EX20: A | EY20: 1337.6 | EZ20: A | FA20: 6448.21 | FB20: 18 | FC20: A | FD20: 6693.06 | FF20: 0 | FG20: A | FH20: 6693.06 | FI20: 18 | FJ20: A | FK20: 1064.6 | FL20: A | FM20: 1064.6 | FN20: 18 | FP20: 17263.68 | FQ20: 18 | FR20: A | FS20: 2480.91 | FU20: 0 | FV20: A | FW20: 2480.91 | FX20: 18 | FY20: A | FZ20: 100269.6 | GA20: A | GB20: 100269.6 | GC20: 18 | GE20: 1266.35 | GG20: 0 | GI20: 1266.35
A21: 19 | C21: 0 | E21: 138853.52 | G21: 177065.98 | I21: 0 | K21: 455474.34 | M21: 0 | O21: 5463.47 | Q21: 6285.55 | S21: 11856.46 | U21: 0 | W21: 4383.79 | Y21: 12495.56 | AA21: 7723.47 | AC21: 819602.15 | AD21: 19 | AF21: 4303.38 | AH21: 261758.7 | AJ21: 45392.75 | AL21: 123325.13 | AN21: 754046.06 | AO21: A | AP21: 24112.04 | AR21: 11903.34 | AS21: A | AT21: 1224841.4 | AU21: 19 | AW21: 174849.17 | AY21: 124679.81 | BA21: 0 | BC21: 108414.84 | BE21: 8608.48 | BG21: 3108.76 | BI21: 6174.13 | BK21: 4772.42 | BM21: 4345.44 | BO21: 35356.35 | BQ21: 2409.29 | BS21: 53861.75 | BU21: 0 | BW21: 0 | BY21: 83805.23 | CA21: 610385.68 | CB21: 19 | CD21: 433655.56 | CE21: A | CF21: 13643.3 | CH21: 0 | CI21: A | CJ21: 75351.3 | CL21: 49744.2 | CN21: 96475.63 | CP21: 25303.73 | CR21: 6741.05 | CT21: 69794.88 | CV21: 5518.05 | CX21: 14755.4 | CZ21: 6293.53 | DA21: A | DB21: 797276.62 | DC21: 19 | DE21: 108064.38 | DF21: A | DG21: 3274.21 | DI21: 9419.49 | DK21: 1803.18 | DL21: A | DM21: 8800.59 | DO21: 0 | DQ21: 11849.94 | DS21: 556225.75 | DT21: A | DU21: 699437.55 | DV21: 19 | DX21: 0 | DZ21: 49240.71 | EB21: 6876.13 | ED21: 4684.97 | EF21: 239424.19 | EH21: 15017.99 | EJ21: 8020.47 | EL21: 323264.46 | EM21: 19 | EN21: A | EO21: 1068.25 | EP21: A | EQ21: 37.82 | ER21: A | ES21: 209.35 | ET21: A | EU21: 1270.72 | EV21: A | EW21: 1333.21 | EX21: A | EY21: 1263.29 | EZ21: A | FA21: 5182.64 | FB21: 19 | FD21: 2094.61 | FF21: 0 | FH21: 2094.61 | FI21: 19 | FJ21: A | FK21: 7196.73 | FL21: A | FM21: 7196.73 | FN21: 19 | FP21: 13680.66 | FQ21: 19 | FR21: A | FS21: 39332.63 | FU21: 0 | FV21: A | FW21: 39332.63 | FX21: 19 | FY21: A | FZ21: 106545.12 | GA21: A | GB21: 106545.12 | GC21: 19 | GE21: 1255.76 | GG21: 0 | GI21: 1255.76
A22: 20 | C22: 0 | E22: 144079.72 | G22: 175326.84 | I22: 0 | J22: A C | K22: 438670.75 | M22: 0 | N22: A | O22: 5001.99 | P22: A | Q22: 5958.63 | S22: 10111.38 | U22: 0 | W22: 3846.34 | Y22: 12447.39 | AA22: 6992.36 | AB22: A C | AC22: 802435,41* | AD22: 20 | AF22: 3974.26 | AH22: 249002.06 | AJ22: 43701.4 | AL22: 119529.45 | AN22: 734909.06 | AP22: 29484.29 | AQ22: A | AR22: 10974.33 | AS22: A | AT22: 1191574.86 | AU22: 20 | AW22: 165359.33 | AY22: 118868.23 | BA22: 0 | BC22: 101838.28 | BE22: 7910.34 | BG22: 2924.16 | BI22: 6000.42 | BK22: 4437.58 | BM22: 4167.58 | BO22: 32383.44 | BQ22: 2427.01 | BS22: 49769.26 | BT22: A | BU22: 97638.98 | BV22: A | BW22: 25840.17 | BY22: 84139.59 | BZ22: A | CA22: 703704.36 | CB22: 20 | CD22: 403819.75 | CE22: A | CF22: 12935.11 | CH22: 0 | CJ22: 69640.73 | CL22: 45846.53 | CN22: 86688.53 | CP22: 23186.86 | CR22: 5819.07 | CT22: 63580.81 | CV22: 4784.63 | CX22: 13486.65 | CZ22: 5540.83 | DA22: A | DB22: 735329.5 | DC22: 20 | DD22: A | DE22: 106817.87 | DF22: A | DG22: 3024.43 | DI22: 9273.89 | DJ22: A | DK22: 1658.34 | DL22: A | DM22: 8951.5 | DO22: 0 | DQ22: 11041.4 | DS22: 555207.75 | DT22: A | DU22: 695975.18 | DV22: 20 | DX22: 0 | DZ22: 45508.05 | EB22: 6409.49 | ED22: 4403.1 | EF22: 218279.78 | EH22: 14071.12 | EJ22: 7502.93 | EL22: 296174.47 | EM22: 20 | EN22: A | EO22: 1571.38 | EP22: A | EQ22: 22.42 | ER22: A | ES22: 373.77 | ET22: A | EU22: 2524.55 | EV22: A | EW22: 1718.58 | EX22: A | EY22: 1608.6 | EZ22: A | FA22: 7819.31 | FB22: 20 | FC22: A | FD22: 103489.73 | FF22: 13.85 | FG22: A | FH22: 103503.57 | FI22: 20 | FK22: 6509.02 | FM22: 6509.02 | FN22: 20 | FP22: 21149.7 | FQ22: 20 | FR22: A | FS22: 51708.48 | FU22: 0 | FV22: A | FW22: 51708.48 | FX22: 20 | FY22: A | FZ22: 108473.1 | GA22: A | GB22: 108473.1 | GC22: 20 | GD22: A | GE22: 961.93 | GF22: A | GG22: 1.23 | GH22: A | GI22: 963.17
A23: 21 | C23: 0 | E23: 141085.11 | G23: 174417.39 | I23: 0 | K23: 443260.84 | M23: 0 | N23: A | O23: 4999.87 | Q23: 5972 | S23: 11421.55 | U23: 0 | W23: 3974.54 | Y23: 12165.91 | AA23: 7035.72 | AB23: A | AC23: 804332.93 | AD23: 21 | AF23: 3999.56 | AH23: 252053.7 | AJ23: 43553.54 | AL23: 116018.36 | AN23: 741270.25 | AO23: A | AP23: 17151.82 | AR23: 11094.34 | AS23: A | AT23: 1185141.58 | AU23: 21 | AW23: 160821.25 | AY23: 116052.59 | BA23: 0 | BC23: 100836.41 | BD23: A | BE23: 7897.41 | BG23: 2867.74 | BI23: 6077.99 | BK23: 4339.69 | BM23: 3953.17 | BO23: 31685.23 | BQ23: 2340 | BS23: 48345.3 | BT23: A | BU23: 54.96 | BV23: A | BW23: 26503.04 | BY23: 77590.31 | BZ23: A | CA23: 589365.1 | CB23: 21 | CD23: 406123.28 | CE23: A | CF23: 12209.93 | CH23: 0 | CJ23: 68035.3 | CL23: 48514.03 | CN23: 90337.98 | CP23: 24232.24 | CR23: 5557.7 | CT23: 64596.6 | CV23: 4924.82 | CX23: 14339.72 | CZ23: 5896.31 | DA23: A | DB23: 744767.91 | DC23: 21 | DD23: A | DE23: 102794.82 | DG23: 3078.19 | DI23: 8877.77 | DK23: 1656.2 | DL23: A | DM23: 4024.01 | DO23: 0 | DQ23: 10783.65 | DS23: 536679.31 | DT23: A | DU23: 667893.95 | DV23: 21 | DX23: 0 | DZ23: 45190.3 | EB23: 6407.35 | ED23: 4337.69 | EF23: 214596.5 | EH23: 14028.45 | EJ23: 7583.67 | EL23: 292143.96 | EM23: 21 | EN23: A | EO23: 2044.93 | EP23: A | EQ23: 8.87 | ER23: A | ES23: 550.13 | ET23: A | EU23: 1916.4 | EV23: A | EW23: 2120.66 | EX23: A | EY23: 1758.18 | EZ23: A | FA23: 8399.18 | FB23: 21 | FD23: 130458.14 | FF23: 26.92 | FH23: 130485.06 | FI23: 21 | FK23: 3810.48 | FM23: 3810.48 | FN23: 21 | FP23: 20222.11 | FQ23: 21 | FR23: ABC | FS23: 81527.74 | FT23: ABC | FU23: 0 | FV23: ABC | FW23: 81527.74 | FX23: 21 | FY23: A | FZ23: 101377.01 | GA23: A | GB23: 101377.01 | GC23: 21 | GE23: 0 | GF23: A | GG23: 0.09 | GH23: A | GI23: 0.09
A24: 22 | C24: 0 | E24: 143001.8 | G24: 168407.34 | I24: 0 | K24: 439643.31 | M24: 0 | O24: 5051.48 | P24: A | Q24: 5990.98 | S24: 10886.58 | U24: 0 | W24: 3938.06 | Y24: 11788.11 | AA24: 7188.46 | AB24: A | AC24: 795896.11 | AD24: 22 | AF24: 3980.07 | AH24: 254192.77 | AJ24: 43305.87 | AL24: 116917.1 | AN24: 695875.13 | AP24: 26178.11 | AR24: 10987.72 | AT24: 1151436.76 | AU24: 22 | AW24: 158904.39 | AY24: 114674.62 | BA24: 0 | BC24: 97694.02 | BD24: A | BE24: 7949.81 | BG24: 2880.27 | BI24: 6521.35 | BK24: 4471.85 | BM24: 4054.46 | BO24: 31437.38 | BQ24: 2614.9 | BS24: 50519.94 | BU24: 0 | BW24: 0 | BY24: 72730.55 | BZ24: A | CA24: 554453.54 | CB24: 22 | CD24: 407740.28 | CE24: AB | CF24: 0 | CG24: ABC | CH24: 7754.97 | CJ24: 71137.97 | CL24: 49470.91 | CN24: 91217.33 | CP24: 24817.56 | CR24: 6052.43 | CT24: 64497.7 | CV24: 5051.24 | CX24: 14700.74 | CZ24: 5849.99 | DA24: ABC | DB24: 748291,11* | DC24: 22 | DD24: A | DE24: 102911.37 | DG24: 2988.78 | DI24: 8917.3 | DK24: 3062.6 | DM24: 0 | DO24: 0 | DQ24: 10580.65 | DS24: 552439.69 | DT24: A | DU24: 680900.39 | DV24: 22 | DX24: 0 | DZ24: 44614.89 | EB24: 6274.16 | ED24: 4222.17 | EF24: 209605.22 | EH24: 13417.69 | EJ24: 7366.89 | EL24: 285501.01 | EM24: 22 | EN24: A | EO24: 1850.17 | EP24: A | EQ24: 25.08 | ER24: A | ES24: 853.08 | ET24: A | EU24: 1992.04 | EV24: A | EW24: 1966.69 | EX24: A | EY24: 2028.44 | EZ24: A | FA24: 8715.5 | FB24: 22 | FC24: A | FD24: 5737.3 | FE24: A | FF24: 147183.53 | FG24: A | FH24: 152920.83 | FI24: 22 | FK24: 3412.11 | FM24: 3412.11 | FN24: 22 | FP24: 19047.92 | FQ24: 22 | FR24: A | FS24: 99906.57 | FU24: 0 | FV24: A | FW24: 99906.57 | FX24: 22 | FY24: A | FZ24: 111528.38 | GA24: A | GB24: 111528.38 | GC24: 22 | GD24: A | GE24: 1140.09 | GG24: 0 | GH24: A | GI24: 1140.09
A25: 23 | C25: 0 | E25: 143066.83 | G25: 170906.19 | I25: 0 | K25: 450537.94 | M25: 0 | O25: 5084.3 | Q25: 6184.86 | S25: 11094.2 | U25: 0 | W25: 4106.44 | Y25: 12276.57 | AA25: 7362.8 | AC25: 810620.13 | AD25: 23 | AF25: 4158.4 | AH25: 257401.33 | AJ25: 40493.46 | AL25: 116627.77 | AN25: 690783.81 | AO25: A | AP25: 21033.08 | AR25: 11299.44 | AS25: A | AT25: 1141797.3 | AU25: 23 | AW25: 162187.42 | AY25: 117118.41 | BA25: 0 | BC25: 103209.79 | BD25: A | BE25: 8223.34 | BG25: 2852.89 | BI25: 7142.9 | BK25: 4502.94 | BM25: 4028.92 | BO25: 32072.78 | BQ25: 2332.21 | BS25: 50767.91 | BU25: 0 | BW25: 0 | BY25: 73628.61 | BZ25: A | CA25: 568068.12 | CB25: 23 | CD25: 410115.91 | CF25: 0 | CG25: A | CH25: 11433.53 | CJ25: 69234 | CL25: 42192.87 | CN25: 91532.66 | CP25: 24391.84 | CR25: 6260.82 | CT25: 65250.22 | CV25: 5139.73 | CX25: 14387.92 | CZ25: 5979.96 | DA25: A | DB25: 745919.45 | DC25: 23 | DD25: A | DE25: 103318.35 | DG25: 3095.2 | DI25: 9378.75 | DK25: 3442.81 | DL25: A | DM25: 2136.69 | DO25: 0 | DQ25: 10573.93 | DS25: 548427.69 | DT25: A | DU25: 680373.41 | DV25: 23 | DX25: 0 | DZ25: 45354.29 | EB25: 6603.41 | ED25: 4361.23 | EF25: 213479.77 | EH25: 13894.66 | EJ25: 7479.2 | EL25: 291172.56 | EM25: 23 | EN25: A | EO25: 1660.33 | EP25: A | EQ25: 1.91 | ER25: A | ES25: 462.17 | ET25: A | EU25: 2098.94 | EV25: A | EW25: 1835.79 | EX25: A | EY25: 1703.92 | EZ25: A | FA25: 7763.06 | FB25: 23 | FD25: 0.02 | FF25: 117590.2 | FH25: 117590.22 | FI25: 23 | FK25: 4492.01 | FM25: 4492.01 | FN25: 23 | FP25: 19309.37 | FQ25: 23 | FR25: A | FS25: 40624.32 | FT25: A | FU25: 0 | FV25: A | FW25: 40624.32 | FX25: 23 | FY25: ABC | FZ25: 100012.16 | GA25: ABC | GB25: 100012.16 | GC25: 23 | GD25: A | GE25: 1093.97 | GG25: 0 | GH25: A | GI25: 1093.97
A26: 24 | B26: B | C26: 0 | D26: B | E26: 136801.69 | F26: B | G26: 157220.48 | H26: B | I26: 0 | J26: B | K26: 394835.81 | L26: B | M26: 0 | N26: B | O26: 4684.76 | P26: B | Q26: 5623.87 | R26: B | S26: 9603.49 | T26: B | U26: 0 | V26: B | W26: 3792.02 | X26: B | Y26: 11219.7 | Z26: B | AA26: 6736.48 | AB26: B | AC26: 730518.29 | AD26: 24 | AE26: B | AF26: 3671.34 | AG26: B | AH26: 220529.31 | AI26: B | AJ26: 38732.39 | AK26: B | AL26: 106393.61 | AM26: B | AN26: 657392.88 | AO26: B | AP26: 80652.74 | AQ26: B | AR26: 10244.5 | AS26: B | AT26: 1117616.76 | AU26: 24 | AV26: B | AW26: 222656.67 | AX26: AB | AY26: 18805.28 | AZ26: B | BA26: 0 | BB26: B | BC26: 92311.58 | BD26: B | BE26: 7619.14 | BF26: B | BG26: 2734.73 | BH26: B | BI26: 4681.7 | BJ26: B | BK26: 4099.06 | BL26: B | BM26: 3937.65 | BN26: B | BO26: 29078 | BP26: B | BQ26: 2059.93 | BR26: B | BS26: 43890.94 | BT26: AB | BU26: 5452.6 | BV26: B | BW26: 0 | BX26: B | BY26: 66725.34 | BZ26: AB | CA26: 504052.62 | CB26: 24 | CC26: B | CD26: 356776.53 | CE26: B | CF26: 0 | CG26: AB | CH26: 13795.33 | CI26: B | CJ26: 57837.05 | CK26: B | CL26: 31075.59 | CM26: B | CN26: 85166.69 | CO26: B | CP26: 21373.71 | CQ26: B | CR26: 5624.67 | CS26: B | CT26: 61582.65 | CV26: 4789.15 | CW26: B | CX26: 12268.52 | CY26: B | CZ26: 5630.57 | DA26: AB | DB26: 655920.46 | DC26: 24 | DD26: B | DE26: 88078.05 | DF26: B | DG26: 2891.96 | DH26: B | DI26: 8072.55 | DJ26: B | DK26: 3099.83 | DL26: AB | DM26: 37571.92 | DN26: B | DO26: 0 | DP26: B | DQ26: 9927.29 | DR26: B | DS26: 483851.53 | DT26: AB | DU26: 633493.14 | DV26: 24 | DW26: B | DX26: 0 | DY26: B | DZ26: 39780.78 | EA26: B | EB26: 6063.57 | EC26: B | ED26: 3999.86 | EE26: B | EF26: 188907.34 | EG26: B | EH26: 12596.79 | EI26: B | EJ26: 6976.43 | EK26: B | EL26: 258324.78 | EM26: 24 | EN26: AB | EO26: 1628.05 | EP26: AB | EQ26: 2.08 | ER26: AB | ES26: 402 | ET26: ABC | EU26: 2150.69 | EV26: AB | EW26: 1852.1 | EX26: AB | EY26: 1844.12 | EZ26: ABC | FA26: 7879.03 | FB26: 24 | FC26: B | FD26: 0 | FE26: B | FF26: 98923.49 | FG26: B | FH26: 98923.5 | FI26: 24 | FJ26: AB | FK26: 2341.03 | FL26: AB | FM26: 2341.03 | FN26: 24 | FO26: B | FP26: 18453.87 | FQ26: 24 | FR26: AB | FS26: 5595.81 | FT26: B | FU26: 0 | FV26: AB | FW26: 5595.81 | FX26: 24 | FY26: AB | FZ26: 92020.65 | GA26: AB | GB26: 92020.65 | GC26: 24 | GD26: AB | GE26: 1144.83 | GF26: AB | GG26: 0.29 | GH26: AB | GI26: 1145.12
A27: 25 | C27: 0 | E27: 138029.3 | G27: 177370.91 | I27: 0 | K27: 464588.16 | M27: 0 | O27: 4869.97 | Q27: 5785.5 | S27: 11030.15 | U27: 0 | W27: 3822.47 | Y27: 12503.27 | AA27: 6936.28 | AC27: 824936.01 | AD27: 25 | AF27: 3816.58 | AH27: 251635.08 | AJ27: 43277.55 | AL27: 116746.6 | AN27: 722663.25 | AP27: 114426.69 | AR27: 10502.28 | AT27: 1263068.02 | AU27: 25 | AW27: 269615.13 | AY27: 0 | BA27: 0 | BC27: 102575.6 | BD27: A | BE27: 7886.08 | BG27: 2838.81 | BI27: 7578.44 | BK27: 4342.63 | BM27: 4114.48 | BO27: 31672.44 | BQ27: 2453.81 | BR27: A | BS27: 52187.5 | BU27: 0 | BW27: 0 | BY27: 76551.37 | BZ27: A | CA27: 561816.27 | CB27: 25 | CC27: A | CD27: 426625.91 | CF27: 0 | CG27: A | CH27: 16029.32 | CJ27: 70676.37 | CL27: 38248.36 | CN27: 90548.52 | CP27: 25427 | CR27: 5762.94 | CT27: 64804.43 | CV27: 5093.39 | CX27: 14664.34 | CZ27: 5801.53 | DA27: A | DB27: 763682.11 | DC27: 25 | DD27: A | DE27: 106490.81 | DG27: 3039.47 | DI27: 9613.94 | DK27: 2567.09 | DM27: 113014.34 | DO27: 0 | DQ27: 10235.71 | DS27: 549342.19 | DT27: A | DU27: 794303.55 | DV27: 25 | DX27: 0 | DZ27: 44620.14 | EB27: 6094.1 | ED27: 4256.5 | EF27: 203892.44 | EH27: 13348.64 | EJ27: 7163.11 | EL27: 279374.93 | EM27: 25 | EN27: A | EO27: 1668.02 | EP27: A | EQ27: 8.7 | ER27: A | ES27: 147.76 | ET27: A | EU27: 1151.95 | EV27: A | EW27: 2135.66 | EX27: A | EY27: 1502.4 | EZ27: A | FA27: 6614.48 | FB27: 25 | FD27: 0 | FE27: A | FF27: 3406.31 | FG27: A | FH27: 3406.31 | FI27: 25 | FJ27: A | FK27: 1289.67 | FL27: A | FM27: 1289.67 | FN27: 25 | FP27: 11980.84 | FQ27: 25 | FR27: A | FS27: 39302.46 | FU27: 0 | FV27: A | FW27: 39302.46 | FX27: 25 | FY27: A | FZ27: 106434.78 | GA27: A | GB27: 106434.78 | GC27: 25 | GD27: A | GE27: 442.93 | GF27: A | GG27: 1.27 | GH27: A | GI27: 444.2
A28: 26 | C28: 0 | E28: 141387.95 | G28: 186230.7 | I28: 0 | J28: A | K28: 457504.56 | M28: 0 | O28: 5131.74 | Q28: 6173.45 | S28: 11351.75 | U28: 0 | W28: 4093.42 | Y28: 13308.81 | AA28: 7384.05 | AB28: A | AC28: 832566.44 | AD28: 26 | AF28: 4088.48 | AH28: 259232.7 | AJ28: 43973.46 | AL28: 122026.21 | AN28: 744284.81 | AP28: 104369.51 | AR28: 11154.66 | AT28: 1289129.84 | AU28: 26 | AW28: 287834.75 | AY28: 0 | BA28: 0 | BC28: 101348.2 | BD28: A | BE28: 8374.16 | BG28: 2970.59 | BI28: 6150.28 | BK28: 4583.8 | BM28: 4363.38 | BO28: 33430.05 | BQ28: 2447.59 | BS28: 55311.26 | BU28: 0 | BW28: 0 | BY28: 76400.11 | BZ28: A | CA28: 583214.17 | CB28: 26 | CC28: A | CD28: 439752.75 | CF28: 0 | CG28: A | CH28: 14075.11 | CJ28: 75583.03 | CL28: 37606.71 | CN28: 93327.55 | CP28: 26019.34 | CR28: 6049.97 | CT28: 65759.44 | CV28: 5288.24 | CX28: 15066.76 | CZ28: 6029.92 | DA28: A | DB28: 784558.82 | DC28: 26 | DD28: A | DE28: 111099.6 | DG28: 3216.14 | DI28: 9808.42 | DK28: 1656.28 | DM28: 118342.62 | DO28: 0 | DQ28: 10748.09 | DS28: 558620.5 | DT28: A | DU28: 813491.65 | DV28: 26 | DX28: 0 | DZ28: 46118.81 | EB28: 6694.84 | ED28: 4392.54 | EF28: 216285.77 | EH28: 13933.13 | EJ28: 7494.69 | EL28: 294919.78 | EM28: 26 | EN28: A | EO28: 1032.08 | EP28: A | EQ28: 7.48 | ER28: A | ES28: 366 | ET28: A | EU28: 889.82 | EV28: A | EW28: 1237.78 | EX28: A | EY28: 1273.63 | EZ28: A | FA28: 4806.79 | FB28: 26 | FD28: 0 | FF28: 1805.41 | FH28: 1805.41 | FI28: 26 | FJ28: A | FK28: 3886.61 | FL28: A | FM28: 3886.61 | FN28: 26 | FP28: 9345.51 | FQ28: 26 | FR28: A | FS28: 42066.18 | FU28: 0 | FV28: A | FW28: 42066.18 | FX28: 26 | FY28: A | FZ28: 108770.88 | GA28: A | GB28: 108770.88 | GC28: 26 | GE28: 0 | GG28: 0 | GI28: 0
A29: 27 | C29: 0 | E29: 143824.8 | G29: 183347.16 | I29: 0 | K29: 445391.44 | M29: 0 | O29: 5146.43 | Q29: 6127.81 | S29: 11026.88 | U29: 0 | W29: 4073.78 | Y29: 12397.86 | AA29: 7318.62 | AC29: 818654.77 | AD29: 27 | AF29: 4085.75 | AH29: 263325.91 | AJ29: 44071.67 | AL29: 118863.71 | AN29: 707206.56 | AP29: 104776.98 | AR29: 11114.44 | AT29: 1253445.02 | AU29: 27 | AW29: 282504.91 | AY29: 0 | BA29: 0 | BC29: 97689.69 | BE29: 8201.85 | BG29: 2994.95 | BI29: 6436.06 | BJ29: A | BK29: 4442.42 | BM29: 4200.03 | BO29: 32028.64 | BQ29: 2212.89 | BS29: 53041.49 | BU29: 0 | BW29: 0 | BY29: 75882.7 | BZ29: A | CA29: 569635.63 | CB29: 27 | CC29: A | CD29: 421814.34 | CF29: 0 | CG29: A | CH29: 12026.55 | CJ29: 69500.48 | CL29: 36795.05 | CN29: 90714.39 | CP29: 24208.89 | CR29: 6140.34 | CT29: 62628.09 | CV29: 5047.56 | CX29: 13924.54 | CZ29: 5862.77 | DA29: A | DB29: 748663.02 | DC29: 27 | DD29: A | DE29: 110467.31 | DG29: 3194.78 | DI29: 8897.49 | DK29: 1732.36 | DM29: 109307.88 | DO29: 0 | DQ29: 10559.35 | DS29: 541909.19 | DT29: A | DU29: 786068.37 | DV29: 27 | DX29: 0 | DZ29: 44221.3 | EB29: 6461.78 | ED29: 4304.8 | EF29: 211410.89 | EH29: 13497.03 | EJ29: 7367.93 | EL29: 287263.73 | EM29: 27 | EN29: A | EO29: 1533.79 | EP29: A | EQ29: 27.37 | ER29: A | ES29: 662.35 | ET29: A | EU29: 2432.36 | EV29: A | EW29: 1858.89 | EX29: A | EY29: 1969.17 | EZ29: A | FA29: 8483.94 | FB29: 27 | FC29: A C | FD29: 0 | FE29: A C | FF29: 29323.76 | FG29: A C | FH29: 29323,76* | FI29: 27 | FJ29: A | FK29: 4531.06 | FL29: A | FM29: 4531.06 | FN29: 27 | FP29: 18581.08 | FQ29: 27 | FR29: A | FS29: 58215.19 | FU29: 0 | FV29: A | FW29: 58215.19 | FX29: 27 | FY29: A | FZ29: 110973.12 | GA29: A | GB29: 110973.12 | GC29: 27 | GE29: 0 | GG29: 0 | GI29: 0
A30: 28 | C30: 0 | E30: 142501.91 | G30: 177381.72 | I30: 0 | K30: 420990.59 | M30: 0 | O30: 4684.41 | Q30: 5771.07 | S30: 10085.09 | U30: 0 | W30: 3790.02 | Y30: 11560.66 | AA30: 6861.8 | AC30: 783627.28 | AD30: 28 | AF30: 3799.64 | AH30: 239844.53 | AJ30: 43245.32 | AL30: 115121.8 | AN30: 685970.31 | AP30: 94807.62 | AR30: 10497.66 | AT30: 1193286.87 | AU30: 28 | AW30: 258774.27 | AY30: 0 | BA30: 0 | BC30: 87623.88 | BD30: A | BE30: 7605.17 | BG30: 2708.38 | BI30: 5599.89 | BK30: 4165.68 | BM30: 3994.74 | BO30: 29944.59 | BQ30: 2055.22 | BS30: 47323.59 | BT30: A | BU30: 10887.15 | BV30: A | BW30: 9.6 | BY30: 71419.32 | BZ30: A | CA30: 532111.47 | CB30: 28 | CC30: A | CD30: 390165.94 | CF30: 0 | CG30: A | CH30: 13779.9 | CJ30: 62363 | CL30: 37489.5 | CN30: 81289.44 | CP30: 21226.94 | CR30: 5442.75 | CT30: 59154.44 | CV30: 4499.75 | CX30: 12107.1 | CZ30: 5233.69 | DA30: A | DB30: 692752.44 | DC30: 28 | DD30: A | DE30: 103476.46 | DG30: 2903.09 | DI30: 9010.56 | DK30: 1615.58 | DM30: 96418.29 | DO30: 0 | DQ30: 9938.48 | DS30: 519245.09 | DT30: A | DU30: 742607.55 | DV30: 28 | DX30: 0 | DZ30: 42356.68 | EB30: 6130.72 | ED30: 3984.28 | EF30: 196255.08 | EH30: 12880.85 | EJ30: 6969.03 | EL30: 268576.64 | EM30: 28 | EN30: A | EO30: 1791.31 | EP30: A | EQ30: 48.16 | ER30: A | ES30: 405.31 | ET30: A | EU30: 2804.59 | EV30: A | EW30: 1972.63 | EX30: A | EY30: 1773.59 | EZ30: A | FA30: 8795.59 | FB30: 28 | FD30: 0 | FF30: 55792.64 | FH30: 55792.64 | FI30: 28 | FJ30: A | FK30: 635.61 | FL30: A | FM30: 635.61 | FN30: 28 | FP30: 17427.6 | FQ30: 28 | FR30: A | FS30: 4980.71 | FU30: 0 | FV30: A | FW30: 4980.71 | FX30: 28 | FY30: A | FZ30: 106446.4 | GA30: A | GB30: 106446.4 | GC30: 28 | GE30: 0 | GG30: 0 | GI30: 0
A31: Итого | B31: AB | C31: 0 | D31: AB | E31: 5514100.09 | F31: AB | G31: 5831973.08 | H31: B | I31: 0 | J31: ABC | K31: 14817965,28* | L31: B | M31: 0 | N31: AB | O31: 169734.79 | P31: AB | Q31: 201119.47 | R31: B | S31: 378733.63 | T31: B | U31: 0 | V31: B | W31: 133691.63 | X31: B | Y31: 408791.24 | Z31: B | AA31: 235830.67 | AB31: ABC | AC31: 27691939,89* | AD31: Итого | AE31: B | AF31: 136017.27 | AG31: ABC | AH31: 8609923,78* | AI31: B | AJ31: 1401430.54 | AK31: B | AL31: 3564233.63 | AM31: B | AN31: 25531343.31 | AO31: AB | AP31: 1015097.74 | AQ31: AB | AR31: 371234.12 | AS31: ABC | AT31: 40629280,39* | AU31: Итого | AV31: AB | AW31: 6238437.41 | AX31: AB | AY31: 3520633.49 | AZ31: B | BA31: 0 | BB31: AB | BC31: 3172191.54 | BD31: AB | BE31: 275707.67 | BF31: AB | BG31: 96512.02 | BH31: AB | BI31: 223038.43 | BJ31: AB | BK31: 145660.35 | BL31: AB | BM31: 135247.61 | BN31: AB | BO31: 1101907.73 | BP31: B | BQ31: 86451.18 | BR31: AB | BS31: 1709898.55 | BT31: AB | BU31: 334629.6 | BV31: AB | BW31: 320273.67 | BX31: B | BY31: 2484735.91 | BZ31: AB | CA31: 19845325.15 | CB31: Итого | CC31: ABC | CD31: 14027223,47* | CE31: AB | CF31: 287564.03 | CG31: ABC | CH31: 88897,99* | CI31: AB | CJ31: 2386086.53 | CK31: B | CL31: 1307428.57 | CM31: B | CN31: 3029986.59 | CO31: B | CP31: 842831.6 | CQ31: B | CR31: 200715.97 | CS31: B | CT31: 2364943.61 | CV31: 170504.53 | CW31: B | CX31: 493860.97 | CY31: B | CZ31: 195217.05 | DA31: ABC | DB31: 25395260,92* | DC31: Итого | DD31: AB | DE31: 3703455.98 | DF31: AB | DG31: 102124.24 | DH31: B | DI31: 316350.4 | DJ31: AB | DK31: 61943.2 | DL31: AB | DM31: 1220466.6 | DN31: AB | DO31: 399062.08 | DP31: B | DQ31: 355068.28 | DR31: ABC | DS31: 17753177,13* | DT31: ABC | DU31: 23911647,91* | DV31: Итого | DW31: AB | DX31: 0 | DY31: AB | DZ31: 1532237.97 | EA31: AB | EB31: 211285.93 | EC31: B | ED31: 146448.73 | EE31: ABC | EF31: 7389345,77* | EG31: B | EH31: 461943.43 | EI31: B | EJ31: 244355.06 | EK31: ABC | EL31: 9985616,89* | EM31: Итого | EN31: ABC | EO31: 47727,67* | EP31: AB | EQ31: 499.55 | ER31: AB | ES31: 12623.79 | ET31: ABC | EU31: 64569,04* | EV31: AB | EW31: 67233.93 | EX31: AB | EY31: 59335.88 | EZ31: ABC | FA31: 251989,86* | FB31: Итого | FC31: ABC | FD31: 1375025,68* | FE31: ABC | FF31: 578275,58* | FG31: ABC | FH31: 1953301,26* | FI31: Итого | FJ31: ABC | FK31: 161136,55* | FL31: ABC | FM31: 161136,55* | FN31: Итого | FO31: AB | FP31: 632562.48 | FQ31: Итого | FR31: ABC | FS31: 978472,61* | FT31: ABC | FU31: 7,31* | FV31: ABC | FW31: 978479,92* | FX31: Итого | FY31: ABC | FZ31: 3017596,71* | GA31: ABC | GB31: 3017596,71* | GC31: Итого | GD31: AB | GE31: 54823.01 | GF31: AB | GG31: 27.54 | GH31: AB | GI31: 54850.55
